Payment Date,Transaction Number,Net Amount,Supplier (Beneficiary) Name,Local Supplier Internal Reference,Directorate / Service Where Expenditure Incurred,Service Category Label,Service Category URI,SeRCOP Expenditure Category,SeRCOP Expenditure Code,Purpose of Spend,SeRCOP Detailed Expenditure Code,Capital/Revenue,Procurement Classification
01/08/2017,18177,420.92,HOUSING REFUND PAYMENTS - BSS ONLY,379825,Housing Revenue Account,Housing Revenue Account,N/A,Supplies and Services,504,Miscellaneous Expenses,5034,Revenue,00.WELFARE
01/08/2017,18178,400.00,HOUSING REFUND PAYMENTS - BSS ONLY,379825,Housing Revenue Account,Housing Revenue Account,N/A,Supplies and Services,504,Miscellaneous Expenses,5034,Revenue,00.WELFARE
01/08/2017,18187,650.00,NORTH TYNESIDE COUNCIL,102767,"Health, Education, Care and Safeguarding",Adult Social Care,101,Third Party Payments,505,Other Establishments,5041,Revenue,00.PUBLIC SECTOR
01/08/2017,18187,1200.00,NORTH TYNESIDE COUNCIL,102767,"Environment, Housing & Leisure",Housing Services,108,Supplies and Services,504,Miscellaneous Expenses,5034,Revenue,00.PUBLIC SECTOR
01/08/2017,18187,1475.00,NORTH TYNESIDE COUNCIL,102767,"Health, Education, Care and Safeguarding",Adult Social Care,101,Third Party Payments,505,Other Establishments,5041,Revenue,00.PUBLIC SECTOR
01/08/2017,18187,1623.55,NORTH TYNESIDE COUNCIL,102767,Central Items,Holding A/C,N/A,Capital,Capital,Capital,Capital,Revenue,00.PUBLIC SECTOR
01/08/2017,1477774,1100.87,HOUSING BENEFIT,299992,Finance,Housing Services,108,Transfer Payments,506,Housing Benefits,5048,Revenue,00.NON INFLUENCIBLE
01/08/2017,1477775,2720.81,HOUSING BENEFIT,299992,Finance,Housing Services,108,Transfer Payments,506,Housing Benefits,5048,Revenue,00.NON INFLUENCIBLE
01/08/2017,1477777,336.17,HOUSING BENEFIT,299992,Finance,Housing Services,108,Transfer Payments,506,Housing Benefits,5048,Revenue,00.NON INFLUENCIBLE
01/08/2017,1477779,307.80,HOUSING BENEFIT,299992,Finance,Housing Services,108,Transfer Payments,506,Housing Benefits,5048,Revenue,00.NON INFLUENCIBLE
01/08/2017,1477791,305.92,HOUSING BENEFIT,299992,Finance,Housing Services,108,Transfer Payments,506,Housing Benefits,5048,Revenue,00.NON INFLUENCIBLE
01/08/2017,1477799,310.13,HOUSING BENEFIT,299992,Finance,Housing Services,108,Transfer Payments,506,Housing Benefits,5048,Revenue,00.NON INFLUENCIBLE
01/08/2017,1477802,270.15,HOUSING BENEFIT,299992,Finance,Housing Services,108,Transfer Payments,506,Housing Benefits,5048,Revenue,00.NON INFLUENCIBLE
01/08/2017,1477806,6134.86,HOUSING BENEFIT,299992,Finance,Housing Services,108,Transfer Payments,506,Housing Benefits,5048,Revenue,00.NON INFLUENCIBLE
01/08/2017,1477807,1720.26,HOUSING BENEFIT,299992,Finance,Housing Services,108,Transfer Payments,506,Housing Benefits,5048,Revenue,00.NON INFLUENCIBLE
01/08/2017,1477809,0.00,NODA TAXIS LTD,234760,Commissioning & Investment,Children's & Education Services,103,Transfer Payments,506,School Children and Students,5046,Revenue,26.TAXIS
01/08/2017,1477809,1260.00,NODA TAXIS LTD,234760,Commissioning & Investment,Children's & Education Services,103,Transfer Payments,506,School Children and Students,5046,Revenue,26.TAXIS
01/08/2017,1477810,10.46,BUS & TRUCK PARTS (NE) LTD,392837,"Environment, Housing & Leisure",Unallocated,N/A,Transport,503,Direct Transport Costs,5016,Revenue,28.VEHICLE PARTS
01/08/2017,1477810,10.96,BUS & TRUCK PARTS (NE) LTD,392837,"Environment, Housing & Leisure",Unallocated,N/A,Transport,503,Direct Transport Costs,5016,Revenue,28.VEHICLE PARTS
01/08/2017,1477810,30.38,BUS & TRUCK PARTS (NE) LTD,392837,"Environment, Housing & Leisure",Unallocated,N/A,Transport,503,Direct Transport Costs,5016,Revenue,28.VEHICLE PARTS
01/08/2017,1477810,56.35,BUS & TRUCK PARTS (NE) LTD,392837,"Environment, Housing & Leisure",Unallocated,N/A,Transport,503,Direct Transport Costs,5016,Revenue,28.VEHICLE PARTS
01/08/2017,1477810,56.85,BUS & TRUCK PARTS (NE) LTD,392837,"Environment, Housing & Leisure",Unallocated,N/A,Transport,503,Direct Transport Costs,5016,Revenue,28.VEHICLE PARTS
01/08/2017,1477810,135.00,BUS & TRUCK PARTS (NE) LTD,392837,"Environment, Housing & Leisure",Unallocated,N/A,Transport,503,Direct Transport Costs,5016,Revenue,28.VEHICLE PARTS
01/08/2017,1477811,8946.00,SPRINGFIELD HOMECARE SERVICES LTD T/A POSITIVE LIFE CHOICES,392695,"Health, Education, Care and Safeguarding",Public Health,112,Third Party Payments,505,Private Contractors,5042,Revenue,22.HOMECARE
01/08/2017,1477814,20972.00,INSPIRED CARE LTD,391697,"Health, Education, Care and Safeguarding",Public Health,112,Third Party Payments,505,Private Contractors,5042,Revenue,22.HOMECARE
01/08/2017,1477817,-140000.00,SOLUTIONS 4 NORTH TYNESIDE,391082,Housing Revenue Account,Housing Services,108,Third Party Payments,505,Private Contractors,5042,Revenue,02.BUILDING SERVICES
01/08/2017,1477817,169225.65,SOLUTIONS 4 NORTH TYNESIDE,391082,Housing Revenue Account,Housing Services,108,Third Party Payments,505,Private Contractors,5042,Revenue,02.BUILDING SERVICES
01/08/2017,1477819,19383.50,LIFE AND CARE SOLUTIONS LTD T/A RIGHT AT HOME TYNESIDE,391034,"Health, Education, Care and Safeguarding",Public Health,112,Third Party Payments,505,Private Contractors,5042,Revenue,22.HOMECARE
01/08/2017,1477820,350.00,ADT FIRE AND SECURITY PLC,316358,Commissioning & Investment,Unallocated,N/A,Third Party Payments,505,Private Contractors,5042,Revenue,INTRUDER ALARM
01/08/2017,1477820,412.48,ADT FIRE AND SECURITY PLC,316358,Commissioning & Investment,Unallocated,N/A,Third Party Payments,505,Private Contractors,5042,Revenue,INTRUDER ALARM
01/08/2017,1477820,1222.22,ADT FIRE AND SECURITY PLC,316358,Commissioning & Investment,Unallocated,N/A,Third Party Payments,505,Private Contractors,5042,Revenue,INTRUDER ALARM
01/08/2017,1477820,1483.16,ADT FIRE AND SECURITY PLC,316358,Commissioning & Investment,Unallocated,N/A,Third Party Payments,505,Private Contractors,5042,Revenue,INTRUDER ALARM
01/08/2017,1477821,450.00,Redacted Personal Data,390704,"Health, Education, Care and Safeguarding",Adult Social Care,101,Supplies and Services,504,Expenses,5030,Revenue,16.REAL ESTATE
01/08/2017,1477823,6000.00,FALCONS COMMUNITY FOUNDATION,386027,"Environment, Housing & Leisure",Cultural & Related Services,104,Third Party Payments,505,Private Contractors,5042,Revenue,16.EVENTS & PROMOTIONS
01/08/2017,1477824,18151.00,EVERLASTING CARE LTD,363743,"Health, Education, Care and Safeguarding",Public Health,112,Third Party Payments,505,Private Contractors,5042,Revenue,22.HOMECARE
01/08/2017,1477826,65561.60,NNT LIFT COMPANY (FUNDCO 1) LIMITED,376424,"Environment, Housing & Leisure",Cultural & Related Services,104,Third Party Payments,505,Private Contractors,5042,Revenue,02.BUILDING SERVICES
01/08/2017,1477827,294.58,TYNE TEES SECURITY LTD,389237,"Environment, Housing & Leisure",Cultural & Related Services,104,Employees,501,Direct Employee Expenses,5001,Revenue,FIRE GUARD
01/08/2017,1477828,1618.50,J & M TRAVEL,388899,Commissioning & Investment,Children's & Education Services,103,Transport,503,Recharges,5017,Revenue,26.TAXIS
01/08/2017,1477829,140.00,PUBLIC ANALYST SCIENTIFIC SERVICES,381081,"Environment, Housing & Leisure",Environmental & Regulatory Services,105,Third Party Payments,505,Private Contractors,5042,Revenue,ENVIRO FORENSIC
01/08/2017,1477829,450.00,PUBLIC ANALYST SCIENTIFIC SERVICES,381081,"Environment, Housing & Leisure",Environmental & Regulatory Services,105,Third Party Payments,505,Private Contractors,5042,Revenue,ENVIRO FORENSIC
01/08/2017,1477830,1020.00,Redacted Personal Data,388088,Commissioning & Investment,Children's & Education Services,103,Transport,503,Recharges,5017,Revenue,26.TAXIS
01/08/2017,1477833,1089.00,Redacted Personal Data,386576,Commissioning & Investment,Children's & Education Services,103,Transport,503,Recharges,5017,Revenue,26.TAXIS
01/08/2017,1477834,324.00,SILVERLINE TAXIS LTD,368499,Commissioning & Investment,Children's & Education Services,103,Transport,503,Recharges,5017,Revenue,26.TAXIS
01/08/2017,1477834,506.00,SILVERLINE TAXIS LTD,368499,Commissioning & Investment,Children's & Education Services,103,Transport,503,Recharges,5017,Revenue,26.TAXIS
01/08/2017,1477834,952.50,SILVERLINE TAXIS LTD,368499,Commissioning & Investment,Children's & Education Services,103,Transport,503,Recharges,5017,Revenue,26.TAXIS
01/08/2017,1477834,1655.00,SILVERLINE TAXIS LTD,368499,Commissioning & Investment,Children's & Education Services,103,Transport,503,Recharges,5017,Revenue,26.TAXIS
01/08/2017,1477835,5853.50,GENERATOR POWER LTD,386243,"Environment, Housing & Leisure",Cultural & Related Services,104,Third Party Payments,505,Private Contractors,5042,Revenue,BUILD GEN
01/08/2017,1477836,855.00,MARK HUNTER,347587,Commissioning & Investment,Children's & Education Services,103,Transport,503,Recharges,5017,Revenue,26.TAXIS
01/08/2017,1477837,6.43,DVS COMPONENTS,004169,"Environment, Housing & Leisure",Unallocated,N/A,Transport,503,Direct Transport Costs,5016,Revenue,28.VEHICLE PARTS
01/08/2017,1477837,16.70,DVS COMPONENTS,004169,"Environment, Housing & Leisure",Unallocated,N/A,Transport,503,Direct Transport Costs,5016,Revenue,28.VEHICLE PARTS
01/08/2017,1477837,28.10,DVS COMPONENTS,004169,"Environment, Housing & Leisure",Unallocated,N/A,Transport,503,Direct Transport Costs,5016,Revenue,28.VEHICLE PARTS
01/08/2017,1477837,28.14,DVS COMPONENTS,004169,"Environment, Housing & Leisure",Unallocated,N/A,Transport,503,Direct Transport Costs,5016,Revenue,28.VEHICLE PARTS
01/08/2017,1477837,32.07,DVS COMPONENTS,004169,"Environment, Housing & Leisure",Unallocated,N/A,Transport,503,Direct Transport Costs,5016,Revenue,28.VEHICLE PARTS
01/08/2017,1477837,34.42,DVS COMPONENTS,004169,"Environment, Housing & Leisure",Unallocated,N/A,Transport,503,Direct Transport Costs,5016,Revenue,28.VEHICLE PARTS
01/08/2017,1477837,35.79,DVS COMPONENTS,004169,"Environment, Housing & Leisure",Unallocated,N/A,Transport,503,Direct Transport Costs,5016,Revenue,28.VEHICLE PARTS
01/08/2017,1477837,46.78,DVS COMPONENTS,004169,"Environment, Housing & Leisure",Unallocated,N/A,Transport,503,Direct Transport Costs,5016,Revenue,28.VEHICLE PARTS
01/08/2017,1477837,52.75,DVS COMPONENTS,004169,"Environment, Housing & Leisure",Unallocated,N/A,Transport,503,Direct Transport Costs,5016,Revenue,28.VEHICLE PARTS
01/08/2017,1477837,55.47,DVS COMPONENTS,004169,"Environment, Housing & Leisure",Unallocated,N/A,Transport,503,Direct Transport Costs,5016,Revenue,28.VEHICLE PARTS
01/08/2017,1477837,57.20,DVS COMPONENTS,004169,"Environment, Housing & Leisure",Unallocated,N/A,Transport,503,Direct Transport Costs,5016,Revenue,28.VEHICLE PARTS
01/08/2017,1477837,88.74,DVS COMPONENTS,004169,"Environment, Housing & Leisure",Unallocated,N/A,Transport,503,Direct Transport Costs,5016,Revenue,28.VEHICLE PARTS
01/08/2017,1477837,152.00,DVS COMPONENTS,004169,"Environment, Housing & Leisure",Unallocated,N/A,Transport,503,Direct Transport Costs,5016,Revenue,28.VEHICLE PARTS
01/08/2017,1477837,197.60,DVS COMPONENTS,004169,"Environment, Housing & Leisure",Unallocated,N/A,Transport,503,Direct Transport Costs,5016,Revenue,28.VEHICLE PARTS
01/08/2017,1477838,644.00,PERCY PARK RUGBY FOOTBALL CLUB,341063,"Health, Education, Care and Safeguarding",Children's & Education Services,103,Employees,501,Indirect Employee Expenses,5002,Revenue,16.EVENTS & PROMOTIONS
01/08/2017,1477839,1271.00,Redacted Personal Data,351118,Commissioning & Investment,Children's & Education Services,103,Transport,503,Recharges,5017,Revenue,26.TAXIS
01/08/2017,1477840,1824.34,THE RIVERSIDE GROUP,384225,"Health, Education, Care and Safeguarding",Adult Social Care,101,Third Party Payments,505,Private Contractors,5042,Revenue,REPAIR ADAPT
01/08/2017,1477841,1471.62,NORTH TYNESIDE DISABILITY FORUM,336216,Capital,Capital,Capital,Supplies and Services,504,Equipment,5023,Capital,22.DAY CARE SERVICES
01/08/2017,1477842,400.00,THE TRUSTEES OF THE DIOCESE OF HEXHAM & NEWCASTLE,004510,Commissioning & Investment,Children's & Education Services,103,Premises-Related Expenditure,502,Rents,5007,Revenue,16.REAL ESTATE
01/08/2017,1477843,500.00,Redacted Personal Data,234365,Commissioning & Investment,Children's & Education Services,103,Transport,503,Recharges,5017,Revenue,26.TAXIS
01/08/2017,1477843,1200.00,Redacted Personal Data,234365,Commissioning & Investment,Children's & Education Services,103,Transport,503,Recharges,5017,Revenue,26.TAXIS
01/08/2017,1477845,20.65,JASPERS NEWCASTLE LTD,383465,"Health, Education, Care and Safeguarding",Children's & Education Services,103,Supplies and Services,504,Catering,5024,Revenue,03.GROCERIES & PROVISIONS
01/08/2017,1477845,208.50,JASPERS NEWCASTLE LTD,383465,"Health, Education, Care and Safeguarding",Children's & Education Services,103,Supplies and Services,504,Catering,5024,Revenue,03.GROCERIES & PROVISIONS
01/08/2017,1477846,188.80,ALBION PRIVATE HIRE,363494,"Health, Education, Care and Safeguarding",Children's & Education Services,103,Transport,503,Contract Hire and Operating Leases,5018,Revenue,26.TAXIS
01/08/2017,1477846,885.00,ALBION PRIVATE HIRE,363494,Commissioning & Investment,Children's & Education Services,103,Transport,503,Recharges,5017,Revenue,26.TAXIS
01/08/2017,1477846,885.00,ALBION PRIVATE HIRE,363494,Commissioning & Investment,Children's & Education Services,103,Transport,503,Recharges,5017,Revenue,26.TAXIS
01/08/2017,1477847,195.00,DIRECT CARS,366879,Commissioning & Investment,Children's & Education Services,103,Transport,503,Recharges,5017,Revenue,26.TAXIS
01/08/2017,1477847,294.00,DIRECT CARS,366879,Commissioning & Investment,Children's & Education Services,103,Transport,503,Recharges,5017,Revenue,26.TAXIS
01/08/2017,1477847,488.10,DIRECT CARS,366879,Commissioning & Investment,Children's & Education Services,103,Transport,503,Recharges,5017,Revenue,26.TAXIS
01/08/2017,1477847,504.00,DIRECT CARS,366879,Commissioning & Investment,Children's & Education Services,103,Transport,503,Recharges,5017,Revenue,26.TAXIS
01/08/2017,1477847,588.00,DIRECT CARS,366879,Commissioning & Investment,Children's & Education Services,103,Transport,503,Recharges,5017,Revenue,26.TAXIS
01/08/2017,1477847,609.00,DIRECT CARS,366879,Commissioning & Investment,Children's & Education Services,103,Transport,503,Recharges,5017,Revenue,26.TAXIS
01/08/2017,1477847,771.00,DIRECT CARS,366879,Commissioning & Investment,Children's & Education Services,103,Transport,503,Recharges,5017,Revenue,26.TAXIS
01/08/2017,1477847,960.00,DIRECT CARS,366879,Commissioning & Investment,Children's & Education Services,103,Transport,503,Recharges,5017,Revenue,26.TAXIS
01/08/2017,1477847,993.00,DIRECT CARS,366879,Commissioning & Investment,Children's & Education Services,103,Transport,503,Recharges,5017,Revenue,26.TAXIS
01/08/2017,1477848,914.64,BLACHERE ILLUMINATION UK,364256,"Environment, Housing & Leisure",Highways & Transport Services,107,Third Party Payments,505,Other Agencies,5043,Revenue,01.ELECTRICAL
01/08/2017,1477848,1915.90,BLACHERE ILLUMINATION UK,364256,"Environment, Housing & Leisure",Highways & Transport Services,107,Third Party Payments,505,Other Agencies,5043,Revenue,01.ELECTRICAL
01/08/2017,1477848,4140.00,BLACHERE ILLUMINATION UK,364256,"Environment, Housing & Leisure",Highways & Transport Services,107,Third Party Payments,505,Other Agencies,5043,Revenue,01.ELECTRICAL
01/08/2017,1477848,4340.48,BLACHERE ILLUMINATION UK,364256,"Environment, Housing & Leisure",Highways & Transport Services,107,Third Party Payments,505,Other Agencies,5043,Revenue,01.ELECTRICAL
01/08/2017,1477848,13915.00,BLACHERE ILLUMINATION UK,364256,"Environment, Housing & Leisure",Highways & Transport Services,107,Third Party Payments,505,Other Agencies,5043,Revenue,01.ELECTRICAL
01/08/2017,1477849,1092.00,Redacted Personal Data,319175,Commissioning & Investment,Children's & Education Services,103,Transport,503,Recharges,5017,Revenue,26.TAXIS
01/08/2017,1477853,520.00,HOLYSTONE PRIMARY SCHOOL,301426,Capital,Capital,Capital,Capital Expenditure,Capital,Capital Expenditure,Capital,Capital,00.NT SCHOOLS
01/08/2017,1477854,2320.00,NORHAM COMMUNITY TECHNOLOGY COLLEGE,237330,Capital,Capital,Capital,Capital Expenditure,Capital,Capital Expenditure,Capital,Capital,00.NT SCHOOLS
01/08/2017,1477855,750.00,THE HUNTERCOMBE GROUP,395253,Commissioning & Investment,Children's & Education Services,103,Third Party Payments,505,Private Contractors,5042,Revenue,22.RESIDENTIAL
01/08/2017,1477855,1500.00,THE HUNTERCOMBE GROUP,395253,Commissioning & Investment,Children's & Education Services,103,Third Party Payments,505,Private Contractors,5042,Revenue,22.RESIDENTIAL
01/08/2017,1477856,1362.00,MR T THORPE,313168,Commissioning & Investment,Children's & Education Services,103,Transport,503,Recharges,5017,Revenue,26.TAXIS
01/08/2017,1477858,250.00,THE LINKS ART GALLERY,394845,Capital,Capital,Capital,Capital Expenditure,Capital,Capital Expenditure,Capital,Capital,FINANCE RENTS
01/08/2017,1477859,1250.00,TAVISTOCK & PORTMAN NHS FT,380215,Commissioning & Investment,Children's & Education Services,103,Third Party Payments,505,Private Contractors,5042,Revenue,00.PUBLIC SECTOR
01/08/2017,1477861,0.00,MICHAEL FARWELL,394132,Commissioning & Investment,Children's & Education Services,103,Transport,503,Recharges,5017,Revenue,26.TAXIS
01/08/2017,1477861,1059.00,MICHAEL FARWELL,394132,Commissioning & Investment,Children's & Education Services,103,Transport,503,Recharges,5017,Revenue,26.TAXIS
01/08/2017,1477862,399.00,BLUEBIRD CARE (NORTH TYNESIDE),392081,"Health, Education, Care and Safeguarding",Public Health,112,Third Party Payments,505,Private Contractors,5042,Revenue,22.RESIDENTIAL
01/08/2017,1477862,1540.00,BLUEBIRD CARE (NORTH TYNESIDE),392081,"Health, Education, Care and Safeguarding",Public Health,112,Third Party Payments,505,Private Contractors,5042,Revenue,22.RESIDENTIAL
01/08/2017,1477863,0.00,S&B TAXIS,361901,Commissioning & Investment,Children's & Education Services,103,Transport,503,Recharges,5017,Revenue,26.TAXIS
01/08/2017,1477863,1575.00,S&B TAXIS,361901,Commissioning & Investment,Children's & Education Services,103,Transport,503,Recharges,5017,Revenue,26.TAXIS
01/08/2017,1477864,-5299.00,HOMECARE PLUS LIMITED,392990,"Health, Education, Care and Safeguarding",Public Health,112,Third Party Payments,505,Private Contractors,5042,Revenue,22.SUPPORT SERVICES
01/08/2017,1477864,5299.00,HOMECARE PLUS LIMITED,392990,"Health, Education, Care and Safeguarding",Public Health,112,Third Party Payments,505,Private Contractors,5042,Revenue,22.SUPPORT SERVICES
01/08/2017,1477864,5299.00,HOMECARE PLUS LIMITED,392990,"Health, Education, Care and Safeguarding",Public Health,112,Third Party Payments,505,Private Contractors,5042,Revenue,22.SUPPORT SERVICES
02/08/2017,1477883,191.40,SWIFT - FOSTER CARER PAYMENTS,299981,"Health, Education, Care and Safeguarding",Children's & Education Services,103,Third Party Payments,505,Other Establishments,5041,Revenue,00.WELFARE
02/08/2017,1477883,283.36,SWIFT - FOSTER CARER PAYMENTS,299981,"Health, Education, Care and Safeguarding",Children's & Education Services,103,Third Party Payments,505,Other Establishments,5041,Revenue,00.WELFARE
02/08/2017,1477884,120.00,SWIFT - FOSTER CARER PAYMENTS,299981,"Health, Education, Care and Safeguarding",Children's & Education Services,103,Third Party Payments,505,Other Establishments,5041,Revenue,00.WELFARE
02/08/2017,1477884,180.00,SWIFT - FOSTER CARER PAYMENTS,299981,"Health, Education, Care and Safeguarding",Children's & Education Services,103,Third Party Payments,505,Other Establishments,5041,Revenue,00.WELFARE
02/08/2017,1477884,283.36,SWIFT - FOSTER CARER PAYMENTS,299981,"Health, Education, Care and Safeguarding",Children's & Education Services,103,Third Party Payments,505,Other Establishments,5041,Revenue,00.WELFARE
02/08/2017,1477887,100.00,SWIFT - FOSTER CARER PAYMENTS,299981,"Health, Education, Care and Safeguarding",Children's & Education Services,103,Third Party Payments,505,Voluntary Associations,5040,Revenue,00.WELFARE
02/08/2017,1477887,180.00,SWIFT - FOSTER CARER PAYMENTS,299981,"Health, Education, Care and Safeguarding",Children's & Education Services,103,Third Party Payments,505,Other Establishments,5041,Revenue,00.WELFARE
02/08/2017,1477887,295.68,SWIFT - FOSTER CARER PAYMENTS,299981,"Health, Education, Care and Safeguarding",Children's & Education Services,103,Third Party Payments,505,Other Establishments,5041,Revenue,00.WELFARE
02/08/2017,1477888,84.74,SWIFT - FOSTER CARER PAYMENTS,299981,"Health, Education, Care and Safeguarding",Children's & Education Services,103,Third Party Payments,505,Other Establishments,5041,Revenue,00.WELFARE
02/08/2017,1477888,150.00,SWIFT - FOSTER CARER PAYMENTS,299981,"Health, Education, Care and Safeguarding",Children's & Education Services,103,Third Party Payments,505,Other Establishments,5041,Revenue,00.WELFARE
02/08/2017,1477888,150.00,SWIFT - FOSTER CARER PAYMENTS,299981,"Health, Education, Care and Safeguarding",Children's & Education Services,103,Third Party Payments,505,Other Establishments,5041,Revenue,00.WELFARE
02/08/2017,1477888,283.36,SWIFT - FOSTER CARER PAYMENTS,299981,"Health, Education, Care and Safeguarding",Children's & Education Services,103,Third Party Payments,505,Other Establishments,5041,Revenue,00.WELFARE
02/08/2017,1477888,283.36,SWIFT - FOSTER CARER PAYMENTS,299981,"Health, Education, Care and Safeguarding",Children's & Education Services,103,Third Party Payments,505,Other Establishments,5041,Revenue,00.WELFARE
02/08/2017,1477888,300.00,SWIFT - FOSTER CARER PAYMENTS,299981,"Health, Education, Care and Safeguarding",Children's & Education Services,103,Third Party Payments,505,Other Establishments,5041,Revenue,00.WELFARE
02/08/2017,1477888,368.10,SWIFT - FOSTER CARER PAYMENTS,299981,"Health, Education, Care and Safeguarding",Children's & Education Services,103,Third Party Payments,505,Other Establishments,5041,Revenue,00.WELFARE
02/08/2017,1477889,295.68,SWIFT - FOSTER CARER PAYMENTS,299981,"Health, Education, Care and Safeguarding",Children's & Education Services,103,Third Party Payments,505,Other Establishments,5041,Revenue,00.WELFARE
02/08/2017,1477890,-120.00,SWIFT - FOSTER CARER PAYMENTS,299981,"Health, Education, Care and Safeguarding",Children's & Education Services,103,Third Party Payments,505,Other Establishments,5041,Revenue,00.WELFARE
02/08/2017,1477890,84.74,SWIFT - FOSTER CARER PAYMENTS,299981,"Health, Education, Care and Safeguarding",Children's & Education Services,103,Third Party Payments,505,Other Establishments,5041,Revenue,00.WELFARE
02/08/2017,1477890,120.00,SWIFT - FOSTER CARER PAYMENTS,299981,"Health, Education, Care and Safeguarding",Children's & Education Services,103,Third Party Payments,505,Other Establishments,5041,Revenue,00.WELFARE
02/08/2017,1477890,120.00,SWIFT - FOSTER CARER PAYMENTS,299981,"Health, Education, Care and Safeguarding",Children's & Education Services,103,Third Party Payments,505,Other Establishments,5041,Revenue,00.WELFARE
02/08/2017,1477890,283.36,SWIFT - FOSTER CARER PAYMENTS,299981,"Health, Education, Care and Safeguarding",Children's & Education Services,103,Third Party Payments,505,Other Establishments,5041,Revenue,00.WELFARE
02/08/2017,1477890,283.36,SWIFT - FOSTER CARER PAYMENTS,299981,"Health, Education, Care and Safeguarding",Children's & Education Services,103,Third Party Payments,505,Other Establishments,5041,Revenue,00.WELFARE
02/08/2017,1477890,500.00,SWIFT - FOSTER CARER PAYMENTS,299981,"Health, Education, Care and Safeguarding",Children's & Education Services,103,Third Party Payments,505,Other Establishments,5041,Revenue,00.WELFARE
02/08/2017,1477891,120.00,SWIFT - FOSTER CARER PAYMENTS,299981,"Health, Education, Care and Safeguarding",Children's & Education Services,103,Third Party Payments,505,Other Establishments,5041,Revenue,00.WELFARE
02/08/2017,1477891,180.00,SWIFT - FOSTER CARER PAYMENTS,299981,"Health, Education, Care and Safeguarding",Children's & Education Services,103,Third Party Payments,505,Other Establishments,5041,Revenue,00.WELFARE
02/08/2017,1477891,368.10,SWIFT - FOSTER CARER PAYMENTS,299981,"Health, Education, Care and Safeguarding",Children's & Education Services,103,Third Party Payments,505,Other Establishments,5041,Revenue,00.WELFARE
02/08/2017,1477892,120.00,SWIFT - FOSTER CARER PAYMENTS,299981,"Health, Education, Care and Safeguarding",Children's & Education Services,103,Third Party Payments,505,Other Establishments,5041,Revenue,00.WELFARE
02/08/2017,1477892,120.00,SWIFT - FOSTER CARER PAYMENTS,299981,"Health, Education, Care and Safeguarding",Children's & Education Services,103,Third Party Payments,505,Other Establishments,5041,Revenue,00.WELFARE
02/08/2017,1477892,180.00,SWIFT - FOSTER CARER PAYMENTS,299981,"Health, Education, Care and Safeguarding",Children's & Education Services,103,Third Party Payments,505,Other Establishments,5041,Revenue,00.WELFARE
02/08/2017,1477892,368.10,SWIFT - FOSTER CARER PAYMENTS,299981,"Health, Education, Care and Safeguarding",Children's & Education Services,103,Third Party Payments,505,Other Establishments,5041,Revenue,00.WELFARE
02/08/2017,1477892,368.10,SWIFT - FOSTER CARER PAYMENTS,299981,"Health, Education, Care and Safeguarding",Children's & Education Services,103,Third Party Payments,505,Other Establishments,5041,Revenue,00.WELFARE
02/08/2017,1477893,120.00,SWIFT - FOSTER CARER PAYMENTS,299981,"Health, Education, Care and Safeguarding",Children's & Education Services,103,Third Party Payments,505,Other Establishments,5041,Revenue,00.WELFARE
02/08/2017,1477893,180.00,SWIFT - FOSTER CARER PAYMENTS,299981,"Health, Education, Care and Safeguarding",Children's & Education Services,103,Third Party Payments,505,Other Establishments,5041,Revenue,00.WELFARE
02/08/2017,1477893,200.00,SWIFT - FOSTER CARER PAYMENTS,299981,"Health, Education, Care and Safeguarding",Children's & Education Services,103,Third Party Payments,505,Voluntary Associations,5040,Revenue,00.WELFARE
02/08/2017,1477893,295.68,SWIFT - FOSTER CARER PAYMENTS,299981,"Health, Education, Care and Safeguarding",Children's & Education Services,103,Third Party Payments,505,Other Establishments,5041,Revenue,00.WELFARE
02/08/2017,1477893,368.10,SWIFT - FOSTER CARER PAYMENTS,299981,"Health, Education, Care and Safeguarding",Children's & Education Services,103,Third Party Payments,505,Other Establishments,5041,Revenue,00.WELFARE
02/08/2017,1477894,120.00,SWIFT - FOSTER CARER PAYMENTS,299981,"Health, Education, Care and Safeguarding",Children's & Education Services,103,Third Party Payments,505,Other Establishments,5041,Revenue,00.WELFARE
02/08/2017,1477894,180.00,SWIFT - FOSTER CARER PAYMENTS,299981,"Health, Education, Care and Safeguarding",Children's & Education Services,103,Third Party Payments,505,Other Establishments,5041,Revenue,00.WELFARE
02/08/2017,1477894,368.10,SWIFT - FOSTER CARER PAYMENTS,299981,"Health, Education, Care and Safeguarding",Children's & Education Services,103,Third Party Payments,505,Other Establishments,5041,Revenue,00.WELFARE
02/08/2017,1477895,11.41,SWIFT - FOSTER CARER PAYMENTS,299981,"Health, Education, Care and Safeguarding",Children's & Education Services,103,Third Party Payments,505,Other Establishments,5041,Revenue,00.WELFARE
02/08/2017,1477895,120.00,SWIFT - FOSTER CARER PAYMENTS,299981,"Health, Education, Care and Safeguarding",Children's & Education Services,103,Third Party Payments,505,Other Establishments,5041,Revenue,00.WELFARE
02/08/2017,1477895,120.00,SWIFT - FOSTER CARER PAYMENTS,299981,"Health, Education, Care and Safeguarding",Children's & Education Services,103,Third Party Payments,505,Other Establishments,5041,Revenue,00.WELFARE
02/08/2017,1477895,283.36,SWIFT - FOSTER CARER PAYMENTS,299981,"Health, Education, Care and Safeguarding",Children's & Education Services,103,Third Party Payments,505,Other Establishments,5041,Revenue,00.WELFARE
02/08/2017,1477895,283.36,SWIFT - FOSTER CARER PAYMENTS,299981,"Health, Education, Care and Safeguarding",Children's & Education Services,103,Third Party Payments,505,Other Establishments,5041,Revenue,00.WELFARE
02/08/2017,1477895,283.36,SWIFT - FOSTER CARER PAYMENTS,299981,"Health, Education, Care and Safeguarding",Children's & Education Services,103,Third Party Payments,505,Other Establishments,5041,Revenue,00.WELFARE
02/08/2017,1477895,731.56,SWIFT - FOSTER CARER PAYMENTS,299981,"Health, Education, Care and Safeguarding",Children's & Education Services,103,Third Party Payments,505,Other Establishments,5041,Revenue,00.WELFARE
02/08/2017,1477896,120.00,SWIFT - FOSTER CARER PAYMENTS,299981,"Health, Education, Care and Safeguarding",Children's & Education Services,103,Third Party Payments,505,Other Establishments,5041,Revenue,00.WELFARE
02/08/2017,1477896,180.00,SWIFT - FOSTER CARER PAYMENTS,299981,"Health, Education, Care and Safeguarding",Children's & Education Services,103,Third Party Payments,505,Other Establishments,5041,Revenue,00.WELFARE
02/08/2017,1477896,368.10,SWIFT - FOSTER CARER PAYMENTS,299981,"Health, Education, Care and Safeguarding",Children's & Education Services,103,Third Party Payments,505,Other Establishments,5041,Revenue,00.WELFARE
02/08/2017,1477898,134.49,SWIFT - FOSTER CARER PAYMENTS,299981,"Health, Education, Care and Safeguarding",Children's & Education Services,103,Third Party Payments,505,Other Establishments,5041,Revenue,00.WELFARE
02/08/2017,1477898,150.00,SWIFT - FOSTER CARER PAYMENTS,299981,"Health, Education, Care and Safeguarding",Children's & Education Services,103,Third Party Payments,505,Other Establishments,5041,Revenue,00.WELFARE
02/08/2017,1477898,268.98,SWIFT - FOSTER CARER PAYMENTS,299981,"Health, Education, Care and Safeguarding",Children's & Education Services,103,Third Party Payments,505,Other Establishments,5041,Revenue,00.WELFARE
02/08/2017,1477898,268.98,SWIFT - FOSTER CARER PAYMENTS,299981,"Health, Education, Care and Safeguarding",Children's & Education Services,103,Third Party Payments,505,Other Establishments,5041,Revenue,00.WELFARE
02/08/2017,1477898,300.00,SWIFT - FOSTER CARER PAYMENTS,299981,"Health, Education, Care and Safeguarding",Children's & Education Services,103,Third Party Payments,505,Other Establishments,5041,Revenue,00.WELFARE
02/08/2017,1477901,50.00,SWIFT - FOSTER CARER PAYMENTS,299981,"Health, Education, Care and Safeguarding",Children's & Education Services,103,Third Party Payments,505,Other Establishments,5041,Revenue,00.WELFARE
02/08/2017,1477901,120.00,SWIFT - FOSTER CARER PAYMENTS,299981,"Health, Education, Care and Safeguarding",Children's & Education Services,103,Third Party Payments,505,Other Establishments,5041,Revenue,00.WELFARE
02/08/2017,1477901,120.00,SWIFT - FOSTER CARER PAYMENTS,299981,"Health, Education, Care and Safeguarding",Children's & Education Services,103,Third Party Payments,505,Other Establishments,5041,Revenue,00.WELFARE
02/08/2017,1477901,180.00,SWIFT - FOSTER CARER PAYMENTS,299981,"Health, Education, Care and Safeguarding",Children's & Education Services,103,Third Party Payments,505,Other Establishments,5041,Revenue,00.WELFARE
02/08/2017,1477901,368.10,SWIFT - FOSTER CARER PAYMENTS,299981,"Health, Education, Care and Safeguarding",Children's & Education Services,103,Third Party Payments,505,Other Establishments,5041,Revenue,00.WELFARE
02/08/2017,1477901,368.10,SWIFT - FOSTER CARER PAYMENTS,299981,"Health, Education, Care and Safeguarding",Children's & Education Services,103,Third Party Payments,505,Other Establishments,5041,Revenue,00.WELFARE
02/08/2017,1477904,60.00,SWIFT - FOSTER CARER PAYMENTS,299981,"Health, Education, Care and Safeguarding",Children's & Education Services,103,Third Party Payments,505,Voluntary Associations,5040,Revenue,00.WELFARE
02/08/2017,1477904,180.00,SWIFT - FOSTER CARER PAYMENTS,299981,"Health, Education, Care and Safeguarding",Children's & Education Services,103,Third Party Payments,505,Other Establishments,5041,Revenue,00.WELFARE
02/08/2017,1477904,268.98,SWIFT - FOSTER CARER PAYMENTS,299981,"Health, Education, Care and Safeguarding",Children's & Education Services,103,Third Party Payments,505,Other Establishments,5041,Revenue,00.WELFARE
02/08/2017,1477905,84.74,SWIFT - FOSTER CARER PAYMENTS,299981,"Health, Education, Care and Safeguarding",Children's & Education Services,103,Third Party Payments,505,Other Establishments,5041,Revenue,00.WELFARE
02/08/2017,1477905,146.45,SWIFT - FOSTER CARER PAYMENTS,299981,"Health, Education, Care and Safeguarding",Children's & Education Services,103,Third Party Payments,505,Other Establishments,5041,Revenue,00.WELFARE
02/08/2017,1477905,283.36,SWIFT - FOSTER CARER PAYMENTS,299981,"Health, Education, Care and Safeguarding",Children's & Education Services,103,Third Party Payments,505,Other Establishments,5041,Revenue,00.WELFARE
02/08/2017,1477905,500.00,SWIFT - FOSTER CARER PAYMENTS,299981,"Health, Education, Care and Safeguarding",Children's & Education Services,103,Third Party Payments,505,Other Establishments,5041,Revenue,00.WELFARE
02/08/2017,1477906,120.00,SWIFT - FOSTER CARER PAYMENTS,299981,"Health, Education, Care and Safeguarding",Children's & Education Services,103,Third Party Payments,505,Other Establishments,5041,Revenue,00.WELFARE
02/08/2017,1477906,180.00,SWIFT - FOSTER CARER PAYMENTS,299981,"Health, Education, Care and Safeguarding",Children's & Education Services,103,Third Party Payments,505,Other Establishments,5041,Revenue,00.WELFARE
02/08/2017,1477906,283.36,SWIFT - FOSTER CARER PAYMENTS,299981,"Health, Education, Care and Safeguarding",Children's & Education Services,103,Third Party Payments,505,Other Establishments,5041,Revenue,00.WELFARE
02/08/2017,1477906,350.00,SWIFT - FOSTER CARER PAYMENTS,299981,"Health, Education, Care and Safeguarding",Children's & Education Services,103,Third Party Payments,505,Other Establishments,5041,Revenue,00.WELFARE
02/08/2017,1477907,100.00,SWIFT - FOSTER CARER PAYMENTS,299981,"Health, Education, Care and Safeguarding",Children's & Education Services,103,Third Party Payments,505,Voluntary Associations,5040,Revenue,00.WELFARE
02/08/2017,1477907,180.00,SWIFT - FOSTER CARER PAYMENTS,299981,"Health, Education, Care and Safeguarding",Children's & Education Services,103,Third Party Payments,505,Other Establishments,5041,Revenue,00.WELFARE
02/08/2017,1477907,295.68,SWIFT - FOSTER CARER PAYMENTS,299981,"Health, Education, Care and Safeguarding",Children's & Education Services,103,Third Party Payments,505,Other Establishments,5041,Revenue,00.WELFARE
02/08/2017,1477908,23.96,SWIFT - FOSTER CARER PAYMENTS,299981,"Health, Education, Care and Safeguarding",Children's & Education Services,103,Third Party Payments,505,Other Establishments,5041,Revenue,00.WELFARE
02/08/2017,1477908,84.74,SWIFT - FOSTER CARER PAYMENTS,299981,"Health, Education, Care and Safeguarding",Children's & Education Services,103,Third Party Payments,505,Other Establishments,5041,Revenue,00.WELFARE
02/08/2017,1477908,150.00,SWIFT - FOSTER CARER PAYMENTS,299981,"Health, Education, Care and Safeguarding",Children's & Education Services,103,Third Party Payments,505,Other Establishments,5041,Revenue,00.WELFARE
02/08/2017,1477908,283.36,SWIFT - FOSTER CARER PAYMENTS,299981,"Health, Education, Care and Safeguarding",Children's & Education Services,103,Third Party Payments,505,Other Establishments,5041,Revenue,00.WELFARE
02/08/2017,1477908,300.00,SWIFT - FOSTER CARER PAYMENTS,299981,"Health, Education, Care and Safeguarding",Children's & Education Services,103,Third Party Payments,505,Other Establishments,5041,Revenue,00.WELFARE
02/08/2017,1477908,368.10,SWIFT - FOSTER CARER PAYMENTS,299981,"Health, Education, Care and Safeguarding",Children's & Education Services,103,Third Party Payments,505,Other Establishments,5041,Revenue,00.WELFARE
02/08/2017,1477909,120.00,SWIFT - FOSTER CARER PAYMENTS,299981,"Health, Education, Care and Safeguarding",Children's & Education Services,103,Third Party Payments,505,Other Establishments,5041,Revenue,00.WELFARE
02/08/2017,1477909,180.00,SWIFT - FOSTER CARER PAYMENTS,299981,"Health, Education, Care and Safeguarding",Children's & Education Services,103,Third Party Payments,505,Other Establishments,5041,Revenue,00.WELFARE
02/08/2017,1477909,283.36,SWIFT - FOSTER CARER PAYMENTS,299981,"Health, Education, Care and Safeguarding",Children's & Education Services,103,Third Party Payments,505,Other Establishments,5041,Revenue,00.WELFARE
02/08/2017,1477911,100.00,SWIFT - FOSTER CARER PAYMENTS,299981,"Health, Education, Care and Safeguarding",Children's & Education Services,103,Third Party Payments,505,Voluntary Associations,5040,Revenue,00.WELFARE
02/08/2017,1477911,120.00,SWIFT - FOSTER CARER PAYMENTS,299981,"Health, Education, Care and Safeguarding",Children's & Education Services,103,Third Party Payments,505,Other Establishments,5041,Revenue,00.WELFARE
02/08/2017,1477911,180.00,SWIFT - FOSTER CARER PAYMENTS,299981,"Health, Education, Care and Safeguarding",Children's & Education Services,103,Third Party Payments,505,Other Establishments,5041,Revenue,00.WELFARE
02/08/2017,1477911,368.10,SWIFT - FOSTER CARER PAYMENTS,299981,"Health, Education, Care and Safeguarding",Children's & Education Services,103,Third Party Payments,505,Other Establishments,5041,Revenue,00.WELFARE
02/08/2017,1477912,-283.36,SWIFT - FOSTER CARER PAYMENTS,299981,"Health, Education, Care and Safeguarding",Children's & Education Services,103,Third Party Payments,505,Other Establishments,5041,Revenue,00.WELFARE
02/08/2017,1477912,-120.00,SWIFT - FOSTER CARER PAYMENTS,299981,"Health, Education, Care and Safeguarding",Children's & Education Services,103,Third Party Payments,505,Other Establishments,5041,Revenue,00.WELFARE
02/08/2017,1477912,120.00,SWIFT - FOSTER CARER PAYMENTS,299981,"Health, Education, Care and Safeguarding",Children's & Education Services,103,Third Party Payments,505,Other Establishments,5041,Revenue,00.WELFARE
02/08/2017,1477912,120.00,SWIFT - FOSTER CARER PAYMENTS,299981,"Health, Education, Care and Safeguarding",Children's & Education Services,103,Third Party Payments,505,Other Establishments,5041,Revenue,00.WELFARE
02/08/2017,1477912,180.00,SWIFT - FOSTER CARER PAYMENTS,299981,"Health, Education, Care and Safeguarding",Children's & Education Services,103,Third Party Payments,505,Other Establishments,5041,Revenue,00.WELFARE
02/08/2017,1477912,283.36,SWIFT - FOSTER CARER PAYMENTS,299981,"Health, Education, Care and Safeguarding",Children's & Education Services,103,Third Party Payments,505,Other Establishments,5041,Revenue,00.WELFARE
02/08/2017,1477912,368.10,SWIFT - FOSTER CARER PAYMENTS,299981,"Health, Education, Care and Safeguarding",Children's & Education Services,103,Third Party Payments,505,Other Establishments,5041,Revenue,00.WELFARE
02/08/2017,1477914,150.00,SWIFT - FOSTER CARER PAYMENTS,299981,"Health, Education, Care and Safeguarding",Children's & Education Services,103,Third Party Payments,505,Other Establishments,5041,Revenue,00.WELFARE
02/08/2017,1477914,150.00,SWIFT - FOSTER CARER PAYMENTS,299981,"Health, Education, Care and Safeguarding",Children's & Education Services,103,Third Party Payments,505,Other Establishments,5041,Revenue,00.WELFARE
02/08/2017,1477914,268.98,SWIFT - FOSTER CARER PAYMENTS,299981,"Health, Education, Care and Safeguarding",Children's & Education Services,103,Third Party Payments,505,Other Establishments,5041,Revenue,00.WELFARE
02/08/2017,1477914,268.98,SWIFT - FOSTER CARER PAYMENTS,299981,"Health, Education, Care and Safeguarding",Children's & Education Services,103,Third Party Payments,505,Other Establishments,5041,Revenue,00.WELFARE
02/08/2017,1477914,300.00,SWIFT - FOSTER CARER PAYMENTS,299981,"Health, Education, Care and Safeguarding",Children's & Education Services,103,Third Party Payments,505,Other Establishments,5041,Revenue,00.WELFARE
02/08/2017,1477914,368.10,SWIFT - FOSTER CARER PAYMENTS,299981,"Health, Education, Care and Safeguarding",Children's & Education Services,103,Third Party Payments,505,Other Establishments,5041,Revenue,00.WELFARE
02/08/2017,1477915,-27.45,SWIFT - FOSTER CARER PAYMENTS,299981,"Health, Education, Care and Safeguarding",Children's & Education Services,103,Third Party Payments,505,Other Establishments,5041,Revenue,00.WELFARE
02/08/2017,1477915,105.60,SWIFT - FOSTER CARER PAYMENTS,299981,"Health, Education, Care and Safeguarding",Children's & Education Services,103,Third Party Payments,505,Other Establishments,5041,Revenue,00.WELFARE
02/08/2017,1477915,180.00,SWIFT - FOSTER CARER PAYMENTS,299981,"Health, Education, Care and Safeguarding",Children's & Education Services,103,Third Party Payments,505,Other Establishments,5041,Revenue,00.WELFARE
02/08/2017,1477916,283.36,SWIFT - FOSTER CARER PAYMENTS,299981,"Health, Education, Care and Safeguarding",Children's & Education Services,103,Third Party Payments,505,Other Establishments,5041,Revenue,00.WELFARE
02/08/2017,1477916,731.56,SWIFT - FOSTER CARER PAYMENTS,299981,"Health, Education, Care and Safeguarding",Children's & Education Services,103,Third Party Payments,505,Other Establishments,5041,Revenue,00.WELFARE
02/08/2017,1477917,180.00,SWIFT - FOSTER CARER PAYMENTS,299981,"Health, Education, Care and Safeguarding",Children's & Education Services,103,Third Party Payments,505,Other Establishments,5041,Revenue,00.WELFARE
02/08/2017,1477917,268.98,SWIFT - FOSTER CARER PAYMENTS,299981,"Health, Education, Care and Safeguarding",Children's & Education Services,103,Third Party Payments,505,Other Establishments,5041,Revenue,00.WELFARE
02/08/2017,1477917,268.98,SWIFT - FOSTER CARER PAYMENTS,299981,"Health, Education, Care and Safeguarding",Children's & Education Services,103,Third Party Payments,505,Other Establishments,5041,Revenue,00.WELFARE
02/08/2017,1477918,100.00,SWIFT - FOSTER CARER PAYMENTS,299981,"Health, Education, Care and Safeguarding",Children's & Education Services,103,Third Party Payments,505,Voluntary Associations,5040,Revenue,00.WELFARE
02/08/2017,1477918,180.00,SWIFT - FOSTER CARER PAYMENTS,299981,"Health, Education, Care and Safeguarding",Children's & Education Services,103,Third Party Payments,505,Other Establishments,5041,Revenue,00.WELFARE
02/08/2017,1477918,488.10,SWIFT - FOSTER CARER PAYMENTS,299981,"Health, Education, Care and Safeguarding",Children's & Education Services,103,Third Party Payments,505,Other Establishments,5041,Revenue,00.WELFARE
02/08/2017,1477920,283.36,SWIFT - FOSTER CARER PAYMENTS,299981,"Health, Education, Care and Safeguarding",Children's & Education Services,103,Third Party Payments,505,Other Establishments,5041,Revenue,00.WELFARE
02/08/2017,1477923,166.20,SWIFT - FOSTER CARER PAYMENTS,299981,"Health, Education, Care and Safeguarding",Children's & Education Services,103,Third Party Payments,505,Other Establishments,5041,Revenue,00.WELFARE
02/08/2017,1477923,166.22,SWIFT - FOSTER CARER PAYMENTS,299981,"Health, Education, Care and Safeguarding",Children's & Education Services,103,Third Party Payments,505,Other Establishments,5041,Revenue,00.WELFARE
02/08/2017,1477924,295.68,SWIFT - FOSTER CARER PAYMENTS,299981,"Health, Education, Care and Safeguarding",Children's & Education Services,103,Third Party Payments,505,Other Establishments,5041,Revenue,00.WELFARE
02/08/2017,1477925,-80.00,SWIFT - FOSTER CARER PAYMENTS,299981,"Health, Education, Care and Safeguarding",Children's & Education Services,103,Third Party Payments,505,Other Establishments,5041,Revenue,00.WELFARE
02/08/2017,1477925,120.00,SWIFT - FOSTER CARER PAYMENTS,299981,"Health, Education, Care and Safeguarding",Children's & Education Services,103,Third Party Payments,505,Other Establishments,5041,Revenue,00.WELFARE
02/08/2017,1477925,368.10,SWIFT - FOSTER CARER PAYMENTS,299981,"Health, Education, Care and Safeguarding",Children's & Education Services,103,Third Party Payments,505,Other Establishments,5041,Revenue,00.WELFARE
02/08/2017,1477926,84.74,SWIFT - FOSTER CARER PAYMENTS,299981,"Health, Education, Care and Safeguarding",Children's & Education Services,103,Third Party Payments,505,Other Establishments,5041,Revenue,00.WELFARE
02/08/2017,1477926,283.36,SWIFT - FOSTER CARER PAYMENTS,299981,"Health, Education, Care and Safeguarding",Children's & Education Services,103,Third Party Payments,505,Other Establishments,5041,Revenue,00.WELFARE
02/08/2017,1477927,120.00,SWIFT - FOSTER CARER PAYMENTS,299981,"Health, Education, Care and Safeguarding",Children's & Education Services,103,Third Party Payments,505,Other Establishments,5041,Revenue,00.WELFARE
02/08/2017,1477927,120.00,SWIFT - FOSTER CARER PAYMENTS,299981,"Health, Education, Care and Safeguarding",Children's & Education Services,103,Third Party Payments,505,Other Establishments,5041,Revenue,00.WELFARE
02/08/2017,1477927,180.00,SWIFT - FOSTER CARER PAYMENTS,299981,"Health, Education, Care and Safeguarding",Children's & Education Services,103,Third Party Payments,505,Other Establishments,5041,Revenue,00.WELFARE
02/08/2017,1477927,368.10,SWIFT - FOSTER CARER PAYMENTS,299981,"Health, Education, Care and Safeguarding",Children's & Education Services,103,Third Party Payments,505,Other Establishments,5041,Revenue,00.WELFARE
02/08/2017,1477927,368.10,SWIFT - FOSTER CARER PAYMENTS,299981,"Health, Education, Care and Safeguarding",Children's & Education Services,103,Third Party Payments,505,Other Establishments,5041,Revenue,00.WELFARE
02/08/2017,1477927,419.39,SWIFT - FOSTER CARER PAYMENTS,299981,"Health, Education, Care and Safeguarding",Children's & Education Services,103,Third Party Payments,505,Other Establishments,5041,Revenue,00.WELFARE
02/08/2017,1477928,295.68,SWIFT - FOSTER CARER PAYMENTS,299981,"Health, Education, Care and Safeguarding",Children's & Education Services,103,Third Party Payments,505,Other Establishments,5041,Revenue,00.WELFARE
02/08/2017,1477929,84.74,SWIFT - FOSTER CARER PAYMENTS,299981,"Health, Education, Care and Safeguarding",Children's & Education Services,103,Third Party Payments,505,Other Establishments,5041,Revenue,00.WELFARE
02/08/2017,1477929,150.00,SWIFT - FOSTER CARER PAYMENTS,299981,"Health, Education, Care and Safeguarding",Children's & Education Services,103,Third Party Payments,505,Other Establishments,5041,Revenue,00.WELFARE
02/08/2017,1477929,150.00,SWIFT - FOSTER CARER PAYMENTS,299981,"Health, Education, Care and Safeguarding",Children's & Education Services,103,Third Party Payments,505,Other Establishments,5041,Revenue,00.WELFARE
02/08/2017,1477929,283.36,SWIFT - FOSTER CARER PAYMENTS,299981,"Health, Education, Care and Safeguarding",Children's & Education Services,103,Third Party Payments,505,Other Establishments,5041,Revenue,00.WELFARE
02/08/2017,1477929,283.36,SWIFT - FOSTER CARER PAYMENTS,299981,"Health, Education, Care and Safeguarding",Children's & Education Services,103,Third Party Payments,505,Other Establishments,5041,Revenue,00.WELFARE
02/08/2017,1477929,295.68,SWIFT - FOSTER CARER PAYMENTS,299981,"Health, Education, Care and Safeguarding",Children's & Education Services,103,Third Party Payments,505,Other Establishments,5041,Revenue,00.WELFARE
02/08/2017,1477929,300.00,SWIFT - FOSTER CARER PAYMENTS,299981,"Health, Education, Care and Safeguarding",Children's & Education Services,103,Third Party Payments,505,Other Establishments,5041,Revenue,00.WELFARE
02/08/2017,1477931,326.70,SWIFT - FOSTER CARER PAYMENTS,299981,"Health, Education, Care and Safeguarding",Children's & Education Services,103,Transfer Payments,506,School Children and Students,5046,Revenue,00.WELFARE
02/08/2017,1477933,180.00,SWIFT - FOSTER CARER PAYMENTS,299981,"Health, Education, Care and Safeguarding",Children's & Education Services,103,Third Party Payments,505,Other Establishments,5041,Revenue,00.WELFARE
02/08/2017,1477933,295.68,SWIFT - FOSTER CARER PAYMENTS,299981,"Health, Education, Care and Safeguarding",Children's & Education Services,103,Third Party Payments,505,Other Establishments,5041,Revenue,00.WELFARE
02/08/2017,1477935,268.98,SWIFT - FOSTER CARER PAYMENTS,299981,"Health, Education, Care and Safeguarding",Children's & Education Services,103,Third Party Payments,505,Other Establishments,5041,Revenue,00.WELFARE
02/08/2017,1477935,295.68,SWIFT - FOSTER CARER PAYMENTS,299981,"Health, Education, Care and Safeguarding",Children's & Education Services,103,Third Party Payments,505,Other Establishments,5041,Revenue,00.WELFARE
02/08/2017,1477936,150.00,SWIFT - FOSTER CARER PAYMENTS,299981,"Health, Education, Care and Safeguarding",Children's & Education Services,103,Third Party Payments,505,Other Establishments,5041,Revenue,00.WELFARE
02/08/2017,1477936,150.00,SWIFT - FOSTER CARER PAYMENTS,299981,"Health, Education, Care and Safeguarding",Children's & Education Services,103,Third Party Payments,505,Other Establishments,5041,Revenue,00.WELFARE
02/08/2017,1477936,295.68,SWIFT - FOSTER CARER PAYMENTS,299981,"Health, Education, Care and Safeguarding",Children's & Education Services,103,Third Party Payments,505,Other Establishments,5041,Revenue,00.WELFARE
02/08/2017,1477936,295.68,SWIFT - FOSTER CARER PAYMENTS,299981,"Health, Education, Care and Safeguarding",Children's & Education Services,103,Third Party Payments,505,Other Establishments,5041,Revenue,00.WELFARE
02/08/2017,1477936,295.68,SWIFT - FOSTER CARER PAYMENTS,299981,"Health, Education, Care and Safeguarding",Children's & Education Services,103,Third Party Payments,505,Other Establishments,5041,Revenue,00.WELFARE
02/08/2017,1477936,300.00,SWIFT - FOSTER CARER PAYMENTS,299981,"Health, Education, Care and Safeguarding",Children's & Education Services,103,Third Party Payments,505,Other Establishments,5041,Revenue,00.WELFARE
02/08/2017,1477937,120.00,SWIFT - FOSTER CARER PAYMENTS,299981,"Health, Education, Care and Safeguarding",Children's & Education Services,103,Third Party Payments,505,Other Establishments,5041,Revenue,00.WELFARE
02/08/2017,1477937,368.10,SWIFT - FOSTER CARER PAYMENTS,299981,"Health, Education, Care and Safeguarding",Children's & Education Services,103,Third Party Payments,505,Other Establishments,5041,Revenue,00.WELFARE
02/08/2017,1477937,368.10,SWIFT - FOSTER CARER PAYMENTS,299981,"Health, Education, Care and Safeguarding",Children's & Education Services,103,Third Party Payments,505,Other Establishments,5041,Revenue,00.WELFARE
02/08/2017,1477937,731.56,SWIFT - FOSTER CARER PAYMENTS,299981,"Health, Education, Care and Safeguarding",Children's & Education Services,103,Third Party Payments,505,Other Establishments,5041,Revenue,00.WELFARE
02/08/2017,1477939,-283.36,SWIFT - FOSTER CARER PAYMENTS,299981,"Health, Education, Care and Safeguarding",Children's & Education Services,103,Third Party Payments,505,Other Establishments,5041,Revenue,00.WELFARE
02/08/2017,1477939,-120.00,SWIFT - FOSTER CARER PAYMENTS,299981,"Health, Education, Care and Safeguarding",Children's & Education Services,103,Third Party Payments,505,Other Establishments,5041,Revenue,00.WELFARE
02/08/2017,1477939,68.57,SWIFT - FOSTER CARER PAYMENTS,299981,"Health, Education, Care and Safeguarding",Children's & Education Services,103,Third Party Payments,505,Other Establishments,5041,Revenue,00.WELFARE
02/08/2017,1477939,84.74,SWIFT - FOSTER CARER PAYMENTS,299981,"Health, Education, Care and Safeguarding",Children's & Education Services,103,Third Party Payments,505,Other Establishments,5041,Revenue,00.WELFARE
02/08/2017,1477939,120.00,SWIFT - FOSTER CARER PAYMENTS,299981,"Health, Education, Care and Safeguarding",Children's & Education Services,103,Third Party Payments,505,Other Establishments,5041,Revenue,00.WELFARE
02/08/2017,1477939,120.00,SWIFT - FOSTER CARER PAYMENTS,299981,"Health, Education, Care and Safeguarding",Children's & Education Services,103,Third Party Payments,505,Other Establishments,5041,Revenue,00.WELFARE
02/08/2017,1477939,180.00,SWIFT - FOSTER CARER PAYMENTS,299981,"Health, Education, Care and Safeguarding",Children's & Education Services,103,Third Party Payments,505,Other Establishments,5041,Revenue,00.WELFARE
02/08/2017,1477939,210.34,SWIFT - FOSTER CARER PAYMENTS,299981,"Health, Education, Care and Safeguarding",Children's & Education Services,103,Third Party Payments,505,Other Establishments,5041,Revenue,00.WELFARE
02/08/2017,1477939,283.36,SWIFT - FOSTER CARER PAYMENTS,299981,"Health, Education, Care and Safeguarding",Children's & Education Services,103,Third Party Payments,505,Other Establishments,5041,Revenue,00.WELFARE
02/08/2017,1477939,283.36,SWIFT - FOSTER CARER PAYMENTS,299981,"Health, Education, Care and Safeguarding",Children's & Education Services,103,Third Party Payments,505,Other Establishments,5041,Revenue,00.WELFARE
02/08/2017,1477942,180.00,SWIFT - FOSTER CARER PAYMENTS,299981,"Health, Education, Care and Safeguarding",Children's & Education Services,103,Third Party Payments,505,Other Establishments,5041,Revenue,00.WELFARE
02/08/2017,1477942,368.10,SWIFT - FOSTER CARER PAYMENTS,299981,"Health, Education, Care and Safeguarding",Children's & Education Services,103,Third Party Payments,505,Other Establishments,5041,Revenue,00.WELFARE
02/08/2017,1477945,-1056.00,SWIFT - FOSTER CARER PAYMENTS,299981,"Health, Education, Care and Safeguarding",Children's & Education Services,103,Third Party Payments,505,Other Establishments,5041,Revenue,00.WELFARE
02/08/2017,1477945,-147.84,SWIFT - FOSTER CARER PAYMENTS,299981,"Health, Education, Care and Safeguarding",Children's & Education Services,103,Third Party Payments,505,Other Establishments,5041,Revenue,00.WELFARE
02/08/2017,1477945,63.36,SWIFT - FOSTER CARER PAYMENTS,299981,"Health, Education, Care and Safeguarding",Children's & Education Services,103,Third Party Payments,505,Other Establishments,5041,Revenue,00.WELFARE
02/08/2017,1477945,147.84,SWIFT - FOSTER CARER PAYMENTS,299981,"Health, Education, Care and Safeguarding",Children's & Education Services,103,Third Party Payments,505,Other Establishments,5041,Revenue,00.WELFARE
02/08/2017,1477945,180.00,SWIFT - FOSTER CARER PAYMENTS,299981,"Health, Education, Care and Safeguarding",Children's & Education Services,103,Third Party Payments,505,Other Establishments,5041,Revenue,00.WELFARE
02/08/2017,1477945,232.32,SWIFT - FOSTER CARER PAYMENTS,299981,"Health, Education, Care and Safeguarding",Children's & Education Services,103,Third Party Payments,505,Other Establishments,5041,Revenue,00.WELFARE
02/08/2017,1477945,232.32,SWIFT - FOSTER CARER PAYMENTS,299981,"Health, Education, Care and Safeguarding",Children's & Education Services,103,Third Party Payments,505,Other Establishments,5041,Revenue,00.WELFARE
02/08/2017,1477945,268.98,SWIFT - FOSTER CARER PAYMENTS,299981,"Health, Education, Care and Safeguarding",Children's & Education Services,103,Third Party Payments,505,Other Establishments,5041,Revenue,00.WELFARE
02/08/2017,1477945,295.68,SWIFT - FOSTER CARER PAYMENTS,299981,"Health, Education, Care and Safeguarding",Children's & Education Services,103,Third Party Payments,505,Other Establishments,5041,Revenue,00.WELFARE
02/08/2017,1477945,295.68,SWIFT - FOSTER CARER PAYMENTS,299981,"Health, Education, Care and Safeguarding",Children's & Education Services,103,Third Party Payments,505,Other Establishments,5041,Revenue,00.WELFARE
02/08/2017,1477947,268.98,SWIFT - FOSTER CARER PAYMENTS,299981,"Health, Education, Care and Safeguarding",Children's & Education Services,103,Third Party Payments,505,Other Establishments,5041,Revenue,00.WELFARE
02/08/2017,1477947,268.98,SWIFT - FOSTER CARER PAYMENTS,299981,"Health, Education, Care and Safeguarding",Children's & Education Services,103,Third Party Payments,505,Other Establishments,5041,Revenue,00.WELFARE
02/08/2017,1477948,15.00,SWIFT - FOSTER CARER PAYMENTS,299981,"Health, Education, Care and Safeguarding",Children's & Education Services,103,Third Party Payments,505,Voluntary Associations,5040,Revenue,00.WELFARE
02/08/2017,1477948,150.00,SWIFT - FOSTER CARER PAYMENTS,299981,"Health, Education, Care and Safeguarding",Children's & Education Services,103,Third Party Payments,505,Other Establishments,5041,Revenue,00.WELFARE
02/08/2017,1477948,238.70,SWIFT - FOSTER CARER PAYMENTS,299981,"Health, Education, Care and Safeguarding",Children's & Education Services,103,Third Party Payments,505,Other Establishments,5041,Revenue,00.WELFARE
02/08/2017,1477948,283.36,SWIFT - FOSTER CARER PAYMENTS,299981,"Health, Education, Care and Safeguarding",Children's & Education Services,103,Third Party Payments,505,Other Establishments,5041,Revenue,00.WELFARE
02/08/2017,1477948,300.00,SWIFT - FOSTER CARER PAYMENTS,299981,"Health, Education, Care and Safeguarding",Children's & Education Services,103,Third Party Payments,505,Other Establishments,5041,Revenue,00.WELFARE
02/08/2017,1477948,368.10,SWIFT - FOSTER CARER PAYMENTS,299981,"Health, Education, Care and Safeguarding",Children's & Education Services,103,Third Party Payments,505,Other Establishments,5041,Revenue,00.WELFARE
02/08/2017,1477949,84.74,SWIFT - FOSTER CARER PAYMENTS,299981,"Health, Education, Care and Safeguarding",Children's & Education Services,103,Third Party Payments,505,Other Establishments,5041,Revenue,00.WELFARE
02/08/2017,1477949,120.00,SWIFT - FOSTER CARER PAYMENTS,299981,"Health, Education, Care and Safeguarding",Children's & Education Services,103,Third Party Payments,505,Other Establishments,5041,Revenue,00.WELFARE
02/08/2017,1477949,180.00,SWIFT - FOSTER CARER PAYMENTS,299981,"Health, Education, Care and Safeguarding",Children's & Education Services,103,Third Party Payments,505,Other Establishments,5041,Revenue,00.WELFARE
02/08/2017,1477949,283.36,SWIFT - FOSTER CARER PAYMENTS,299981,"Health, Education, Care and Safeguarding",Children's & Education Services,103,Third Party Payments,505,Other Establishments,5041,Revenue,00.WELFARE
02/08/2017,1477950,80.00,SWIFT - FOSTER CARER PAYMENTS,299981,"Health, Education, Care and Safeguarding",Children's & Education Services,103,Third Party Payments,505,Other Establishments,5041,Revenue,00.WELFARE
02/08/2017,1477950,283.36,SWIFT - FOSTER CARER PAYMENTS,299981,"Health, Education, Care and Safeguarding",Children's & Education Services,103,Third Party Payments,505,Other Establishments,5041,Revenue,00.WELFARE
02/08/2017,1477950,1000.00,SWIFT - FOSTER CARER PAYMENTS,299981,"Health, Education, Care and Safeguarding",Children's & Education Services,103,Third Party Payments,505,Other Establishments,5041,Revenue,00.WELFARE
02/08/2017,1477951,103.70,SWIFT - FOSTER CARER PAYMENTS,299981,"Health, Education, Care and Safeguarding",Children's & Education Services,103,Transfer Payments,506,School Children and Students,5046,Revenue,00.WELFARE
02/08/2017,1477951,103.70,SWIFT - FOSTER CARER PAYMENTS,299981,"Health, Education, Care and Safeguarding",Children's & Education Services,103,Transfer Payments,506,School Children and Students,5046,Revenue,00.WELFARE
02/08/2017,1477951,103.70,SWIFT - FOSTER CARER PAYMENTS,299981,"Health, Education, Care and Safeguarding",Children's & Education Services,103,Transfer Payments,506,School Children and Students,5046,Revenue,00.WELFARE
02/08/2017,1477952,34.24,SWIFT - FOSTER CARER PAYMENTS,299981,"Health, Education, Care and Safeguarding",Children's & Education Services,103,Third Party Payments,505,Other Establishments,5041,Revenue,00.WELFARE
02/08/2017,1477952,180.00,SWIFT - FOSTER CARER PAYMENTS,299981,"Health, Education, Care and Safeguarding",Children's & Education Services,103,Third Party Payments,505,Other Establishments,5041,Revenue,00.WELFARE
02/08/2017,1477952,211.34,SWIFT - FOSTER CARER PAYMENTS,299981,"Health, Education, Care and Safeguarding",Children's & Education Services,103,Third Party Payments,505,Other Establishments,5041,Revenue,00.WELFARE
02/08/2017,1477952,244.40,SWIFT - FOSTER CARER PAYMENTS,299981,"Health, Education, Care and Safeguarding",Children's & Education Services,103,Third Party Payments,505,Other Establishments,5041,Revenue,00.WELFARE
02/08/2017,1477953,120.00,SWIFT - FOSTER CARER PAYMENTS,299981,"Health, Education, Care and Safeguarding",Children's & Education Services,103,Third Party Payments,505,Other Establishments,5041,Revenue,00.WELFARE
02/08/2017,1477953,180.00,SWIFT - FOSTER CARER PAYMENTS,299981,"Health, Education, Care and Safeguarding",Children's & Education Services,103,Third Party Payments,505,Other Establishments,5041,Revenue,00.WELFARE
02/08/2017,1477953,283.36,SWIFT - FOSTER CARER PAYMENTS,299981,"Health, Education, Care and Safeguarding",Children's & Education Services,103,Third Party Payments,505,Other Establishments,5041,Revenue,00.WELFARE
02/08/2017,1477955,84.74,SWIFT - FOSTER CARER PAYMENTS,299981,"Health, Education, Care and Safeguarding",Children's & Education Services,103,Third Party Payments,505,Other Establishments,5041,Revenue,00.WELFARE
02/08/2017,1477955,120.00,SWIFT - FOSTER CARER PAYMENTS,299981,"Health, Education, Care and Safeguarding",Children's & Education Services,103,Third Party Payments,505,Other Establishments,5041,Revenue,00.WELFARE
02/08/2017,1477955,180.00,SWIFT - FOSTER CARER PAYMENTS,299981,"Health, Education, Care and Safeguarding",Children's & Education Services,103,Third Party Payments,505,Other Establishments,5041,Revenue,00.WELFARE
02/08/2017,1477955,283.36,SWIFT - FOSTER CARER PAYMENTS,299981,"Health, Education, Care and Safeguarding",Children's & Education Services,103,Third Party Payments,505,Other Establishments,5041,Revenue,00.WELFARE
02/08/2017,1477956,156.90,SWIFT - FOSTER CARER PAYMENTS,299981,"Health, Education, Care and Safeguarding",Children's & Education Services,103,Transfer Payments,506,School Children and Students,5046,Revenue,00.WELFARE
02/08/2017,1477956,156.90,SWIFT - FOSTER CARER PAYMENTS,299981,"Health, Education, Care and Safeguarding",Children's & Education Services,103,Transfer Payments,506,School Children and Students,5046,Revenue,00.WELFARE
02/08/2017,1477957,180.00,SWIFT - FOSTER CARER PAYMENTS,299981,"Health, Education, Care and Safeguarding",Children's & Education Services,103,Third Party Payments,505,Other Establishments,5041,Revenue,00.WELFARE
02/08/2017,1477957,268.98,SWIFT - FOSTER CARER PAYMENTS,299981,"Health, Education, Care and Safeguarding",Children's & Education Services,103,Third Party Payments,505,Other Establishments,5041,Revenue,00.WELFARE
02/08/2017,1477960,283.36,SWIFT - FOSTER CARER PAYMENTS,299981,"Health, Education, Care and Safeguarding",Children's & Education Services,103,Third Party Payments,505,Other Establishments,5041,Revenue,00.WELFARE
02/08/2017,1477963,84.74,SWIFT - FOSTER CARER PAYMENTS,299981,"Health, Education, Care and Safeguarding",Children's & Education Services,103,Third Party Payments,505,Other Establishments,5041,Revenue,00.WELFARE
02/08/2017,1477963,180.00,SWIFT - FOSTER CARER PAYMENTS,299981,"Health, Education, Care and Safeguarding",Children's & Education Services,103,Third Party Payments,505,Other Establishments,5041,Revenue,00.WELFARE
02/08/2017,1477963,283.36,SWIFT - FOSTER CARER PAYMENTS,299981,"Health, Education, Care and Safeguarding",Children's & Education Services,103,Third Party Payments,505,Other Establishments,5041,Revenue,00.WELFARE
02/08/2017,1477964,120.00,SWIFT - FOSTER CARER PAYMENTS,299981,"Health, Education, Care and Safeguarding",Children's & Education Services,103,Third Party Payments,505,Other Establishments,5041,Revenue,00.WELFARE
02/08/2017,1477964,180.00,SWIFT - FOSTER CARER PAYMENTS,299981,"Health, Education, Care and Safeguarding",Children's & Education Services,103,Third Party Payments,505,Other Establishments,5041,Revenue,00.WELFARE
02/08/2017,1477964,283.36,SWIFT - FOSTER CARER PAYMENTS,299981,"Health, Education, Care and Safeguarding",Children's & Education Services,103,Third Party Payments,505,Other Establishments,5041,Revenue,00.WELFARE
02/08/2017,1477965,-78.15,SWIFT - FOSTER CARER PAYMENTS,299981,"Health, Education, Care and Safeguarding",Children's & Education Services,103,Third Party Payments,505,Other Establishments,5041,Revenue,00.WELFARE
02/08/2017,1477965,-31.26,SWIFT - FOSTER CARER PAYMENTS,299981,"Health, Education, Care and Safeguarding",Children's & Education Services,103,Third Party Payments,505,Other Establishments,5041,Revenue,00.WELFARE
02/08/2017,1477965,120.00,SWIFT - FOSTER CARER PAYMENTS,299981,"Health, Education, Care and Safeguarding",Children's & Education Services,103,Third Party Payments,505,Other Establishments,5041,Revenue,00.WELFARE
02/08/2017,1477965,120.00,SWIFT - FOSTER CARER PAYMENTS,299981,"Health, Education, Care and Safeguarding",Children's & Education Services,103,Third Party Payments,505,Other Establishments,5041,Revenue,00.WELFARE
02/08/2017,1477965,283.36,SWIFT - FOSTER CARER PAYMENTS,299981,"Health, Education, Care and Safeguarding",Children's & Education Services,103,Third Party Payments,505,Other Establishments,5041,Revenue,00.WELFARE
02/08/2017,1477965,295.68,SWIFT - FOSTER CARER PAYMENTS,299981,"Health, Education, Care and Safeguarding",Children's & Education Services,103,Third Party Payments,505,Other Establishments,5041,Revenue,00.WELFARE
02/08/2017,1477965,368.10,SWIFT - FOSTER CARER PAYMENTS,299981,"Health, Education, Care and Safeguarding",Children's & Education Services,103,Third Party Payments,505,Other Establishments,5041,Revenue,00.WELFARE
02/08/2017,1477965,731.56,SWIFT - FOSTER CARER PAYMENTS,299981,"Health, Education, Care and Safeguarding",Children's & Education Services,103,Third Party Payments,505,Other Establishments,5041,Revenue,00.WELFARE
02/08/2017,1477967,100.00,SWIFT - FOSTER CARER PAYMENTS,299981,"Health, Education, Care and Safeguarding",Children's & Education Services,103,Third Party Payments,505,Voluntary Associations,5040,Revenue,00.WELFARE
02/08/2017,1477967,120.00,SWIFT - FOSTER CARER PAYMENTS,299981,"Health, Education, Care and Safeguarding",Children's & Education Services,103,Third Party Payments,505,Other Establishments,5041,Revenue,00.WELFARE
02/08/2017,1477967,180.00,SWIFT - FOSTER CARER PAYMENTS,299981,"Health, Education, Care and Safeguarding",Children's & Education Services,103,Third Party Payments,505,Other Establishments,5041,Revenue,00.WELFARE
02/08/2017,1477967,283.36,SWIFT - FOSTER CARER PAYMENTS,299981,"Health, Education, Care and Safeguarding",Children's & Education Services,103,Third Party Payments,505,Other Establishments,5041,Revenue,00.WELFARE
02/08/2017,1477968,180.00,SWIFT - FOSTER CARER PAYMENTS,299981,"Health, Education, Care and Safeguarding",Children's & Education Services,103,Third Party Payments,505,Other Establishments,5041,Revenue,00.WELFARE
02/08/2017,1477968,268.98,SWIFT - FOSTER CARER PAYMENTS,299981,"Health, Education, Care and Safeguarding",Children's & Education Services,103,Third Party Payments,505,Other Establishments,5041,Revenue,00.WELFARE
02/08/2017,1477969,180.00,SWIFT - FOSTER CARER PAYMENTS,299981,"Health, Education, Care and Safeguarding",Children's & Education Services,103,Third Party Payments,505,Other Establishments,5041,Revenue,00.WELFARE
02/08/2017,1477969,295.68,SWIFT - FOSTER CARER PAYMENTS,299981,"Health, Education, Care and Safeguarding",Children's & Education Services,103,Third Party Payments,505,Other Establishments,5041,Revenue,00.WELFARE
02/08/2017,1477969,295.68,SWIFT - FOSTER CARER PAYMENTS,299981,"Health, Education, Care and Safeguarding",Children's & Education Services,103,Third Party Payments,505,Other Establishments,5041,Revenue,00.WELFARE
02/08/2017,1477970,268.98,SWIFT - FOSTER CARER PAYMENTS,299981,"Health, Education, Care and Safeguarding",Children's & Education Services,103,Third Party Payments,505,Other Establishments,5041,Revenue,00.WELFARE
02/08/2017,1477972,100.00,SWIFT - FOSTER CARER PAYMENTS,299981,"Health, Education, Care and Safeguarding",Children's & Education Services,103,Third Party Payments,505,Voluntary Associations,5040,Revenue,00.WELFARE
02/08/2017,1477972,368.10,SWIFT - FOSTER CARER PAYMENTS,299981,"Health, Education, Care and Safeguarding",Children's & Education Services,103,Third Party Payments,505,Other Establishments,5041,Revenue,00.WELFARE
02/08/2017,1477972,731.56,SWIFT - FOSTER CARER PAYMENTS,299981,"Health, Education, Care and Safeguarding",Children's & Education Services,103,Third Party Payments,505,Other Establishments,5041,Revenue,00.WELFARE
02/08/2017,1477973,24.62,SWIFT - FOSTER CARER PAYMENTS,299981,"Health, Education, Care and Safeguarding",Children's & Education Services,103,Third Party Payments,505,Other Establishments,5041,Revenue,00.WELFARE
02/08/2017,1477973,180.00,SWIFT - FOSTER CARER PAYMENTS,299981,"Health, Education, Care and Safeguarding",Children's & Education Services,103,Third Party Payments,505,Other Establishments,5041,Revenue,00.WELFARE
02/08/2017,1477973,268.98,SWIFT - FOSTER CARER PAYMENTS,299981,"Health, Education, Care and Safeguarding",Children's & Education Services,103,Third Party Payments,505,Other Establishments,5041,Revenue,00.WELFARE
02/08/2017,1477974,192.13,SWIFT - FOSTER CARER PAYMENTS,299981,"Health, Education, Care and Safeguarding",Children's & Education Services,103,Third Party Payments,505,Other Establishments,5041,Revenue,00.WELFARE
02/08/2017,1477974,192.13,SWIFT - FOSTER CARER PAYMENTS,299981,"Health, Education, Care and Safeguarding",Children's & Education Services,103,Third Party Payments,505,Other Establishments,5041,Revenue,00.WELFARE
02/08/2017,1477974,211.20,SWIFT - FOSTER CARER PAYMENTS,299981,"Health, Education, Care and Safeguarding",Children's & Education Services,103,Third Party Payments,505,Other Establishments,5041,Revenue,00.WELFARE
02/08/2017,1477974,211.20,SWIFT - FOSTER CARER PAYMENTS,299981,"Health, Education, Care and Safeguarding",Children's & Education Services,103,Third Party Payments,505,Other Establishments,5041,Revenue,00.WELFARE
02/08/2017,1477974,211.20,SWIFT - FOSTER CARER PAYMENTS,299981,"Health, Education, Care and Safeguarding",Children's & Education Services,103,Third Party Payments,505,Other Establishments,5041,Revenue,00.WELFARE
02/08/2017,1477976,268.98,SWIFT - FOSTER CARER PAYMENTS,299981,"Health, Education, Care and Safeguarding",Children's & Education Services,103,Third Party Payments,505,Other Establishments,5041,Revenue,00.WELFARE
02/08/2017,1477977,295.68,SWIFT - FOSTER CARER PAYMENTS,299981,"Health, Education, Care and Safeguarding",Children's & Education Services,103,Third Party Payments,505,Other Establishments,5041,Revenue,00.WELFARE
02/08/2017,1477977,1200.00,SWIFT - FOSTER CARER PAYMENTS,299981,"Health, Education, Care and Safeguarding",Children's & Education Services,103,Third Party Payments,505,Other Establishments,5041,Revenue,00.WELFARE
02/08/2017,1477978,1000.00,SWIFT - FOSTER CARER PAYMENTS,299981,"Health, Education, Care and Safeguarding",Children's & Education Services,103,Third Party Payments,505,Other Establishments,5041,Revenue,00.WELFARE
02/08/2017,1477979,-38.42,SWIFT - FOSTER CARER PAYMENTS,299981,"Health, Education, Care and Safeguarding",Children's & Education Services,103,Third Party Payments,505,Other Establishments,5041,Revenue,00.WELFARE
02/08/2017,1477979,180.00,SWIFT - FOSTER CARER PAYMENTS,299981,"Health, Education, Care and Safeguarding",Children's & Education Services,103,Third Party Payments,505,Other Establishments,5041,Revenue,00.WELFARE
02/08/2017,1477979,307.41,SWIFT - FOSTER CARER PAYMENTS,299981,"Health, Education, Care and Safeguarding",Children's & Education Services,103,Third Party Payments,505,Other Establishments,5041,Revenue,00.WELFARE
02/08/2017,1477980,74.50,SWIFT - FOSTER CARER PAYMENTS,299981,"Health, Education, Care and Safeguarding",Children's & Education Services,103,Third Party Payments,505,Other Establishments,5041,Revenue,00.WELFARE
02/08/2017,1477980,295.68,SWIFT - FOSTER CARER PAYMENTS,299981,"Health, Education, Care and Safeguarding",Children's & Education Services,103,Third Party Payments,505,Other Establishments,5041,Revenue,00.WELFARE
02/08/2017,1477980,295.68,SWIFT - FOSTER CARER PAYMENTS,299981,"Health, Education, Care and Safeguarding",Children's & Education Services,103,Third Party Payments,505,Other Establishments,5041,Revenue,00.WELFARE
02/08/2017,1477981,180.00,SWIFT - FOSTER CARER PAYMENTS,299981,"Health, Education, Care and Safeguarding",Children's & Education Services,103,Third Party Payments,505,Other Establishments,5041,Revenue,00.WELFARE
02/08/2017,1477981,268.98,SWIFT - FOSTER CARER PAYMENTS,299981,"Health, Education, Care and Safeguarding",Children's & Education Services,103,Third Party Payments,505,Other Establishments,5041,Revenue,00.WELFARE
02/08/2017,1477981,268.98,SWIFT - FOSTER CARER PAYMENTS,299981,"Health, Education, Care and Safeguarding",Children's & Education Services,103,Third Party Payments,505,Other Establishments,5041,Revenue,00.WELFARE
02/08/2017,1477983,368.10,SWIFT - FOSTER CARER PAYMENTS,299981,"Health, Education, Care and Safeguarding",Children's & Education Services,103,Third Party Payments,505,Other Establishments,5041,Revenue,00.WELFARE
02/08/2017,1477983,1200.00,SWIFT - FOSTER CARER PAYMENTS,299981,"Health, Education, Care and Safeguarding",Children's & Education Services,103,Third Party Payments,505,Other Establishments,5041,Revenue,00.WELFARE
02/08/2017,1477984,-31.26,SWIFT - FOSTER CARER PAYMENTS,299981,"Health, Education, Care and Safeguarding",Children's & Education Services,103,Third Party Payments,505,Other Establishments,5041,Revenue,00.WELFARE
02/08/2017,1477984,100.00,SWIFT - FOSTER CARER PAYMENTS,299981,"Health, Education, Care and Safeguarding",Children's & Education Services,103,Third Party Payments,505,Voluntary Associations,5040,Revenue,00.WELFARE
02/08/2017,1477984,100.00,SWIFT - FOSTER CARER PAYMENTS,299981,"Health, Education, Care and Safeguarding",Children's & Education Services,103,Third Party Payments,505,Other Establishments,5041,Revenue,00.WELFARE
02/08/2017,1477984,140.00,SWIFT - FOSTER CARER PAYMENTS,299981,"Health, Education, Care and Safeguarding",Children's & Education Services,103,Third Party Payments,505,Other Establishments,5041,Revenue,00.WELFARE
02/08/2017,1477984,295.68,SWIFT - FOSTER CARER PAYMENTS,299981,"Health, Education, Care and Safeguarding",Children's & Education Services,103,Third Party Payments,505,Other Establishments,5041,Revenue,00.WELFARE
02/08/2017,1477984,731.56,SWIFT - FOSTER CARER PAYMENTS,299981,"Health, Education, Care and Safeguarding",Children's & Education Services,103,Third Party Payments,505,Other Establishments,5041,Revenue,00.WELFARE
02/08/2017,1477989,84.74,SWIFT - FOSTER CARER PAYMENTS,299981,"Health, Education, Care and Safeguarding",Children's & Education Services,103,Third Party Payments,505,Other Establishments,5041,Revenue,00.WELFARE
02/08/2017,1477989,283.36,SWIFT - FOSTER CARER PAYMENTS,299981,"Health, Education, Care and Safeguarding",Children's & Education Services,103,Third Party Payments,505,Other Establishments,5041,Revenue,00.WELFARE
02/08/2017,1477990,112.53,SWIFT - FOSTER CARER PAYMENTS,299981,"Health, Education, Care and Safeguarding",Children's & Education Services,103,Third Party Payments,505,Other Establishments,5041,Revenue,00.WELFARE
02/08/2017,1477990,180.00,SWIFT - FOSTER CARER PAYMENTS,299981,"Health, Education, Care and Safeguarding",Children's & Education Services,103,Third Party Payments,505,Other Establishments,5041,Revenue,00.WELFARE
02/08/2017,1477990,295.68,SWIFT - FOSTER CARER PAYMENTS,299981,"Health, Education, Care and Safeguarding",Children's & Education Services,103,Third Party Payments,505,Other Establishments,5041,Revenue,00.WELFARE
02/08/2017,1477991,150.00,SWIFT - FOSTER CARER PAYMENTS,299981,"Health, Education, Care and Safeguarding",Children's & Education Services,103,Third Party Payments,505,Other Establishments,5041,Revenue,00.WELFARE
02/08/2017,1477991,150.00,SWIFT - FOSTER CARER PAYMENTS,299981,"Health, Education, Care and Safeguarding",Children's & Education Services,103,Third Party Payments,505,Other Establishments,5041,Revenue,00.WELFARE
02/08/2017,1477991,300.00,SWIFT - FOSTER CARER PAYMENTS,299981,"Health, Education, Care and Safeguarding",Children's & Education Services,103,Third Party Payments,505,Other Establishments,5041,Revenue,00.WELFARE
02/08/2017,1477991,368.10,SWIFT - FOSTER CARER PAYMENTS,299981,"Health, Education, Care and Safeguarding",Children's & Education Services,103,Third Party Payments,505,Other Establishments,5041,Revenue,00.WELFARE
02/08/2017,1477992,73.32,SWIFT - FOSTER CARER PAYMENTS,299981,"Health, Education, Care and Safeguarding",Children's & Education Services,103,Third Party Payments,505,Other Establishments,5041,Revenue,00.WELFARE
02/08/2017,1477992,73.32,SWIFT - FOSTER CARER PAYMENTS,299981,"Health, Education, Care and Safeguarding",Children's & Education Services,103,Third Party Payments,505,Other Establishments,5041,Revenue,00.WELFARE
02/08/2017,1477992,80.64,SWIFT - FOSTER CARER PAYMENTS,299981,"Health, Education, Care and Safeguarding",Children's & Education Services,103,Third Party Payments,505,Other Establishments,5041,Revenue,00.WELFARE
02/08/2017,1477992,230.55,SWIFT - FOSTER CARER PAYMENTS,299981,"Health, Education, Care and Safeguarding",Children's & Education Services,103,Third Party Payments,505,Other Establishments,5041,Revenue,00.WELFARE
02/08/2017,1477992,230.55,SWIFT - FOSTER CARER PAYMENTS,299981,"Health, Education, Care and Safeguarding",Children's & Education Services,103,Third Party Payments,505,Other Establishments,5041,Revenue,00.WELFARE
02/08/2017,1477992,253.44,SWIFT - FOSTER CARER PAYMENTS,299981,"Health, Education, Care and Safeguarding",Children's & Education Services,103,Third Party Payments,505,Other Establishments,5041,Revenue,00.WELFARE
02/08/2017,1477993,180.00,SWIFT - FOSTER CARER PAYMENTS,299981,"Health, Education, Care and Safeguarding",Children's & Education Services,103,Third Party Payments,505,Other Establishments,5041,Revenue,00.WELFARE
02/08/2017,1477993,283.36,SWIFT - FOSTER CARER PAYMENTS,299981,"Health, Education, Care and Safeguarding",Children's & Education Services,103,Third Party Payments,505,Other Establishments,5041,Revenue,00.WELFARE
02/08/2017,1477994,43.14,SWIFT - FOSTER CARER PAYMENTS,299981,"Health, Education, Care and Safeguarding",Children's & Education Services,103,Third Party Payments,505,Other Establishments,5041,Revenue,00.WELFARE
02/08/2017,1477994,100.00,SWIFT - FOSTER CARER PAYMENTS,299981,"Health, Education, Care and Safeguarding",Children's & Education Services,103,Third Party Payments,505,Other Establishments,5041,Revenue,00.WELFARE
02/08/2017,1477994,120.00,SWIFT - FOSTER CARER PAYMENTS,299981,"Health, Education, Care and Safeguarding",Children's & Education Services,103,Third Party Payments,505,Other Establishments,5041,Revenue,00.WELFARE
02/08/2017,1477994,180.00,SWIFT - FOSTER CARER PAYMENTS,299981,"Health, Education, Care and Safeguarding",Children's & Education Services,103,Third Party Payments,505,Other Establishments,5041,Revenue,00.WELFARE
02/08/2017,1477994,368.10,SWIFT - FOSTER CARER PAYMENTS,299981,"Health, Education, Care and Safeguarding",Children's & Education Services,103,Third Party Payments,505,Other Establishments,5041,Revenue,00.WELFARE
02/08/2017,1477996,120.00,SWIFT - FOSTER CARER PAYMENTS,299981,"Health, Education, Care and Safeguarding",Children's & Education Services,103,Third Party Payments,505,Other Establishments,5041,Revenue,00.WELFARE
02/08/2017,1477996,180.00,SWIFT - FOSTER CARER PAYMENTS,299981,"Health, Education, Care and Safeguarding",Children's & Education Services,103,Third Party Payments,505,Other Establishments,5041,Revenue,00.WELFARE
02/08/2017,1477996,368.10,SWIFT - FOSTER CARER PAYMENTS,299981,"Health, Education, Care and Safeguarding",Children's & Education Services,103,Third Party Payments,505,Other Establishments,5041,Revenue,00.WELFARE
02/08/2017,1477997,150.00,SWIFT - FOSTER CARER PAYMENTS,299981,"Health, Education, Care and Safeguarding",Children's & Education Services,103,Third Party Payments,505,Other Establishments,5041,Revenue,00.WELFARE
02/08/2017,1477997,150.00,SWIFT - FOSTER CARER PAYMENTS,299981,"Health, Education, Care and Safeguarding",Children's & Education Services,103,Third Party Payments,505,Other Establishments,5041,Revenue,00.WELFARE
02/08/2017,1477997,150.00,SWIFT - FOSTER CARER PAYMENTS,299981,"Health, Education, Care and Safeguarding",Children's & Education Services,103,Third Party Payments,505,Other Establishments,5041,Revenue,00.WELFARE
02/08/2017,1477997,228.72,SWIFT - FOSTER CARER PAYMENTS,299981,"Health, Education, Care and Safeguarding",Children's & Education Services,103,Third Party Payments,505,Other Establishments,5041,Revenue,00.WELFARE
02/08/2017,1477997,295.68,SWIFT - FOSTER CARER PAYMENTS,299981,"Health, Education, Care and Safeguarding",Children's & Education Services,103,Third Party Payments,505,Other Establishments,5041,Revenue,00.WELFARE
02/08/2017,1477997,295.68,SWIFT - FOSTER CARER PAYMENTS,299981,"Health, Education, Care and Safeguarding",Children's & Education Services,103,Third Party Payments,505,Other Establishments,5041,Revenue,00.WELFARE
02/08/2017,1477997,295.68,SWIFT - FOSTER CARER PAYMENTS,299981,"Health, Education, Care and Safeguarding",Children's & Education Services,103,Third Party Payments,505,Other Establishments,5041,Revenue,00.WELFARE
02/08/2017,1477997,295.68,SWIFT - FOSTER CARER PAYMENTS,299981,"Health, Education, Care and Safeguarding",Children's & Education Services,103,Third Party Payments,505,Other Establishments,5041,Revenue,00.WELFARE
02/08/2017,1477997,300.00,SWIFT - FOSTER CARER PAYMENTS,299981,"Health, Education, Care and Safeguarding",Children's & Education Services,103,Third Party Payments,505,Other Establishments,5041,Revenue,00.WELFARE
02/08/2017,1477999,154.02,SWIFT - FOSTER CARER PAYMENTS,299981,"Health, Education, Care and Safeguarding",Children's & Education Services,103,Third Party Payments,505,Other Establishments,5041,Revenue,00.WELFARE
02/08/2017,1477999,154.02,SWIFT - FOSTER CARER PAYMENTS,299981,"Health, Education, Care and Safeguarding",Children's & Education Services,103,Third Party Payments,505,Other Establishments,5041,Revenue,00.WELFARE
02/08/2017,1478000,120.00,SWIFT - FOSTER CARER PAYMENTS,299981,"Health, Education, Care and Safeguarding",Children's & Education Services,103,Third Party Payments,505,Other Establishments,5041,Revenue,00.WELFARE
02/08/2017,1478000,180.00,SWIFT - FOSTER CARER PAYMENTS,299981,"Health, Education, Care and Safeguarding",Children's & Education Services,103,Third Party Payments,505,Other Establishments,5041,Revenue,00.WELFARE
02/08/2017,1478000,368.10,SWIFT - FOSTER CARER PAYMENTS,299981,"Health, Education, Care and Safeguarding",Children's & Education Services,103,Third Party Payments,505,Other Establishments,5041,Revenue,00.WELFARE
02/08/2017,1478001,12.86,SWIFT - FOSTER CARER PAYMENTS,299981,"Health, Education, Care and Safeguarding",Children's & Education Services,103,Third Party Payments,505,Other Establishments,5041,Revenue,00.WELFARE
02/08/2017,1478001,15.18,SWIFT - FOSTER CARER PAYMENTS,299981,"Health, Education, Care and Safeguarding",Children's & Education Services,103,Third Party Payments,505,Other Establishments,5041,Revenue,00.WELFARE
02/08/2017,1478001,21.12,SWIFT - FOSTER CARER PAYMENTS,299981,"Health, Education, Care and Safeguarding",Children's & Education Services,103,Third Party Payments,505,Other Establishments,5041,Revenue,00.WELFARE
02/08/2017,1478001,232.26,SWIFT - FOSTER CARER PAYMENTS,299981,"Health, Education, Care and Safeguarding",Children's & Education Services,103,Third Party Payments,505,Voluntary Associations,5040,Revenue,00.WELFARE
02/08/2017,1478002,283.36,SWIFT - FOSTER CARER PAYMENTS,299981,"Health, Education, Care and Safeguarding",Children's & Education Services,103,Third Party Payments,505,Other Establishments,5041,Revenue,00.WELFARE
02/08/2017,1478002,731.56,SWIFT - FOSTER CARER PAYMENTS,299981,"Health, Education, Care and Safeguarding",Children's & Education Services,103,Third Party Payments,505,Other Establishments,5041,Revenue,00.WELFARE
02/08/2017,1478003,180.00,SWIFT - FOSTER CARER PAYMENTS,299981,"Health, Education, Care and Safeguarding",Children's & Education Services,103,Third Party Payments,505,Other Establishments,5041,Revenue,00.WELFARE
02/08/2017,1478003,368.10,SWIFT - FOSTER CARER PAYMENTS,299981,"Health, Education, Care and Safeguarding",Children's & Education Services,103,Third Party Payments,505,Other Establishments,5041,Revenue,00.WELFARE
02/08/2017,1478004,180.00,SWIFT - FOSTER CARER PAYMENTS,299981,"Health, Education, Care and Safeguarding",Children's & Education Services,103,Third Party Payments,505,Other Establishments,5041,Revenue,00.WELFARE
02/08/2017,1478004,295.68,SWIFT - FOSTER CARER PAYMENTS,299981,"Health, Education, Care and Safeguarding",Children's & Education Services,103,Third Party Payments,505,Other Establishments,5041,Revenue,00.WELFARE
02/08/2017,1478004,538.64,SWIFT - FOSTER CARER PAYMENTS,299981,"Health, Education, Care and Safeguarding",Children's & Education Services,103,Third Party Payments,505,Other Establishments,5041,Revenue,00.WELFARE
02/08/2017,1478007,34.29,SWIFT - FOSTER CARER PAYMENTS,299981,"Health, Education, Care and Safeguarding",Children's & Education Services,103,Third Party Payments,505,Other Establishments,5041,Revenue,00.WELFARE
02/08/2017,1478007,105.17,SWIFT - FOSTER CARER PAYMENTS,299981,"Health, Education, Care and Safeguarding",Children's & Education Services,103,Third Party Payments,505,Other Establishments,5041,Revenue,00.WELFARE
02/08/2017,1478007,180.00,SWIFT - FOSTER CARER PAYMENTS,299981,"Health, Education, Care and Safeguarding",Children's & Education Services,103,Third Party Payments,505,Other Establishments,5041,Revenue,00.WELFARE
02/08/2017,1478007,295.68,SWIFT - FOSTER CARER PAYMENTS,299981,"Health, Education, Care and Safeguarding",Children's & Education Services,103,Third Party Payments,505,Other Establishments,5041,Revenue,00.WELFARE
02/08/2017,1478008,-50.00,SWIFT - FOSTER CARER PAYMENTS,299981,"Health, Education, Care and Safeguarding",Children's & Education Services,103,Third Party Payments,505,Other Establishments,5041,Revenue,00.WELFARE
02/08/2017,1478008,-42.24,SWIFT - FOSTER CARER PAYMENTS,299981,"Health, Education, Care and Safeguarding",Children's & Education Services,103,Third Party Payments,505,Other Establishments,5041,Revenue,00.WELFARE
02/08/2017,1478008,84.74,SWIFT - FOSTER CARER PAYMENTS,299981,"Health, Education, Care and Safeguarding",Children's & Education Services,103,Third Party Payments,505,Other Establishments,5041,Revenue,00.WELFARE
02/08/2017,1478008,150.00,SWIFT - FOSTER CARER PAYMENTS,299981,"Health, Education, Care and Safeguarding",Children's & Education Services,103,Third Party Payments,505,Other Establishments,5041,Revenue,00.WELFARE
02/08/2017,1478008,150.00,SWIFT - FOSTER CARER PAYMENTS,299981,"Health, Education, Care and Safeguarding",Children's & Education Services,103,Third Party Payments,505,Other Establishments,5041,Revenue,00.WELFARE
02/08/2017,1478008,283.36,SWIFT - FOSTER CARER PAYMENTS,299981,"Health, Education, Care and Safeguarding",Children's & Education Services,103,Third Party Payments,505,Other Establishments,5041,Revenue,00.WELFARE
02/08/2017,1478008,300.00,SWIFT - FOSTER CARER PAYMENTS,299981,"Health, Education, Care and Safeguarding",Children's & Education Services,103,Third Party Payments,505,Other Establishments,5041,Revenue,00.WELFARE
02/08/2017,1478008,337.92,SWIFT - FOSTER CARER PAYMENTS,299981,"Health, Education, Care and Safeguarding",Children's & Education Services,103,Third Party Payments,505,Other Establishments,5041,Revenue,00.WELFARE
02/08/2017,1478008,368.10,SWIFT - FOSTER CARER PAYMENTS,299981,"Health, Education, Care and Safeguarding",Children's & Education Services,103,Third Party Payments,505,Other Establishments,5041,Revenue,00.WELFARE
02/08/2017,1478009,140.75,SWIFT - FOSTER CARER PAYMENTS,299981,"Health, Education, Care and Safeguarding",Children's & Education Services,103,Third Party Payments,505,Other Establishments,5041,Revenue,00.WELFARE
02/08/2017,1478009,180.00,SWIFT - FOSTER CARER PAYMENTS,299981,"Health, Education, Care and Safeguarding",Children's & Education Services,103,Third Party Payments,505,Other Establishments,5041,Revenue,00.WELFARE
02/08/2017,1478009,295.68,SWIFT - FOSTER CARER PAYMENTS,299981,"Health, Education, Care and Safeguarding",Children's & Education Services,103,Third Party Payments,505,Other Establishments,5041,Revenue,00.WELFARE
02/08/2017,1478011,180.00,SWIFT - FOSTER CARER PAYMENTS,299981,"Health, Education, Care and Safeguarding",Children's & Education Services,103,Third Party Payments,505,Other Establishments,5041,Revenue,00.WELFARE
02/08/2017,1478011,368.10,SWIFT - FOSTER CARER PAYMENTS,299981,"Health, Education, Care and Safeguarding",Children's & Education Services,103,Third Party Payments,505,Other Establishments,5041,Revenue,00.WELFARE
02/08/2017,1478013,368.10,SWIFT - FOSTER CARER PAYMENTS,299981,"Health, Education, Care and Safeguarding",Children's & Education Services,103,Third Party Payments,505,Other Establishments,5041,Revenue,00.WELFARE
02/08/2017,1478013,700.00,SWIFT - FOSTER CARER PAYMENTS,299981,"Health, Education, Care and Safeguarding",Children's & Education Services,103,Third Party Payments,505,Other Establishments,5041,Revenue,00.WELFARE
02/08/2017,1478014,100.00,SWIFT - FOSTER CARER PAYMENTS,299981,"Health, Education, Care and Safeguarding",Children's & Education Services,103,Third Party Payments,505,Other Establishments,5041,Revenue,00.WELFARE
02/08/2017,1478014,120.00,SWIFT - FOSTER CARER PAYMENTS,299981,"Health, Education, Care and Safeguarding",Children's & Education Services,103,Third Party Payments,505,Other Establishments,5041,Revenue,00.WELFARE
02/08/2017,1478014,180.00,SWIFT - FOSTER CARER PAYMENTS,299981,"Health, Education, Care and Safeguarding",Children's & Education Services,103,Third Party Payments,505,Other Establishments,5041,Revenue,00.WELFARE
02/08/2017,1478014,368.10,SWIFT - FOSTER CARER PAYMENTS,299981,"Health, Education, Care and Safeguarding",Children's & Education Services,103,Third Party Payments,505,Other Establishments,5041,Revenue,00.WELFARE
02/08/2017,1478015,191.40,SWIFT - FOSTER CARER PAYMENTS,299981,"Health, Education, Care and Safeguarding",Children's & Education Services,103,Third Party Payments,505,Other Establishments,5041,Revenue,00.WELFARE
02/08/2017,1478015,283.36,SWIFT - FOSTER CARER PAYMENTS,299981,"Health, Education, Care and Safeguarding",Children's & Education Services,103,Third Party Payments,505,Other Establishments,5041,Revenue,00.WELFARE
02/08/2017,1478016,76.08,SWIFT - FOSTER CARER PAYMENTS,299981,"Health, Education, Care and Safeguarding",Children's & Education Services,103,Third Party Payments,505,Other Establishments,5041,Revenue,00.WELFARE
02/08/2017,1478016,120.00,SWIFT - FOSTER CARER PAYMENTS,299981,"Health, Education, Care and Safeguarding",Children's & Education Services,103,Third Party Payments,505,Other Establishments,5041,Revenue,00.WELFARE
02/08/2017,1478016,180.00,SWIFT - FOSTER CARER PAYMENTS,299981,"Health, Education, Care and Safeguarding",Children's & Education Services,103,Third Party Payments,505,Other Establishments,5041,Revenue,00.WELFARE
02/08/2017,1478016,295.68,SWIFT - FOSTER CARER PAYMENTS,299981,"Health, Education, Care and Safeguarding",Children's & Education Services,103,Third Party Payments,505,Other Establishments,5041,Revenue,00.WELFARE
02/08/2017,1478016,368.10,SWIFT - FOSTER CARER PAYMENTS,299981,"Health, Education, Care and Safeguarding",Children's & Education Services,103,Third Party Payments,505,Other Establishments,5041,Revenue,00.WELFARE
02/08/2017,1478017,84.74,SWIFT - FOSTER CARER PAYMENTS,299981,"Health, Education, Care and Safeguarding",Children's & Education Services,103,Third Party Payments,505,Other Establishments,5041,Revenue,00.WELFARE
02/08/2017,1478017,283.36,SWIFT - FOSTER CARER PAYMENTS,299981,"Health, Education, Care and Safeguarding",Children's & Education Services,103,Third Party Payments,505,Other Establishments,5041,Revenue,00.WELFARE
02/08/2017,1478017,368.10,SWIFT - FOSTER CARER PAYMENTS,299981,"Health, Education, Care and Safeguarding",Children's & Education Services,103,Third Party Payments,505,Other Establishments,5041,Revenue,00.WELFARE
02/08/2017,1478017,1000.00,SWIFT - FOSTER CARER PAYMENTS,299981,"Health, Education, Care and Safeguarding",Children's & Education Services,103,Third Party Payments,505,Other Establishments,5041,Revenue,00.WELFARE
02/08/2017,1478018,-56.88,SWIFT - FOSTER CARER PAYMENTS,299981,"Health, Education, Care and Safeguarding",Children's & Education Services,103,Third Party Payments,505,Other Establishments,5041,Revenue,00.WELFARE
02/08/2017,1478018,-56.88,SWIFT - FOSTER CARER PAYMENTS,299981,"Health, Education, Care and Safeguarding",Children's & Education Services,103,Third Party Payments,505,Other Establishments,5041,Revenue,00.WELFARE
02/08/2017,1478018,52.30,SWIFT - FOSTER CARER PAYMENTS,299981,"Health, Education, Care and Safeguarding",Children's & Education Services,103,Third Party Payments,505,Other Establishments,5041,Revenue,00.WELFARE
02/08/2017,1478018,55.79,SWIFT - FOSTER CARER PAYMENTS,299981,"Health, Education, Care and Safeguarding",Children's & Education Services,103,Third Party Payments,505,Other Establishments,5041,Revenue,00.WELFARE
02/08/2017,1478018,180.00,SWIFT - FOSTER CARER PAYMENTS,299981,"Health, Education, Care and Safeguarding",Children's & Education Services,103,Third Party Payments,505,Other Establishments,5041,Revenue,00.WELFARE
02/08/2017,1478018,268.98,SWIFT - FOSTER CARER PAYMENTS,299981,"Health, Education, Care and Safeguarding",Children's & Education Services,103,Third Party Payments,505,Other Establishments,5041,Revenue,00.WELFARE
02/08/2017,1478018,268.98,SWIFT - FOSTER CARER PAYMENTS,299981,"Health, Education, Care and Safeguarding",Children's & Education Services,103,Third Party Payments,505,Other Establishments,5041,Revenue,00.WELFARE
02/08/2017,1478019,120.00,SWIFT - FOSTER CARER PAYMENTS,299981,"Health, Education, Care and Safeguarding",Children's & Education Services,103,Third Party Payments,505,Other Establishments,5041,Revenue,00.WELFARE
02/08/2017,1478019,180.00,SWIFT - FOSTER CARER PAYMENTS,299981,"Health, Education, Care and Safeguarding",Children's & Education Services,103,Third Party Payments,505,Other Establishments,5041,Revenue,00.WELFARE
02/08/2017,1478019,283.36,SWIFT - FOSTER CARER PAYMENTS,299981,"Health, Education, Care and Safeguarding",Children's & Education Services,103,Third Party Payments,505,Other Establishments,5041,Revenue,00.WELFARE
02/08/2017,1478020,120.00,SWIFT - FOSTER CARER PAYMENTS,299981,"Health, Education, Care and Safeguarding",Children's & Education Services,103,Third Party Payments,505,Other Establishments,5041,Revenue,00.WELFARE
02/08/2017,1478020,180.00,SWIFT - FOSTER CARER PAYMENTS,299981,"Health, Education, Care and Safeguarding",Children's & Education Services,103,Third Party Payments,505,Other Establishments,5041,Revenue,00.WELFARE
02/08/2017,1478020,283.36,SWIFT - FOSTER CARER PAYMENTS,299981,"Health, Education, Care and Safeguarding",Children's & Education Services,103,Third Party Payments,505,Other Establishments,5041,Revenue,00.WELFARE
02/08/2017,1478021,368.10,SWIFT - FOSTER CARER PAYMENTS,299981,"Health, Education, Care and Safeguarding",Children's & Education Services,103,Third Party Payments,505,Other Establishments,5041,Revenue,00.WELFARE
02/08/2017,1478022,120.00,SWIFT - FOSTER CARER PAYMENTS,299981,"Health, Education, Care and Safeguarding",Children's & Education Services,103,Third Party Payments,505,Other Establishments,5041,Revenue,00.WELFARE
02/08/2017,1478022,120.00,SWIFT - FOSTER CARER PAYMENTS,299981,"Health, Education, Care and Safeguarding",Children's & Education Services,103,Third Party Payments,505,Other Establishments,5041,Revenue,00.WELFARE
02/08/2017,1478022,180.00,SWIFT - FOSTER CARER PAYMENTS,299981,"Health, Education, Care and Safeguarding",Children's & Education Services,103,Third Party Payments,505,Other Establishments,5041,Revenue,00.WELFARE
02/08/2017,1478022,184.05,SWIFT - FOSTER CARER PAYMENTS,299981,"Health, Education, Care and Safeguarding",Children's & Education Services,103,Third Party Payments,505,Other Establishments,5041,Revenue,00.WELFARE
02/08/2017,1478022,283.36,SWIFT - FOSTER CARER PAYMENTS,299981,"Health, Education, Care and Safeguarding",Children's & Education Services,103,Third Party Payments,505,Other Establishments,5041,Revenue,00.WELFARE
02/08/2017,1478022,283.36,SWIFT - FOSTER CARER PAYMENTS,299981,"Health, Education, Care and Safeguarding",Children's & Education Services,103,Third Party Payments,505,Other Establishments,5041,Revenue,00.WELFARE
02/08/2017,1478023,150.00,SWIFT - FOSTER CARER PAYMENTS,299981,"Health, Education, Care and Safeguarding",Children's & Education Services,103,Third Party Payments,505,Other Establishments,5041,Revenue,00.WELFARE
02/08/2017,1478023,300.00,SWIFT - FOSTER CARER PAYMENTS,299981,"Health, Education, Care and Safeguarding",Children's & Education Services,103,Third Party Payments,505,Other Establishments,5041,Revenue,00.WELFARE
02/08/2017,1478023,368.10,SWIFT - FOSTER CARER PAYMENTS,299981,"Health, Education, Care and Safeguarding",Children's & Education Services,103,Third Party Payments,505,Other Establishments,5041,Revenue,00.WELFARE
02/08/2017,1478023,368.10,SWIFT - FOSTER CARER PAYMENTS,299981,"Health, Education, Care and Safeguarding",Children's & Education Services,103,Third Party Payments,505,Other Establishments,5041,Revenue,00.WELFARE
02/08/2017,1478024,84.74,SWIFT - FOSTER CARER PAYMENTS,299981,"Health, Education, Care and Safeguarding",Children's & Education Services,103,Third Party Payments,505,Other Establishments,5041,Revenue,00.WELFARE
02/08/2017,1478024,100.00,SWIFT - FOSTER CARER PAYMENTS,299981,"Health, Education, Care and Safeguarding",Children's & Education Services,103,Third Party Payments,505,Voluntary Associations,5040,Revenue,00.WELFARE
02/08/2017,1478024,100.00,SWIFT - FOSTER CARER PAYMENTS,299981,"Health, Education, Care and Safeguarding",Children's & Education Services,103,Third Party Payments,505,Voluntary Associations,5040,Revenue,00.WELFARE
02/08/2017,1478024,150.00,SWIFT - FOSTER CARER PAYMENTS,299981,"Health, Education, Care and Safeguarding",Children's & Education Services,103,Third Party Payments,505,Other Establishments,5041,Revenue,00.WELFARE
02/08/2017,1478024,150.00,SWIFT - FOSTER CARER PAYMENTS,299981,"Health, Education, Care and Safeguarding",Children's & Education Services,103,Third Party Payments,505,Other Establishments,5041,Revenue,00.WELFARE
02/08/2017,1478024,283.36,SWIFT - FOSTER CARER PAYMENTS,299981,"Health, Education, Care and Safeguarding",Children's & Education Services,103,Third Party Payments,505,Other Establishments,5041,Revenue,00.WELFARE
02/08/2017,1478024,295.68,SWIFT - FOSTER CARER PAYMENTS,299981,"Health, Education, Care and Safeguarding",Children's & Education Services,103,Third Party Payments,505,Other Establishments,5041,Revenue,00.WELFARE
02/08/2017,1478024,300.00,SWIFT - FOSTER CARER PAYMENTS,299981,"Health, Education, Care and Safeguarding",Children's & Education Services,103,Third Party Payments,505,Other Establishments,5041,Revenue,00.WELFARE
02/08/2017,1478024,368.10,SWIFT - FOSTER CARER PAYMENTS,299981,"Health, Education, Care and Safeguarding",Children's & Education Services,103,Third Party Payments,505,Other Establishments,5041,Revenue,00.WELFARE
02/08/2017,1478025,-40.00,SWIFT - FOSTER CARER PAYMENTS,299981,"Health, Education, Care and Safeguarding",Children's & Education Services,103,Third Party Payments,505,Other Establishments,5041,Revenue,00.WELFARE
02/08/2017,1478025,-1.00,SWIFT - FOSTER CARER PAYMENTS,299981,"Health, Education, Care and Safeguarding",Children's & Education Services,103,Third Party Payments,505,Other Establishments,5041,Revenue,00.WELFARE
02/08/2017,1478025,51.43,SWIFT - FOSTER CARER PAYMENTS,299981,"Health, Education, Care and Safeguarding",Children's & Education Services,103,Third Party Payments,505,Other Establishments,5041,Revenue,00.WELFARE
02/08/2017,1478025,120.00,SWIFT - FOSTER CARER PAYMENTS,299981,"Health, Education, Care and Safeguarding",Children's & Education Services,103,Third Party Payments,505,Other Establishments,5041,Revenue,00.WELFARE
02/08/2017,1478025,157.76,SWIFT - FOSTER CARER PAYMENTS,299981,"Health, Education, Care and Safeguarding",Children's & Education Services,103,Third Party Payments,505,Other Establishments,5041,Revenue,00.WELFARE
02/08/2017,1478025,180.00,SWIFT - FOSTER CARER PAYMENTS,299981,"Health, Education, Care and Safeguarding",Children's & Education Services,103,Third Party Payments,505,Other Establishments,5041,Revenue,00.WELFARE
02/08/2017,1478025,213.85,SWIFT - FOSTER CARER PAYMENTS,299981,"Health, Education, Care and Safeguarding",Children's & Education Services,103,Third Party Payments,505,Other Establishments,5041,Revenue,00.WELFARE
02/08/2017,1478025,283.36,SWIFT - FOSTER CARER PAYMENTS,299981,"Health, Education, Care and Safeguarding",Children's & Education Services,103,Third Party Payments,505,Other Establishments,5041,Revenue,00.WELFARE
02/08/2017,1478027,180.00,SWIFT - FOSTER CARER PAYMENTS,299981,"Health, Education, Care and Safeguarding",Children's & Education Services,103,Third Party Payments,505,Other Establishments,5041,Revenue,00.WELFARE
02/08/2017,1478027,295.68,SWIFT - FOSTER CARER PAYMENTS,299981,"Health, Education, Care and Safeguarding",Children's & Education Services,103,Third Party Payments,505,Other Establishments,5041,Revenue,00.WELFARE
02/08/2017,1478028,120.00,SWIFT - FOSTER CARER PAYMENTS,299981,"Health, Education, Care and Safeguarding",Children's & Education Services,103,Third Party Payments,505,Other Establishments,5041,Revenue,00.WELFARE
02/08/2017,1478028,180.00,SWIFT - FOSTER CARER PAYMENTS,299981,"Health, Education, Care and Safeguarding",Children's & Education Services,103,Third Party Payments,505,Other Establishments,5041,Revenue,00.WELFARE
02/08/2017,1478028,368.10,SWIFT - FOSTER CARER PAYMENTS,299981,"Health, Education, Care and Safeguarding",Children's & Education Services,103,Third Party Payments,505,Other Establishments,5041,Revenue,00.WELFARE
02/08/2017,1478031,171.42,SWIFT - FOSTER CARER PAYMENTS,299981,"Health, Education, Care and Safeguarding",Children's & Education Services,103,Transfer Payments,506,School Children and Students,5046,Revenue,00.WELFARE
02/08/2017,1478031,171.44,SWIFT - FOSTER CARER PAYMENTS,299981,"Health, Education, Care and Safeguarding",Children's & Education Services,103,Transfer Payments,506,School Children and Students,5046,Revenue,00.WELFARE
02/08/2017,1478033,100.00,SWIFT - FOSTER CARER PAYMENTS,299981,"Health, Education, Care and Safeguarding",Children's & Education Services,103,Third Party Payments,505,Other Establishments,5041,Revenue,00.WELFARE
02/08/2017,1478033,120.00,SWIFT - FOSTER CARER PAYMENTS,299981,"Health, Education, Care and Safeguarding",Children's & Education Services,103,Third Party Payments,505,Other Establishments,5041,Revenue,00.WELFARE
02/08/2017,1478033,180.00,SWIFT - FOSTER CARER PAYMENTS,299981,"Health, Education, Care and Safeguarding",Children's & Education Services,103,Third Party Payments,505,Other Establishments,5041,Revenue,00.WELFARE
02/08/2017,1478033,368.10,SWIFT - FOSTER CARER PAYMENTS,299981,"Health, Education, Care and Safeguarding",Children's & Education Services,103,Third Party Payments,505,Other Establishments,5041,Revenue,00.WELFARE
02/08/2017,1478034,84.74,SWIFT - FOSTER CARER PAYMENTS,299981,"Health, Education, Care and Safeguarding",Children's & Education Services,103,Third Party Payments,505,Other Establishments,5041,Revenue,00.WELFARE
02/08/2017,1478034,120.00,SWIFT - FOSTER CARER PAYMENTS,299981,"Health, Education, Care and Safeguarding",Children's & Education Services,103,Third Party Payments,505,Other Establishments,5041,Revenue,00.WELFARE
02/08/2017,1478034,180.00,SWIFT - FOSTER CARER PAYMENTS,299981,"Health, Education, Care and Safeguarding",Children's & Education Services,103,Third Party Payments,505,Other Establishments,5041,Revenue,00.WELFARE
02/08/2017,1478034,283.36,SWIFT - FOSTER CARER PAYMENTS,299981,"Health, Education, Care and Safeguarding",Children's & Education Services,103,Third Party Payments,505,Other Establishments,5041,Revenue,00.WELFARE
02/08/2017,1478036,84.74,SWIFT - FOSTER CARER PAYMENTS,299981,"Health, Education, Care and Safeguarding",Children's & Education Services,103,Third Party Payments,505,Other Establishments,5041,Revenue,00.WELFARE
02/08/2017,1478036,120.00,SWIFT - FOSTER CARER PAYMENTS,299981,"Health, Education, Care and Safeguarding",Children's & Education Services,103,Third Party Payments,505,Other Establishments,5041,Revenue,00.WELFARE
02/08/2017,1478036,283.36,SWIFT - FOSTER CARER PAYMENTS,299981,"Health, Education, Care and Safeguarding",Children's & Education Services,103,Third Party Payments,505,Other Establishments,5041,Revenue,00.WELFARE
02/08/2017,1478041,166.70,SWIFT - FOSTER CARER PAYMENTS,299981,"Health, Education, Care and Safeguarding",Children's & Education Services,103,Third Party Payments,505,Other Establishments,5041,Revenue,00.WELFARE
02/08/2017,1478041,166.72,SWIFT - FOSTER CARER PAYMENTS,299981,"Health, Education, Care and Safeguarding",Children's & Education Services,103,Third Party Payments,505,Other Establishments,5041,Revenue,00.WELFARE
02/08/2017,1478041,166.72,SWIFT - FOSTER CARER PAYMENTS,299981,"Health, Education, Care and Safeguarding",Children's & Education Services,103,Third Party Payments,505,Other Establishments,5041,Revenue,00.WELFARE
02/08/2017,1478043,120.00,SWIFT - FOSTER CARER PAYMENTS,299981,"Health, Education, Care and Safeguarding",Children's & Education Services,103,Third Party Payments,505,Other Establishments,5041,Revenue,00.WELFARE
02/08/2017,1478043,283.36,SWIFT - FOSTER CARER PAYMENTS,299981,"Health, Education, Care and Safeguarding",Children's & Education Services,103,Third Party Payments,505,Other Establishments,5041,Revenue,00.WELFARE
02/08/2017,1478043,283.36,SWIFT - FOSTER CARER PAYMENTS,299981,"Health, Education, Care and Safeguarding",Children's & Education Services,103,Third Party Payments,505,Other Establishments,5041,Revenue,00.WELFARE
02/08/2017,1478043,731.56,SWIFT - FOSTER CARER PAYMENTS,299981,"Health, Education, Care and Safeguarding",Children's & Education Services,103,Third Party Payments,505,Other Establishments,5041,Revenue,00.WELFARE
02/08/2017,1478044,-38.92,SWIFT - FOSTER CARER PAYMENTS,299981,"Health, Education, Care and Safeguarding",Children's & Education Services,103,Third Party Payments,505,Other Establishments,5041,Revenue,00.WELFARE
02/08/2017,1478044,81.15,SWIFT - FOSTER CARER PAYMENTS,299981,"Health, Education, Care and Safeguarding",Children's & Education Services,103,Third Party Payments,505,Other Establishments,5041,Revenue,00.WELFARE
02/08/2017,1478044,368.10,SWIFT - FOSTER CARER PAYMENTS,299981,"Health, Education, Care and Safeguarding",Children's & Education Services,103,Third Party Payments,505,Other Establishments,5041,Revenue,00.WELFARE
02/08/2017,1478044,1000.00,SWIFT - FOSTER CARER PAYMENTS,299981,"Health, Education, Care and Safeguarding",Children's & Education Services,103,Third Party Payments,505,Other Establishments,5041,Revenue,00.WELFARE
02/08/2017,1478045,-85.71,SWIFT - FOSTER CARER PAYMENTS,299981,"Health, Education, Care and Safeguarding",Children's & Education Services,103,Third Party Payments,505,Other Establishments,5041,Revenue,00.WELFARE
02/08/2017,1478045,84.74,SWIFT - FOSTER CARER PAYMENTS,299981,"Health, Education, Care and Safeguarding",Children's & Education Services,103,Third Party Payments,505,Other Establishments,5041,Revenue,00.WELFARE
02/08/2017,1478045,231.43,SWIFT - FOSTER CARER PAYMENTS,299981,"Health, Education, Care and Safeguarding",Children's & Education Services,103,Third Party Payments,505,Other Establishments,5041,Revenue,00.WELFARE
02/08/2017,1478045,283.36,SWIFT - FOSTER CARER PAYMENTS,299981,"Health, Education, Care and Safeguarding",Children's & Education Services,103,Third Party Payments,505,Other Establishments,5041,Revenue,00.WELFARE
02/08/2017,1478047,-184.05,SWIFT - FOSTER CARER PAYMENTS,299981,"Health, Education, Care and Safeguarding",Children's & Education Services,103,Third Party Payments,505,Other Establishments,5041,Revenue,00.WELFARE
02/08/2017,1478047,17.14,SWIFT - FOSTER CARER PAYMENTS,299981,"Health, Education, Care and Safeguarding",Children's & Education Services,103,Third Party Payments,505,Other Establishments,5041,Revenue,00.WELFARE
02/08/2017,1478047,52.59,SWIFT - FOSTER CARER PAYMENTS,299981,"Health, Education, Care and Safeguarding",Children's & Education Services,103,Third Party Payments,505,Other Establishments,5041,Revenue,00.WELFARE
02/08/2017,1478047,77.14,SWIFT - FOSTER CARER PAYMENTS,299981,"Health, Education, Care and Safeguarding",Children's & Education Services,103,Third Party Payments,505,Other Establishments,5041,Revenue,00.WELFARE
02/08/2017,1478047,172.92,SWIFT - FOSTER CARER PAYMENTS,299981,"Health, Education, Care and Safeguarding",Children's & Education Services,103,Third Party Payments,505,Other Establishments,5041,Revenue,00.WELFARE
02/08/2017,1478047,180.00,SWIFT - FOSTER CARER PAYMENTS,299981,"Health, Education, Care and Safeguarding",Children's & Education Services,103,Third Party Payments,505,Other Establishments,5041,Revenue,00.WELFARE
02/08/2017,1478047,182.16,SWIFT - FOSTER CARER PAYMENTS,299981,"Health, Education, Care and Safeguarding",Children's & Education Services,103,Third Party Payments,505,Other Establishments,5041,Revenue,00.WELFARE
02/08/2017,1478047,184.05,SWIFT - FOSTER CARER PAYMENTS,299981,"Health, Education, Care and Safeguarding",Children's & Education Services,103,Third Party Payments,505,Other Establishments,5041,Revenue,00.WELFARE
02/08/2017,1478047,232.18,SWIFT - FOSTER CARER PAYMENTS,299981,"Health, Education, Care and Safeguarding",Children's & Education Services,103,Third Party Payments,505,Other Establishments,5041,Revenue,00.WELFARE
02/08/2017,1478048,23.63,SWIFT - FOSTER CARER PAYMENTS,299981,"Health, Education, Care and Safeguarding",Children's & Education Services,103,Third Party Payments,505,Other Establishments,5041,Revenue,00.WELFARE
02/08/2017,1478048,180.00,SWIFT - FOSTER CARER PAYMENTS,299981,"Health, Education, Care and Safeguarding",Children's & Education Services,103,Third Party Payments,505,Other Establishments,5041,Revenue,00.WELFARE
02/08/2017,1478048,268.98,SWIFT - FOSTER CARER PAYMENTS,299981,"Health, Education, Care and Safeguarding",Children's & Education Services,103,Third Party Payments,505,Other Establishments,5041,Revenue,00.WELFARE
02/08/2017,1478051,7.45,SWIFT - FOSTER CARER PAYMENTS,299981,"Health, Education, Care and Safeguarding",Children's & Education Services,103,Third Party Payments,505,Other Establishments,5041,Revenue,00.WELFARE
02/08/2017,1478051,17.14,SWIFT - FOSTER CARER PAYMENTS,299981,"Health, Education, Care and Safeguarding",Children's & Education Services,103,Third Party Payments,505,Other Establishments,5041,Revenue,00.WELFARE
02/08/2017,1478051,52.59,SWIFT - FOSTER CARER PAYMENTS,299981,"Health, Education, Care and Safeguarding",Children's & Education Services,103,Third Party Payments,505,Other Establishments,5041,Revenue,00.WELFARE
02/08/2017,1478051,120.00,SWIFT - FOSTER CARER PAYMENTS,299981,"Health, Education, Care and Safeguarding",Children's & Education Services,103,Third Party Payments,505,Other Establishments,5041,Revenue,00.WELFARE
02/08/2017,1478051,180.00,SWIFT - FOSTER CARER PAYMENTS,299981,"Health, Education, Care and Safeguarding",Children's & Education Services,103,Third Party Payments,505,Other Establishments,5041,Revenue,00.WELFARE
02/08/2017,1478051,368.10,SWIFT - FOSTER CARER PAYMENTS,299981,"Health, Education, Care and Safeguarding",Children's & Education Services,103,Third Party Payments,505,Other Establishments,5041,Revenue,00.WELFARE
02/08/2017,1478052,-134.49,SWIFT - FOSTER CARER PAYMENTS,299981,"Health, Education, Care and Safeguarding",Children's & Education Services,103,Third Party Payments,505,Other Establishments,5041,Revenue,00.WELFARE
02/08/2017,1478052,-115.26,SWIFT - FOSTER CARER PAYMENTS,299981,"Health, Education, Care and Safeguarding",Children's & Education Services,103,Third Party Payments,505,Other Establishments,5041,Revenue,00.WELFARE
02/08/2017,1478052,-115.26,SWIFT - FOSTER CARER PAYMENTS,299981,"Health, Education, Care and Safeguarding",Children's & Education Services,103,Third Party Payments,505,Other Establishments,5041,Revenue,00.WELFARE
02/08/2017,1478052,-20.00,SWIFT - FOSTER CARER PAYMENTS,299981,"Health, Education, Care and Safeguarding",Children's & Education Services,103,Third Party Payments,505,Other Establishments,5041,Revenue,00.WELFARE
02/08/2017,1478052,-20.00,SWIFT - FOSTER CARER PAYMENTS,299981,"Health, Education, Care and Safeguarding",Children's & Education Services,103,Third Party Payments,505,Other Establishments,5041,Revenue,00.WELFARE
02/08/2017,1478052,42.24,SWIFT - FOSTER CARER PAYMENTS,299981,"Health, Education, Care and Safeguarding",Children's & Education Services,103,Third Party Payments,505,Other Establishments,5041,Revenue,00.WELFARE
02/08/2017,1478052,76.85,SWIFT - FOSTER CARER PAYMENTS,299981,"Health, Education, Care and Safeguarding",Children's & Education Services,103,Third Party Payments,505,Other Establishments,5041,Revenue,00.WELFARE
02/08/2017,1478052,76.85,SWIFT - FOSTER CARER PAYMENTS,299981,"Health, Education, Care and Safeguarding",Children's & Education Services,103,Third Party Payments,505,Other Establishments,5041,Revenue,00.WELFARE
02/08/2017,1478052,134.49,SWIFT - FOSTER CARER PAYMENTS,299981,"Health, Education, Care and Safeguarding",Children's & Education Services,103,Third Party Payments,505,Other Establishments,5041,Revenue,00.WELFARE
02/08/2017,1478052,230.52,SWIFT - FOSTER CARER PAYMENTS,299981,"Health, Education, Care and Safeguarding",Children's & Education Services,103,Third Party Payments,505,Other Establishments,5041,Revenue,00.WELFARE
02/08/2017,1478052,300.00,SWIFT - FOSTER CARER PAYMENTS,299981,"Health, Education, Care and Safeguarding",Children's & Education Services,103,Third Party Payments,505,Other Establishments,5041,Revenue,00.WELFARE
02/08/2017,1478053,-25.00,SWIFT - FOSTER CARER PAYMENTS,299981,"Health, Education, Care and Safeguarding",Children's & Education Services,103,Third Party Payments,505,Other Establishments,5041,Revenue,00.WELFARE
02/08/2017,1478053,-25.00,SWIFT - FOSTER CARER PAYMENTS,299981,"Health, Education, Care and Safeguarding",Children's & Education Services,103,Third Party Payments,505,Other Establishments,5041,Revenue,00.WELFARE
02/08/2017,1478053,180.00,SWIFT - FOSTER CARER PAYMENTS,299981,"Health, Education, Care and Safeguarding",Children's & Education Services,103,Third Party Payments,505,Other Establishments,5041,Revenue,00.WELFARE
02/08/2017,1478053,268.98,SWIFT - FOSTER CARER PAYMENTS,299981,"Health, Education, Care and Safeguarding",Children's & Education Services,103,Third Party Payments,505,Other Establishments,5041,Revenue,00.WELFARE
02/08/2017,1478055,198.28,SWIFT - FOSTER CARER PAYMENTS,299981,"Health, Education, Care and Safeguarding",Children's & Education Services,103,Third Party Payments,505,Other Establishments,5041,Revenue,00.WELFARE
02/08/2017,1478055,198.30,SWIFT - FOSTER CARER PAYMENTS,299981,"Health, Education, Care and Safeguarding",Children's & Education Services,103,Third Party Payments,505,Other Establishments,5041,Revenue,00.WELFARE
02/08/2017,1478057,295.68,SWIFT - FOSTER CARER PAYMENTS,299981,"Health, Education, Care and Safeguarding",Children's & Education Services,103,Third Party Payments,505,Other Establishments,5041,Revenue,00.WELFARE
02/08/2017,1478058,368.10,SWIFT - FOSTER CARER PAYMENTS,299981,"Health, Education, Care and Safeguarding",Children's & Education Services,103,Third Party Payments,505,Other Establishments,5041,Revenue,00.WELFARE
02/08/2017,1478063,150.00,SWIFT - FOSTER CARER PAYMENTS,299981,"Health, Education, Care and Safeguarding",Children's & Education Services,103,Third Party Payments,505,Other Establishments,5041,Revenue,00.WELFARE
02/08/2017,1478063,150.00,SWIFT - FOSTER CARER PAYMENTS,299981,"Health, Education, Care and Safeguarding",Children's & Education Services,103,Third Party Payments,505,Other Establishments,5041,Revenue,00.WELFARE
02/08/2017,1478063,295.68,SWIFT - FOSTER CARER PAYMENTS,299981,"Health, Education, Care and Safeguarding",Children's & Education Services,103,Third Party Payments,505,Other Establishments,5041,Revenue,00.WELFARE
02/08/2017,1478063,295.68,SWIFT - FOSTER CARER PAYMENTS,299981,"Health, Education, Care and Safeguarding",Children's & Education Services,103,Third Party Payments,505,Other Establishments,5041,Revenue,00.WELFARE
02/08/2017,1478063,300.00,SWIFT - FOSTER CARER PAYMENTS,299981,"Health, Education, Care and Safeguarding",Children's & Education Services,103,Third Party Payments,505,Other Establishments,5041,Revenue,00.WELFARE
02/08/2017,1478063,368.10,SWIFT - FOSTER CARER PAYMENTS,299981,"Health, Education, Care and Safeguarding",Children's & Education Services,103,Third Party Payments,505,Other Establishments,5041,Revenue,00.WELFARE
02/08/2017,1478067,112.85,SWIFT - FOSTER CARER PAYMENTS,299981,"Health, Education, Care and Safeguarding",Children's & Education Services,103,Third Party Payments,505,Other Establishments,5041,Revenue,00.WELFARE
02/08/2017,1478067,180.00,SWIFT - FOSTER CARER PAYMENTS,299981,"Health, Education, Care and Safeguarding",Children's & Education Services,103,Third Party Payments,505,Other Establishments,5041,Revenue,00.WELFARE
02/08/2017,1478067,295.68,SWIFT - FOSTER CARER PAYMENTS,299981,"Health, Education, Care and Safeguarding",Children's & Education Services,103,Third Party Payments,505,Other Establishments,5041,Revenue,00.WELFARE
02/08/2017,1478069,326.39,SWIFT - FOSTER CARER PAYMENTS,299981,"Health, Education, Care and Safeguarding",Children's & Education Services,103,Transfer Payments,506,School Children and Students,5046,Revenue,00.WELFARE
02/08/2017,1478069,326.39,SWIFT - FOSTER CARER PAYMENTS,299981,"Health, Education, Care and Safeguarding",Children's & Education Services,103,Transfer Payments,506,School Children and Students,5046,Revenue,00.WELFARE
02/08/2017,1478070,-38.92,SWIFT - FOSTER CARER PAYMENTS,299981,"Health, Education, Care and Safeguarding",Children's & Education Services,103,Third Party Payments,505,Other Establishments,5041,Revenue,00.WELFARE
02/08/2017,1478070,-17.14,SWIFT - FOSTER CARER PAYMENTS,299981,"Health, Education, Care and Safeguarding",Children's & Education Services,103,Third Party Payments,505,Other Establishments,5041,Revenue,00.WELFARE
02/08/2017,1478070,120.00,SWIFT - FOSTER CARER PAYMENTS,299981,"Health, Education, Care and Safeguarding",Children's & Education Services,103,Third Party Payments,505,Other Establishments,5041,Revenue,00.WELFARE
02/08/2017,1478070,180.00,SWIFT - FOSTER CARER PAYMENTS,299981,"Health, Education, Care and Safeguarding",Children's & Education Services,103,Third Party Payments,505,Other Establishments,5041,Revenue,00.WELFARE
02/08/2017,1478070,368.10,SWIFT - FOSTER CARER PAYMENTS,299981,"Health, Education, Care and Safeguarding",Children's & Education Services,103,Third Party Payments,505,Other Establishments,5041,Revenue,00.WELFARE
02/08/2017,1478071,120.00,SWIFT - FOSTER CARER PAYMENTS,299981,"Health, Education, Care and Safeguarding",Children's & Education Services,103,Third Party Payments,505,Other Establishments,5041,Revenue,00.WELFARE
02/08/2017,1478071,295.68,SWIFT - FOSTER CARER PAYMENTS,299981,"Health, Education, Care and Safeguarding",Children's & Education Services,103,Third Party Payments,505,Other Establishments,5041,Revenue,00.WELFARE
02/08/2017,1478071,300.00,SWIFT - FOSTER CARER PAYMENTS,299981,"Health, Education, Care and Safeguarding",Children's & Education Services,103,Third Party Payments,505,Other Establishments,5041,Revenue,00.WELFARE
02/08/2017,1478071,368.10,SWIFT - FOSTER CARER PAYMENTS,299981,"Health, Education, Care and Safeguarding",Children's & Education Services,103,Third Party Payments,505,Other Establishments,5041,Revenue,00.WELFARE
02/08/2017,1478072,268.98,SWIFT - FOSTER CARER PAYMENTS,299981,"Health, Education, Care and Safeguarding",Children's & Education Services,103,Third Party Payments,505,Other Establishments,5041,Revenue,00.WELFARE
02/08/2017,1478072,268.98,SWIFT - FOSTER CARER PAYMENTS,299981,"Health, Education, Care and Safeguarding",Children's & Education Services,103,Third Party Payments,505,Other Establishments,5041,Revenue,00.WELFARE
02/08/2017,1478074,120.00,SWIFT - FOSTER CARER PAYMENTS,299981,"Health, Education, Care and Safeguarding",Children's & Education Services,103,Third Party Payments,505,Other Establishments,5041,Revenue,00.WELFARE
02/08/2017,1478074,180.00,SWIFT - FOSTER CARER PAYMENTS,299981,"Health, Education, Care and Safeguarding",Children's & Education Services,103,Third Party Payments,505,Other Establishments,5041,Revenue,00.WELFARE
02/08/2017,1478074,283.36,SWIFT - FOSTER CARER PAYMENTS,299981,"Health, Education, Care and Safeguarding",Children's & Education Services,103,Third Party Payments,505,Other Establishments,5041,Revenue,00.WELFARE
02/08/2017,1478074,295.68,SWIFT - FOSTER CARER PAYMENTS,299981,"Health, Education, Care and Safeguarding",Children's & Education Services,103,Third Party Payments,505,Other Establishments,5041,Revenue,00.WELFARE
02/08/2017,1478075,180.00,SWIFT - FOSTER CARER PAYMENTS,299981,"Health, Education, Care and Safeguarding",Children's & Education Services,103,Third Party Payments,505,Other Establishments,5041,Revenue,00.WELFARE
02/08/2017,1478075,268.98,SWIFT - FOSTER CARER PAYMENTS,299981,"Health, Education, Care and Safeguarding",Children's & Education Services,103,Third Party Payments,505,Other Establishments,5041,Revenue,00.WELFARE
02/08/2017,1478075,295.68,SWIFT - FOSTER CARER PAYMENTS,299981,"Health, Education, Care and Safeguarding",Children's & Education Services,103,Third Party Payments,505,Other Establishments,5041,Revenue,00.WELFARE
02/08/2017,1478076,368.10,SWIFT - FOSTER CARER PAYMENTS,299981,"Health, Education, Care and Safeguarding",Children's & Education Services,103,Third Party Payments,505,Other Establishments,5041,Revenue,00.WELFARE
02/08/2017,1478077,180.00,SWIFT - FOSTER CARER PAYMENTS,299981,"Health, Education, Care and Safeguarding",Children's & Education Services,103,Third Party Payments,505,Other Establishments,5041,Revenue,00.WELFARE
02/08/2017,1478077,283.36,SWIFT - FOSTER CARER PAYMENTS,299981,"Health, Education, Care and Safeguarding",Children's & Education Services,103,Third Party Payments,505,Other Establishments,5041,Revenue,00.WELFARE
02/08/2017,1478080,180.00,SWIFT - FOSTER CARER PAYMENTS,299981,"Health, Education, Care and Safeguarding",Children's & Education Services,103,Third Party Payments,505,Other Establishments,5041,Revenue,00.WELFARE
02/08/2017,1478080,295.68,SWIFT - FOSTER CARER PAYMENTS,299981,"Health, Education, Care and Safeguarding",Children's & Education Services,103,Third Party Payments,505,Other Establishments,5041,Revenue,00.WELFARE
02/08/2017,1478081,84.74,SWIFT - FOSTER CARER PAYMENTS,299981,"Health, Education, Care and Safeguarding",Children's & Education Services,103,Third Party Payments,505,Other Establishments,5041,Revenue,00.WELFARE
02/08/2017,1478081,202.88,SWIFT - FOSTER CARER PAYMENTS,299981,"Health, Education, Care and Safeguarding",Children's & Education Services,103,Third Party Payments,505,Other Establishments,5041,Revenue,00.WELFARE
02/08/2017,1478081,283.36,SWIFT - FOSTER CARER PAYMENTS,299981,"Health, Education, Care and Safeguarding",Children's & Education Services,103,Third Party Payments,505,Other Establishments,5041,Revenue,00.WELFARE
02/08/2017,1478081,1200.00,SWIFT - FOSTER CARER PAYMENTS,299981,"Health, Education, Care and Safeguarding",Children's & Education Services,103,Third Party Payments,505,Other Establishments,5041,Revenue,00.WELFARE
02/08/2017,1478082,180.00,SWIFT - FOSTER CARER PAYMENTS,299981,"Health, Education, Care and Safeguarding",Children's & Education Services,103,Third Party Payments,505,Other Establishments,5041,Revenue,00.WELFARE
02/08/2017,1478082,205.42,SWIFT - FOSTER CARER PAYMENTS,299981,"Health, Education, Care and Safeguarding",Children's & Education Services,103,Third Party Payments,505,Other Establishments,5041,Revenue,00.WELFARE
02/08/2017,1478082,295.68,SWIFT - FOSTER CARER PAYMENTS,299981,"Health, Education, Care and Safeguarding",Children's & Education Services,103,Third Party Payments,505,Other Establishments,5041,Revenue,00.WELFARE
02/08/2017,1478083,17.14,SWIFT - FOSTER CARER PAYMENTS,299981,"Health, Education, Care and Safeguarding",Children's & Education Services,103,Third Party Payments,505,Other Establishments,5041,Revenue,00.WELFARE
02/08/2017,1478083,25.71,SWIFT - FOSTER CARER PAYMENTS,299981,"Health, Education, Care and Safeguarding",Children's & Education Services,103,Third Party Payments,505,Other Establishments,5041,Revenue,00.WELFARE
02/08/2017,1478083,52.59,SWIFT - FOSTER CARER PAYMENTS,299981,"Health, Education, Care and Safeguarding",Children's & Education Services,103,Third Party Payments,505,Other Establishments,5041,Revenue,00.WELFARE
02/08/2017,1478083,78.88,SWIFT - FOSTER CARER PAYMENTS,299981,"Health, Education, Care and Safeguarding",Children's & Education Services,103,Third Party Payments,505,Other Establishments,5041,Revenue,00.WELFARE
02/08/2017,1478083,180.00,SWIFT - FOSTER CARER PAYMENTS,299981,"Health, Education, Care and Safeguarding",Children's & Education Services,103,Third Party Payments,505,Other Establishments,5041,Revenue,00.WELFARE
02/08/2017,1478084,24.73,SWIFT - FOSTER CARER PAYMENTS,299981,"Health, Education, Care and Safeguarding",Children's & Education Services,103,Third Party Payments,505,Other Establishments,5041,Revenue,00.WELFARE
02/08/2017,1478084,25.71,SWIFT - FOSTER CARER PAYMENTS,299981,"Health, Education, Care and Safeguarding",Children's & Education Services,103,Third Party Payments,505,Other Establishments,5041,Revenue,00.WELFARE
02/08/2017,1478084,60.72,SWIFT - FOSTER CARER PAYMENTS,299981,"Health, Education, Care and Safeguarding",Children's & Education Services,103,Third Party Payments,505,Other Establishments,5041,Revenue,00.WELFARE
02/08/2017,1478084,136.50,SWIFT - FOSTER CARER PAYMENTS,299981,"Health, Education, Care and Safeguarding",Children's & Education Services,103,Third Party Payments,505,Voluntary Associations,5040,Revenue,00.WELFARE
02/08/2017,1478084,142.97,SWIFT - FOSTER CARER PAYMENTS,299981,"Health, Education, Care and Safeguarding",Children's & Education Services,103,Third Party Payments,505,Other Establishments,5041,Revenue,00.WELFARE
02/08/2017,1478084,213.50,SWIFT - FOSTER CARER PAYMENTS,299981,"Health, Education, Care and Safeguarding",Children's & Education Services,103,Third Party Payments,505,Voluntary Associations,5040,Revenue,00.WELFARE
02/08/2017,1478084,283.36,SWIFT - FOSTER CARER PAYMENTS,299981,"Health, Education, Care and Safeguarding",Children's & Education Services,103,Third Party Payments,505,Other Establishments,5041,Revenue,00.WELFARE
02/08/2017,1478084,327.10,SWIFT - FOSTER CARER PAYMENTS,299981,"Health, Education, Care and Safeguarding",Children's & Education Services,103,Third Party Payments,505,Other Establishments,5041,Revenue,00.WELFARE
02/08/2017,1478084,731.56,SWIFT - FOSTER CARER PAYMENTS,299981,"Health, Education, Care and Safeguarding",Children's & Education Services,103,Third Party Payments,505,Other Establishments,5041,Revenue,00.WELFARE
02/08/2017,1478085,84.74,SWIFT - FOSTER CARER PAYMENTS,299981,"Health, Education, Care and Safeguarding",Children's & Education Services,103,Third Party Payments,505,Other Establishments,5041,Revenue,00.WELFARE
02/08/2017,1478085,120.00,SWIFT - FOSTER CARER PAYMENTS,299981,"Health, Education, Care and Safeguarding",Children's & Education Services,103,Third Party Payments,505,Other Establishments,5041,Revenue,00.WELFARE
02/08/2017,1478085,180.00,SWIFT - FOSTER CARER PAYMENTS,299981,"Health, Education, Care and Safeguarding",Children's & Education Services,103,Third Party Payments,505,Other Establishments,5041,Revenue,00.WELFARE
02/08/2017,1478085,268.98,SWIFT - FOSTER CARER PAYMENTS,299981,"Health, Education, Care and Safeguarding",Children's & Education Services,103,Third Party Payments,505,Other Establishments,5041,Revenue,00.WELFARE
02/08/2017,1478085,283.36,SWIFT - FOSTER CARER PAYMENTS,299981,"Health, Education, Care and Safeguarding",Children's & Education Services,103,Third Party Payments,505,Other Establishments,5041,Revenue,00.WELFARE
02/08/2017,1478086,100.00,SWIFT - FOSTER CARER PAYMENTS,299981,"Health, Education, Care and Safeguarding",Children's & Education Services,103,Third Party Payments,505,Voluntary Associations,5040,Revenue,00.WELFARE
02/08/2017,1478086,180.00,SWIFT - FOSTER CARER PAYMENTS,299981,"Health, Education, Care and Safeguarding",Children's & Education Services,103,Third Party Payments,505,Other Establishments,5041,Revenue,00.WELFARE
02/08/2017,1478086,295.68,SWIFT - FOSTER CARER PAYMENTS,299981,"Health, Education, Care and Safeguarding",Children's & Education Services,103,Third Party Payments,505,Other Establishments,5041,Revenue,00.WELFARE
02/08/2017,1478086,375.33,SWIFT - FOSTER CARER PAYMENTS,299981,"Health, Education, Care and Safeguarding",Children's & Education Services,103,Third Party Payments,505,Other Establishments,5041,Revenue,00.WELFARE
02/08/2017,1478087,84.74,SWIFT - FOSTER CARER PAYMENTS,299981,"Health, Education, Care and Safeguarding",Children's & Education Services,103,Third Party Payments,505,Other Establishments,5041,Revenue,00.WELFARE
02/08/2017,1478087,84.74,SWIFT - FOSTER CARER PAYMENTS,299981,"Health, Education, Care and Safeguarding",Children's & Education Services,103,Third Party Payments,505,Other Establishments,5041,Revenue,00.WELFARE
02/08/2017,1478087,120.00,SWIFT - FOSTER CARER PAYMENTS,299981,"Health, Education, Care and Safeguarding",Children's & Education Services,103,Third Party Payments,505,Other Establishments,5041,Revenue,00.WELFARE
02/08/2017,1478087,120.00,SWIFT - FOSTER CARER PAYMENTS,299981,"Health, Education, Care and Safeguarding",Children's & Education Services,103,Third Party Payments,505,Other Establishments,5041,Revenue,00.WELFARE
02/08/2017,1478087,180.00,SWIFT - FOSTER CARER PAYMENTS,299981,"Health, Education, Care and Safeguarding",Children's & Education Services,103,Third Party Payments,505,Other Establishments,5041,Revenue,00.WELFARE
02/08/2017,1478087,283.36,SWIFT - FOSTER CARER PAYMENTS,299981,"Health, Education, Care and Safeguarding",Children's & Education Services,103,Third Party Payments,505,Other Establishments,5041,Revenue,00.WELFARE
02/08/2017,1478087,283.36,SWIFT - FOSTER CARER PAYMENTS,299981,"Health, Education, Care and Safeguarding",Children's & Education Services,103,Third Party Payments,505,Other Establishments,5041,Revenue,00.WELFARE
02/08/2017,1478088,824.92,SWIFT - FOSTER CARER PAYMENTS,299981,"Health, Education, Care and Safeguarding",Children's & Education Services,103,Third Party Payments,505,Other Establishments,5041,Revenue,00.WELFARE
02/08/2017,1478089,-38.92,SWIFT - FOSTER CARER PAYMENTS,299981,"Health, Education, Care and Safeguarding",Children's & Education Services,103,Third Party Payments,505,Other Establishments,5041,Revenue,00.WELFARE
02/08/2017,1478089,100.00,SWIFT - FOSTER CARER PAYMENTS,299981,"Health, Education, Care and Safeguarding",Children's & Education Services,103,Third Party Payments,505,Other Establishments,5041,Revenue,00.WELFARE
02/08/2017,1478089,368.10,SWIFT - FOSTER CARER PAYMENTS,299981,"Health, Education, Care and Safeguarding",Children's & Education Services,103,Third Party Payments,505,Other Establishments,5041,Revenue,00.WELFARE
02/08/2017,1478089,731.56,SWIFT - FOSTER CARER PAYMENTS,299981,"Health, Education, Care and Safeguarding",Children's & Education Services,103,Third Party Payments,505,Other Establishments,5041,Revenue,00.WELFARE
02/08/2017,1478091,100.00,SWIFT - FOSTER CARER PAYMENTS,299981,"Health, Education, Care and Safeguarding",Children's & Education Services,103,Third Party Payments,505,Voluntary Associations,5040,Revenue,00.WELFARE
02/08/2017,1478091,120.00,SWIFT - FOSTER CARER PAYMENTS,299981,"Health, Education, Care and Safeguarding",Children's & Education Services,103,Third Party Payments,505,Other Establishments,5041,Revenue,00.WELFARE
02/08/2017,1478091,120.00,SWIFT - FOSTER CARER PAYMENTS,299981,"Health, Education, Care and Safeguarding",Children's & Education Services,103,Third Party Payments,505,Other Establishments,5041,Revenue,00.WELFARE
02/08/2017,1478091,180.00,SWIFT - FOSTER CARER PAYMENTS,299981,"Health, Education, Care and Safeguarding",Children's & Education Services,103,Third Party Payments,505,Other Establishments,5041,Revenue,00.WELFARE
02/08/2017,1478091,184.05,SWIFT - FOSTER CARER PAYMENTS,299981,"Health, Education, Care and Safeguarding",Children's & Education Services,103,Third Party Payments,505,Other Establishments,5041,Revenue,00.WELFARE
02/08/2017,1478091,283.36,SWIFT - FOSTER CARER PAYMENTS,299981,"Health, Education, Care and Safeguarding",Children's & Education Services,103,Third Party Payments,505,Other Establishments,5041,Revenue,00.WELFARE
02/08/2017,1478091,368.10,SWIFT - FOSTER CARER PAYMENTS,299981,"Health, Education, Care and Safeguarding",Children's & Education Services,103,Third Party Payments,505,Other Establishments,5041,Revenue,00.WELFARE
02/08/2017,1478092,180.00,SWIFT - FOSTER CARER PAYMENTS,299981,"Health, Education, Care and Safeguarding",Children's & Education Services,103,Third Party Payments,505,Other Establishments,5041,Revenue,00.WELFARE
02/08/2017,1478092,254.68,SWIFT - FOSTER CARER PAYMENTS,299981,"Health, Education, Care and Safeguarding",Children's & Education Services,103,Third Party Payments,505,Other Establishments,5041,Revenue,00.WELFARE
02/08/2017,1478092,268.98,SWIFT - FOSTER CARER PAYMENTS,299981,"Health, Education, Care and Safeguarding",Children's & Education Services,103,Third Party Payments,505,Other Establishments,5041,Revenue,00.WELFARE
02/08/2017,1478093,368.10,SWIFT - FOSTER CARER PAYMENTS,299981,"Health, Education, Care and Safeguarding",Children's & Education Services,103,Third Party Payments,505,Other Establishments,5041,Revenue,00.WELFARE
02/08/2017,1478094,-25.00,SWIFT - FOSTER CARER PAYMENTS,299981,"Health, Education, Care and Safeguarding",Children's & Education Services,103,Third Party Payments,505,Other Establishments,5041,Revenue,00.WELFARE
02/08/2017,1478094,295.68,SWIFT - FOSTER CARER PAYMENTS,299981,"Health, Education, Care and Safeguarding",Children's & Education Services,103,Third Party Payments,505,Other Establishments,5041,Revenue,00.WELFARE
02/08/2017,1478094,295.68,SWIFT - FOSTER CARER PAYMENTS,299981,"Health, Education, Care and Safeguarding",Children's & Education Services,103,Third Party Payments,505,Other Establishments,5041,Revenue,00.WELFARE
02/08/2017,1478095,180.00,SWIFT - FOSTER CARER PAYMENTS,299981,"Health, Education, Care and Safeguarding",Children's & Education Services,103,Third Party Payments,505,Other Establishments,5041,Revenue,00.WELFARE
02/08/2017,1478095,268.98,SWIFT - FOSTER CARER PAYMENTS,299981,"Health, Education, Care and Safeguarding",Children's & Education Services,103,Third Party Payments,505,Other Establishments,5041,Revenue,00.WELFARE
02/08/2017,1478097,180.00,SWIFT - FOSTER CARER PAYMENTS,299981,"Health, Education, Care and Safeguarding",Children's & Education Services,103,Third Party Payments,505,Other Establishments,5041,Revenue,00.WELFARE
02/08/2017,1478097,283.36,SWIFT - FOSTER CARER PAYMENTS,299981,"Health, Education, Care and Safeguarding",Children's & Education Services,103,Third Party Payments,505,Other Establishments,5041,Revenue,00.WELFARE
02/08/2017,1478098,154.02,SWIFT - FOSTER CARER PAYMENTS,299981,"Health, Education, Care and Safeguarding",Children's & Education Services,103,Transfer Payments,506,School Children and Students,5046,Revenue,00.WELFARE
02/08/2017,1478098,154.02,SWIFT - FOSTER CARER PAYMENTS,299981,"Health, Education, Care and Safeguarding",Children's & Education Services,103,Transfer Payments,506,School Children and Students,5046,Revenue,00.WELFARE
02/08/2017,1478100,120.00,SWIFT - FOSTER CARER PAYMENTS,299981,"Health, Education, Care and Safeguarding",Children's & Education Services,103,Third Party Payments,505,Other Establishments,5041,Revenue,00.WELFARE
02/08/2017,1478100,180.00,SWIFT - FOSTER CARER PAYMENTS,299981,"Health, Education, Care and Safeguarding",Children's & Education Services,103,Third Party Payments,505,Other Establishments,5041,Revenue,00.WELFARE
02/08/2017,1478100,368.10,SWIFT - FOSTER CARER PAYMENTS,299981,"Health, Education, Care and Safeguarding",Children's & Education Services,103,Third Party Payments,505,Other Establishments,5041,Revenue,00.WELFARE
02/08/2017,1478101,120.00,SWIFT - FOSTER CARER PAYMENTS,299981,"Health, Education, Care and Safeguarding",Children's & Education Services,103,Third Party Payments,505,Other Establishments,5041,Revenue,00.WELFARE
02/08/2017,1478101,180.00,SWIFT - FOSTER CARER PAYMENTS,299981,"Health, Education, Care and Safeguarding",Children's & Education Services,103,Third Party Payments,505,Other Establishments,5041,Revenue,00.WELFARE
02/08/2017,1478101,184.05,SWIFT - FOSTER CARER PAYMENTS,299981,"Health, Education, Care and Safeguarding",Children's & Education Services,103,Third Party Payments,505,Other Establishments,5041,Revenue,00.WELFARE
02/08/2017,1478101,368.10,SWIFT - FOSTER CARER PAYMENTS,299981,"Health, Education, Care and Safeguarding",Children's & Education Services,103,Third Party Payments,505,Other Establishments,5041,Revenue,00.WELFARE
02/08/2017,1478102,120.00,SWIFT - FOSTER CARER PAYMENTS,299981,"Health, Education, Care and Safeguarding",Children's & Education Services,103,Third Party Payments,505,Other Establishments,5041,Revenue,00.WELFARE
02/08/2017,1478102,180.00,SWIFT - FOSTER CARER PAYMENTS,299981,"Health, Education, Care and Safeguarding",Children's & Education Services,103,Third Party Payments,505,Other Establishments,5041,Revenue,00.WELFARE
02/08/2017,1478102,295.68,SWIFT - FOSTER CARER PAYMENTS,299981,"Health, Education, Care and Safeguarding",Children's & Education Services,103,Third Party Payments,505,Other Establishments,5041,Revenue,00.WELFARE
02/08/2017,1478102,368.10,SWIFT - FOSTER CARER PAYMENTS,299981,"Health, Education, Care and Safeguarding",Children's & Education Services,103,Third Party Payments,505,Other Establishments,5041,Revenue,00.WELFARE
02/08/2017,1478103,120.00,SWIFT - FOSTER CARER PAYMENTS,299981,"Health, Education, Care and Safeguarding",Children's & Education Services,103,Third Party Payments,505,Other Establishments,5041,Revenue,00.WELFARE
02/08/2017,1478103,180.00,SWIFT - FOSTER CARER PAYMENTS,299981,"Health, Education, Care and Safeguarding",Children's & Education Services,103,Third Party Payments,505,Other Establishments,5041,Revenue,00.WELFARE
02/08/2017,1478103,368.10,SWIFT - FOSTER CARER PAYMENTS,299981,"Health, Education, Care and Safeguarding",Children's & Education Services,103,Third Party Payments,505,Other Establishments,5041,Revenue,00.WELFARE
02/08/2017,1478104,150.00,SWIFT - FOSTER CARER PAYMENTS,299981,"Health, Education, Care and Safeguarding",Children's & Education Services,103,Third Party Payments,505,Other Establishments,5041,Revenue,00.WELFARE
02/08/2017,1478104,150.00,SWIFT - FOSTER CARER PAYMENTS,299981,"Health, Education, Care and Safeguarding",Children's & Education Services,103,Third Party Payments,505,Other Establishments,5041,Revenue,00.WELFARE
02/08/2017,1478104,295.68,SWIFT - FOSTER CARER PAYMENTS,299981,"Health, Education, Care and Safeguarding",Children's & Education Services,103,Third Party Payments,505,Other Establishments,5041,Revenue,00.WELFARE
02/08/2017,1478104,300.00,SWIFT - FOSTER CARER PAYMENTS,299981,"Health, Education, Care and Safeguarding",Children's & Education Services,103,Third Party Payments,505,Other Establishments,5041,Revenue,00.WELFARE
02/08/2017,1478104,368.10,SWIFT - FOSTER CARER PAYMENTS,299981,"Health, Education, Care and Safeguarding",Children's & Education Services,103,Third Party Payments,505,Other Establishments,5041,Revenue,00.WELFARE
02/08/2017,1478104,368.10,SWIFT - FOSTER CARER PAYMENTS,299981,"Health, Education, Care and Safeguarding",Children's & Education Services,103,Third Party Payments,505,Other Establishments,5041,Revenue,00.WELFARE
02/08/2017,1478105,180.00,SWIFT - FOSTER CARER PAYMENTS,299981,"Health, Education, Care and Safeguarding",Children's & Education Services,103,Third Party Payments,505,Other Establishments,5041,Revenue,00.WELFARE
02/08/2017,1478105,200.00,SWIFT - FOSTER CARER PAYMENTS,299981,"Health, Education, Care and Safeguarding",Children's & Education Services,103,Third Party Payments,505,Voluntary Associations,5040,Revenue,00.WELFARE
02/08/2017,1478105,295.68,SWIFT - FOSTER CARER PAYMENTS,299981,"Health, Education, Care and Safeguarding",Children's & Education Services,103,Third Party Payments,505,Other Establishments,5041,Revenue,00.WELFARE
02/08/2017,1478105,295.68,SWIFT - FOSTER CARER PAYMENTS,299981,"Health, Education, Care and Safeguarding",Children's & Education Services,103,Third Party Payments,505,Other Establishments,5041,Revenue,00.WELFARE
02/08/2017,1478106,42.24,SWIFT - FOSTER CARER PAYMENTS,299981,"Health, Education, Care and Safeguarding",Children's & Education Services,103,Third Party Payments,505,Other Establishments,5041,Revenue,00.WELFARE
02/08/2017,1478106,84.74,SWIFT - FOSTER CARER PAYMENTS,299981,"Health, Education, Care and Safeguarding",Children's & Education Services,103,Third Party Payments,505,Other Establishments,5041,Revenue,00.WELFARE
02/08/2017,1478106,120.00,SWIFT - FOSTER CARER PAYMENTS,299981,"Health, Education, Care and Safeguarding",Children's & Education Services,103,Third Party Payments,505,Other Establishments,5041,Revenue,00.WELFARE
02/08/2017,1478106,150.00,SWIFT - FOSTER CARER PAYMENTS,299981,"Health, Education, Care and Safeguarding",Children's & Education Services,103,Third Party Payments,505,Other Establishments,5041,Revenue,00.WELFARE
02/08/2017,1478106,150.00,SWIFT - FOSTER CARER PAYMENTS,299981,"Health, Education, Care and Safeguarding",Children's & Education Services,103,Third Party Payments,505,Other Establishments,5041,Revenue,00.WELFARE
02/08/2017,1478106,150.00,SWIFT - FOSTER CARER PAYMENTS,299981,"Health, Education, Care and Safeguarding",Children's & Education Services,103,Third Party Payments,505,Other Establishments,5041,Revenue,00.WELFARE
02/08/2017,1478106,283.36,SWIFT - FOSTER CARER PAYMENTS,299981,"Health, Education, Care and Safeguarding",Children's & Education Services,103,Third Party Payments,505,Other Establishments,5041,Revenue,00.WELFARE
02/08/2017,1478106,300.00,SWIFT - FOSTER CARER PAYMENTS,299981,"Health, Education, Care and Safeguarding",Children's & Education Services,103,Third Party Payments,505,Other Establishments,5041,Revenue,00.WELFARE
02/08/2017,1478106,368.10,SWIFT - FOSTER CARER PAYMENTS,299981,"Health, Education, Care and Safeguarding",Children's & Education Services,103,Third Party Payments,505,Other Establishments,5041,Revenue,00.WELFARE
02/08/2017,1478107,120.00,SWIFT - FOSTER CARER PAYMENTS,299981,"Health, Education, Care and Safeguarding",Children's & Education Services,103,Third Party Payments,505,Other Establishments,5041,Revenue,00.WELFARE
02/08/2017,1478107,180.00,SWIFT - FOSTER CARER PAYMENTS,299981,"Health, Education, Care and Safeguarding",Children's & Education Services,103,Third Party Payments,505,Other Establishments,5041,Revenue,00.WELFARE
02/08/2017,1478107,202.28,SWIFT - FOSTER CARER PAYMENTS,299981,"Health, Education, Care and Safeguarding",Children's & Education Services,103,Third Party Payments,505,Other Establishments,5041,Revenue,00.WELFARE
02/08/2017,1478107,368.10,SWIFT - FOSTER CARER PAYMENTS,299981,"Health, Education, Care and Safeguarding",Children's & Education Services,103,Third Party Payments,505,Other Establishments,5041,Revenue,00.WELFARE
02/08/2017,1478110,368.10,SWIFT - FOSTER CARER PAYMENTS,299981,"Health, Education, Care and Safeguarding",Children's & Education Services,103,Third Party Payments,505,Other Establishments,5041,Revenue,00.WELFARE
02/08/2017,1478115,259.42,Redacted Personal Data,395239,"Health, Education, Care and Safeguarding",Children's & Education Services,103,Third Party Payments,505,Voluntary Associations,5040,Revenue,00.WELFARE
02/08/2017,1478119,269.22,Redacted Personal Data,393143,"Health, Education, Care and Safeguarding",Children's & Education Services,103,Third Party Payments,505,Voluntary Associations,5040,Revenue,00.WELFARE
02/08/2017,1478121,900.00,JONES LANG LASALLE,388538,Commissioning & Investment,Central Services,102,Supplies and Services,504,"Printing, Stationery and General Office Expenses",5026,Revenue,16.REAL ESTATE
02/08/2017,1478124,483.16,Redacted Personal Data,395022,"Health, Education, Care and Safeguarding",Children's & Education Services,103,Third Party Payments,505,Voluntary Associations,5040,Revenue,00.WELFARE
02/08/2017,1478125,381.18,Redacted Personal Data,392851,"Health, Education, Care and Safeguarding",Children's & Education Services,103,Third Party Payments,505,Voluntary Associations,5040,Revenue,00.WELFARE
02/08/2017,1478126,409.84,Redacted Personal Data,395021,"Health, Education, Care and Safeguarding",Children's & Education Services,103,Transfer Payments,506,School Children and Students,5046,Revenue,00.WELFARE
02/08/2017,1478127,414.32,Redacted Personal Data,394985,"Health, Education, Care and Safeguarding",Children's & Education Services,103,Third Party Payments,505,Voluntary Associations,5040,Revenue,00.WELFARE
02/08/2017,1478128,326.70,Redacted Personal Data,394916,"Health, Education, Care and Safeguarding",Children's & Education Services,103,Third Party Payments,505,Voluntary Associations,5040,Revenue,00.WELFARE
02/08/2017,1478144,274.18,Redacted Personal Data,390445,"Health, Education, Care and Safeguarding",Children's & Education Services,103,Third Party Payments,505,Voluntary Associations,5040,Revenue,00.WELFARE
02/08/2017,1478148,2128.00,EVERLASTING CARE LTD,363743,"Health, Education, Care and Safeguarding",Adult Social Care,101,Third Party Payments,505,Other Establishments,5041,Revenue,22.HOMECARE
02/08/2017,1478150,1290.84,NEWCASTLE CITY COUNCIL,014331,"Health, Education, Care and Safeguarding",Public Health,112,Third Party Payments,505,Private Contractors,5042,Revenue,PUB HEALTH.PUBLIC HEALTH
02/08/2017,1478150,1516.15,NEWCASTLE CITY COUNCIL,014331,"Health, Education, Care and Safeguarding",Public Health,112,Third Party Payments,505,Private Contractors,5042,Revenue,PUB HEALTH.PUBLIC HEALTH
02/08/2017,1478150,2963.90,NEWCASTLE CITY COUNCIL,014331,"Health, Education, Care and Safeguarding",Public Health,112,Third Party Payments,505,Private Contractors,5042,Revenue,PUB HEALTH.PUBLIC HEALTH
02/08/2017,1478150,3032.30,NEWCASTLE CITY COUNCIL,014331,"Health, Education, Care and Safeguarding",Public Health,112,Third Party Payments,505,Private Contractors,5042,Revenue,PUB HEALTH.PUBLIC HEALTH
02/08/2017,1478150,3032.30,NEWCASTLE CITY COUNCIL,014331,"Health, Education, Care and Safeguarding",Public Health,112,Third Party Payments,505,Private Contractors,5042,Revenue,PUB HEALTH.PUBLIC HEALTH
02/08/2017,1478150,3230.16,NEWCASTLE CITY COUNCIL,014331,"Health, Education, Care and Safeguarding",Public Health,112,Third Party Payments,505,Private Contractors,5042,Revenue,PUB HEALTH.PUBLIC HEALTH
02/08/2017,1478150,5586.64,NEWCASTLE CITY COUNCIL,014331,"Health, Education, Care and Safeguarding",Adult Social Care,101,Third Party Payments,505,Other Establishments,5041,Revenue,PUB HEALTH.PUBLIC HEALTH
02/08/2017,1478150,5925.27,NEWCASTLE CITY COUNCIL,014331,"Health, Education, Care and Safeguarding",Public Health,112,Third Party Payments,505,Private Contractors,5042,Revenue,PUB HEALTH.PUBLIC HEALTH
02/08/2017,1478150,5925.55,NEWCASTLE CITY COUNCIL,014331,"Health, Education, Care and Safeguarding",Public Health,112,Third Party Payments,505,Private Contractors,5042,Revenue,PUB HEALTH.PUBLIC HEALTH
02/08/2017,1478150,6552.00,NEWCASTLE CITY COUNCIL,014331,"Health, Education, Care and Safeguarding",Public Health,112,Third Party Payments,505,Private Contractors,5042,Revenue,PUB HEALTH.PUBLIC HEALTH
02/08/2017,1478150,8385.44,NEWCASTLE CITY COUNCIL,014331,"Health, Education, Care and Safeguarding",Public Health,112,Third Party Payments,505,Private Contractors,5042,Revenue,PUB HEALTH.PUBLIC HEALTH
02/08/2017,1478150,8790.92,NEWCASTLE CITY COUNCIL,014331,"Health, Education, Care and Safeguarding",Public Health,112,Third Party Payments,505,Private Contractors,5042,Revenue,PUB HEALTH.PUBLIC HEALTH
02/08/2017,1478150,9385.56,NEWCASTLE CITY COUNCIL,014331,"Health, Education, Care and Safeguarding",Adult Social Care,101,Third Party Payments,505,Other Establishments,5041,Revenue,PUB HEALTH.PUBLIC HEALTH
02/08/2017,1478150,18090.54,NEWCASTLE CITY COUNCIL,014331,"Health, Education, Care and Safeguarding",Public Health,112,Third Party Payments,505,Private Contractors,5042,Revenue,PUB HEALTH.PUBLIC HEALTH
02/08/2017,1478151,133.50,HARRY SMITH & CO,019626,Law & Governance,Central Services,102,Supplies and Services,504,"Printing, Stationery and General Office Expenses",5026,Revenue,23.STATIONERY
02/08/2017,1478151,178.00,HARRY SMITH & CO,019626,Law & Governance,Central Services,102,Supplies and Services,504,"Printing, Stationery and General Office Expenses",5026,Revenue,23.STATIONERY
02/08/2017,1478155,350.60,CAPITA SYMONDS LTD,376582,Capital,Capital,Capital,Third Party Payments,505,Private Contractors,5042,Capital,02.BUILDING SERVICES
02/08/2017,1478155,2350.93,CAPITA SYMONDS LTD,376582,Capital,Capital,Capital,Third Party Payments,505,Private Contractors,5042,Capital,02.BUILDING SERVICES
02/08/2017,1478155,5835.03,CAPITA SYMONDS LTD,376582,"Environment, Housing & Leisure",Housing Services,108,Third Party Payments,505,Private Contractors,5042,Revenue,02.BUILDING SERVICES
02/08/2017,1478162,474.76,Redacted Personal Data,382289,"Health, Education, Care and Safeguarding",Children's & Education Services,103,Third Party Payments,505,Other Establishments,5041,Revenue,00.WELFARE
02/08/2017,1478162,474.76,Redacted Personal Data,382289,"Health, Education, Care and Safeguarding",Children's & Education Services,103,Third Party Payments,505,Other Establishments,5041,Revenue,00.WELFARE
02/08/2017,1478166,883.90,Redacted Personal Data,387877,"Health, Education, Care and Safeguarding",Children's & Education Services,103,Third Party Payments,505,Voluntary Associations,5040,Revenue,00.NON INFLUENCIBLE
02/08/2017,1478170,868.00,V W GYMNASTICS,386888,"Environment, Housing & Leisure",Cultural & Related Services,104,Third Party Payments,505,Private Contractors,5042,Revenue,18.CONFERENCING
02/08/2017,1478175,273.16,Redacted Personal Data,353266,"Health, Education, Care and Safeguarding",Children's & Education Services,103,Third Party Payments,505,Voluntary Associations,5040,Revenue,NON INDIVIDUAL
02/08/2017,1478176,263.09,Redacted Personal Data,386022,"Health, Education, Care and Safeguarding",Children's & Education Services,103,Third Party Payments,505,Other Establishments,5041,Revenue,00.NON INFLUENCIBLE
02/08/2017,1478178,594.98,Redacted Personal Data,393961,"Health, Education, Care and Safeguarding",Children's & Education Services,103,Third Party Payments,505,Voluntary Associations,5040,Revenue,00.WELFARE
02/08/2017,1478183,600.00,Redacted Personal Data,393774,"Health, Education, Care and Safeguarding",Children's & Education Services,103,Transfer Payments,506,School Children and Students,5046,Revenue,00.WELFARE
02/08/2017,1478187,261.05,DIRECT TYRE MANAGEMENT LIMITED,393737,"Environment, Housing & Leisure",Unallocated,N/A,Transport,503,Direct Transport Costs,5016,Revenue,28.VEHICLE PARTS
02/08/2017,1478187,261.05,DIRECT TYRE MANAGEMENT LIMITED,393737,"Environment, Housing & Leisure",Unallocated,N/A,Transport,503,Direct Transport Costs,5016,Revenue,28.VEHICLE PARTS
02/08/2017,1478187,261.05,DIRECT TYRE MANAGEMENT LIMITED,393737,"Environment, Housing & Leisure",Unallocated,N/A,Transport,503,Direct Transport Costs,5016,Revenue,28.VEHICLE PARTS
02/08/2017,1478187,286.00,DIRECT TYRE MANAGEMENT LIMITED,393737,"Environment, Housing & Leisure",Unallocated,N/A,Transport,503,Direct Transport Costs,5016,Revenue,28.VEHICLE PARTS
02/08/2017,1478187,289.55,DIRECT TYRE MANAGEMENT LIMITED,393737,"Environment, Housing & Leisure",Unallocated,N/A,Transport,503,Direct Transport Costs,5016,Revenue,28.VEHICLE PARTS
02/08/2017,1478189,254.28,Redacted Personal Data,393730,"Health, Education, Care and Safeguarding",Children's & Education Services,103,Third Party Payments,505,Voluntary Associations,5040,Revenue,00.WELFARE
02/08/2017,1478190,254.28,Redacted Personal Data,344311,"Health, Education, Care and Safeguarding",Children's & Education Services,103,Third Party Payments,505,Voluntary Associations,5040,Revenue,00.WELFARE
02/08/2017,1478194,403.36,Redacted Personal Data,375124,"Health, Education, Care and Safeguarding",Children's & Education Services,103,Third Party Payments,505,Other Establishments,5041,Revenue,00.NON INFLUENCIBLE
02/08/2017,1478197,568.28,Redacted Personal Data,393412,"Health, Education, Care and Safeguarding",Children's & Education Services,103,Third Party Payments,505,Voluntary Associations,5040,Revenue,00.WELFARE
02/08/2017,1478199,330.06,Redacted Personal Data,386182,"Health, Education, Care and Safeguarding",Children's & Education Services,103,Third Party Payments,505,Voluntary Associations,5040,Revenue,00.NON INFLUENCIBLE
02/08/2017,1478200,522.56,Redacted Personal Data,393341,"Health, Education, Care and Safeguarding",Children's & Education Services,103,Third Party Payments,505,Voluntary Associations,5040,Revenue,00.WELFARE
02/08/2017,1478204,250.52,Redacted Personal Data,388351,"Health, Education, Care and Safeguarding",Children's & Education Services,103,Third Party Payments,505,Voluntary Associations,5040,Revenue,00.NON INFLUENCIBLE
02/08/2017,1478205,252.00,ALLAN FULLER LTD,392884,"Environment, Housing & Leisure",Unallocated,N/A,Transport,503,Direct Transport Costs,5016,Revenue,FLEET MGMT
02/08/2017,1478205,360.00,ALLAN FULLER LTD,392884,"Environment, Housing & Leisure",Unallocated,N/A,Transport,503,Direct Transport Costs,5016,Revenue,FLEET MGMT
02/08/2017,1478205,462.00,ALLAN FULLER LTD,392884,"Environment, Housing & Leisure",Unallocated,N/A,Transport,503,Direct Transport Costs,5016,Revenue,FLEET MGMT
02/08/2017,1478208,319.72,Redacted Personal Data,392714,"Health, Education, Care and Safeguarding",Children's & Education Services,103,Third Party Payments,505,Voluntary Associations,5040,Revenue,00.WELFARE
02/08/2017,1478211,607.35,DE LAGE LANDEN LEASING LIMITED,392448,Central Items,Central Services,102,Capital,Capital,Capital,Capital,Revenue,01.LIFT MAINTENANCE
02/08/2017,1478211,780.41,DE LAGE LANDEN LEASING LIMITED,392448,Central Items,Central Services,102,Capital,Capital,Capital,Capital,Revenue,01.LIFT MAINTENANCE
02/08/2017,1478211,817.73,DE LAGE LANDEN LEASING LIMITED,392448,Central Items,Central Services,102,Capital,Capital,Capital,Capital,Revenue,01.LIFT MAINTENANCE
02/08/2017,1478211,4713.10,DE LAGE LANDEN LEASING LIMITED,392448,Central Items,Central Services,102,Capital,Capital,Capital,Capital,Revenue,01.LIFT MAINTENANCE
02/08/2017,1478214,293.94,Redacted Personal Data,380027,"Health, Education, Care and Safeguarding",Children's & Education Services,103,Third Party Payments,505,Other Establishments,5041,Revenue,00.NON INFLUENCIBLE
02/08/2017,1478215,821.92,STERLING INTERNATIONAL BROKERS,391938,Central Items,Unallocated,N/A,Third Party Payments,505,Private Contractors,5042,Revenue,FINANCE INSURANCE
02/08/2017,1478217,288.66,Redacted Personal Data,391880,"Health, Education, Care and Safeguarding",Children's & Education Services,103,Third Party Payments,505,Voluntary Associations,5040,Revenue,00.NON INFLUENCIBLE
02/08/2017,1478222,846.11,SOUTHERN ELECTRIC CONTRACTING LIMITED,358397,Capital,Capital,Capital,Third Party Payments,505,Private Contractors,5042,Capital,27.ELECTRIC
02/08/2017,1478223,600.00,Redacted Personal Data,382428,"Environment, Housing & Leisure",Cultural & Related Services,104,Third Party Payments,505,Private Contractors,5042,Revenue,18.CONFERENCING
02/08/2017,1478224,291.09,Redacted Personal Data,390886,"Health, Education, Care and Safeguarding",Children's & Education Services,103,Third Party Payments,505,Voluntary Associations,5040,Revenue,00.NON INFLUENCIBLE
02/08/2017,1478228,439.36,Redacted Personal Data,394210,"Health, Education, Care and Safeguarding",Children's & Education Services,103,Third Party Payments,505,Voluntary Associations,5040,Revenue,00.WELFARE
02/08/2017,1478230,217.32,G BURLEY & SONS LTD,394205,Commissioning & Investment,Planning Services,110,Premises-Related Expenditure,502,"Repairs, alterations and maintenance of buildings",5005,Revenue,ENVIRO SERVICES
02/08/2017,1478233,341.32,Redacted Personal Data,394131,"Health, Education, Care and Safeguarding",Children's & Education Services,103,Third Party Payments,505,Voluntary Associations,5040,Revenue,00.WELFARE
02/08/2017,1478235,45.00,INDUSTRIAL CHEMICALS LIMITED,394063,"Environment, Housing & Leisure",Cultural & Related Services,104,Supplies and Services,504,Equipment,5023,Revenue,POOL MAINT
02/08/2017,1478235,52.50,INDUSTRIAL CHEMICALS LIMITED,394063,"Environment, Housing & Leisure",Cultural & Related Services,104,Supplies and Services,504,Equipment,5023,Revenue,POOL MAINT
02/08/2017,1478235,52.50,INDUSTRIAL CHEMICALS LIMITED,394063,"Environment, Housing & Leisure",Cultural & Related Services,104,Supplies and Services,504,Equipment,5023,Revenue,POOL MAINT
02/08/2017,1478235,52.50,INDUSTRIAL CHEMICALS LIMITED,394063,"Environment, Housing & Leisure",Cultural & Related Services,104,Supplies and Services,504,Equipment,5023,Revenue,POOL MAINT
02/08/2017,1478235,52.50,INDUSTRIAL CHEMICALS LIMITED,394063,"Environment, Housing & Leisure",Cultural & Related Services,104,Supplies and Services,504,Equipment,5023,Revenue,POOL MAINT
02/08/2017,1478235,52.50,INDUSTRIAL CHEMICALS LIMITED,394063,"Environment, Housing & Leisure",Cultural & Related Services,104,Supplies and Services,504,Equipment,5023,Revenue,POOL MAINT
02/08/2017,1478235,52.50,INDUSTRIAL CHEMICALS LIMITED,394063,"Environment, Housing & Leisure",Cultural & Related Services,104,Supplies and Services,504,Equipment,5023,Revenue,POOL MAINT
02/08/2017,1478235,855.00,INDUSTRIAL CHEMICALS LIMITED,394063,"Environment, Housing & Leisure",Cultural & Related Services,104,Supplies and Services,504,Equipment,5023,Revenue,POOL MAINT
02/08/2017,1478236,840.00,STARTASTIC,394059,"Environment, Housing & Leisure",Cultural & Related Services,104,Supplies and Services,504,Miscellaneous Expenses,5034,Revenue,16.EVENTS & PROMOTIONS
02/08/2017,1478237,500.00,THE NET NORTH SHIELDS CHARITY NUMBER 1151677,390204,"Environment, Housing & Leisure",Cultural & Related Services,104,Third Party Payments,505,Private Contractors,5042,Revenue,ROOM HIRE
02/08/2017,1478238,469.18,Redacted Personal Data,391462,"Health, Education, Care and Safeguarding",Children's & Education Services,103,Third Party Payments,505,Voluntary Associations,5040,Revenue,00.NON INFLUENCIBLE
02/08/2017,1478240,387.75,KAJIMA NORTH TYNESIDE LTD,356854,Capital,Capital,Capital,Third Party Payments,505,Private Contractors,5042,Capital,02.BUILDING SERVICES
02/08/2017,1478240,411829.25,KAJIMA NORTH TYNESIDE LTD,356854,Commissioning & Investment,Children's & Education Services,103,Third Party Payments,505,Private Contractors,5042,Revenue,02.BUILDING SERVICES
02/08/2017,1478242,991.54,STANDARD LIFE,391133,Commissioning & Investment,Central Services,102,Premises-Related Expenditure,502,Rents,5007,Revenue,00.NON INFLUENCIBLE
02/08/2017,1478242,9086.18,STANDARD LIFE,391133,Commissioning & Investment,Central Services,102,Premises-Related Expenditure,502,Rents,5007,Revenue,00.NON INFLUENCIBLE
02/08/2017,1478243,-33.83,DURHAM BUSINESS WEAR LTD,331187,"Environment, Housing & Leisure",Cultural & Related Services,104,Supplies and Services,504,"Clothing, Uniforms and Laundry",5025,Revenue,CLOTHING UNI
02/08/2017,1478243,13.49,DURHAM BUSINESS WEAR LTD,331187,"Environment, Housing & Leisure",Cultural & Related Services,104,Supplies and Services,504,"Clothing, Uniforms and Laundry",5025,Revenue,CLOTHING UNI
02/08/2017,1478243,13.49,DURHAM BUSINESS WEAR LTD,331187,"Environment, Housing & Leisure",Cultural & Related Services,104,Supplies and Services,504,"Clothing, Uniforms and Laundry",5025,Revenue,CLOTHING UNI
02/08/2017,1478243,13.49,DURHAM BUSINESS WEAR LTD,331187,"Environment, Housing & Leisure",Cultural & Related Services,104,Supplies and Services,504,"Clothing, Uniforms and Laundry",5025,Revenue,CLOTHING UNI
02/08/2017,1478243,13.49,DURHAM BUSINESS WEAR LTD,331187,"Environment, Housing & Leisure",Cultural & Related Services,104,Supplies and Services,504,"Clothing, Uniforms and Laundry",5025,Revenue,CLOTHING UNI
02/08/2017,1478243,13.49,DURHAM BUSINESS WEAR LTD,331187,"Environment, Housing & Leisure",Cultural & Related Services,104,Supplies and Services,504,"Clothing, Uniforms and Laundry",5025,Revenue,CLOTHING UNI
02/08/2017,1478243,14.00,DURHAM BUSINESS WEAR LTD,331187,"Environment, Housing & Leisure",Cultural & Related Services,104,Supplies and Services,504,"Clothing, Uniforms and Laundry",5025,Revenue,CLOTHING UNI
02/08/2017,1478243,16.50,DURHAM BUSINESS WEAR LTD,331187,"Environment, Housing & Leisure",Cultural & Related Services,104,Supplies and Services,504,"Clothing, Uniforms and Laundry",5025,Revenue,CLOTHING UNI
02/08/2017,1478243,16.50,DURHAM BUSINESS WEAR LTD,331187,"Environment, Housing & Leisure",Cultural & Related Services,104,Supplies and Services,504,"Clothing, Uniforms and Laundry",5025,Revenue,CLOTHING UNI
02/08/2017,1478243,16.50,DURHAM BUSINESS WEAR LTD,331187,"Environment, Housing & Leisure",Cultural & Related Services,104,Supplies and Services,504,"Clothing, Uniforms and Laundry",5025,Revenue,CLOTHING UNI
02/08/2017,1478243,16.50,DURHAM BUSINESS WEAR LTD,331187,"Environment, Housing & Leisure",Cultural & Related Services,104,Supplies and Services,504,"Clothing, Uniforms and Laundry",5025,Revenue,CLOTHING UNI
02/08/2017,1478243,19.95,DURHAM BUSINESS WEAR LTD,331187,"Environment, Housing & Leisure",Cultural & Related Services,104,Supplies and Services,504,"Clothing, Uniforms and Laundry",5025,Revenue,CLOTHING UNI
02/08/2017,1478243,19.95,DURHAM BUSINESS WEAR LTD,331187,"Environment, Housing & Leisure",Cultural & Related Services,104,Supplies and Services,504,"Clothing, Uniforms and Laundry",5025,Revenue,CLOTHING UNI
02/08/2017,1478243,19.95,DURHAM BUSINESS WEAR LTD,331187,"Environment, Housing & Leisure",Cultural & Related Services,104,Supplies and Services,504,"Clothing, Uniforms and Laundry",5025,Revenue,CLOTHING UNI
02/08/2017,1478243,19.95,DURHAM BUSINESS WEAR LTD,331187,"Environment, Housing & Leisure",Cultural & Related Services,104,Supplies and Services,504,"Clothing, Uniforms and Laundry",5025,Revenue,CLOTHING UNI
02/08/2017,1478243,19.95,DURHAM BUSINESS WEAR LTD,331187,"Environment, Housing & Leisure",Cultural & Related Services,104,Supplies and Services,504,"Clothing, Uniforms and Laundry",5025,Revenue,CLOTHING UNI
02/08/2017,1478243,19.95,DURHAM BUSINESS WEAR LTD,331187,"Environment, Housing & Leisure",Cultural & Related Services,104,Supplies and Services,504,"Clothing, Uniforms and Laundry",5025,Revenue,CLOTHING UNI
02/08/2017,1478243,26.98,DURHAM BUSINESS WEAR LTD,331187,"Environment, Housing & Leisure",Cultural & Related Services,104,Supplies and Services,504,"Clothing, Uniforms and Laundry",5025,Revenue,CLOTHING UNI
02/08/2017,1478243,33.83,DURHAM BUSINESS WEAR LTD,331187,"Environment, Housing & Leisure",Cultural & Related Services,104,Supplies and Services,504,"Clothing, Uniforms and Laundry",5025,Revenue,CLOTHING UNI
02/08/2017,1478243,39.90,DURHAM BUSINESS WEAR LTD,331187,"Environment, Housing & Leisure",Cultural & Related Services,104,Supplies and Services,504,"Clothing, Uniforms and Laundry",5025,Revenue,CLOTHING UNI
02/08/2017,1478243,39.90,DURHAM BUSINESS WEAR LTD,331187,"Environment, Housing & Leisure",Cultural & Related Services,104,Supplies and Services,504,"Clothing, Uniforms and Laundry",5025,Revenue,CLOTHING UNI
02/08/2017,1478243,57.98,DURHAM BUSINESS WEAR LTD,331187,"Environment, Housing & Leisure",Cultural & Related Services,104,Supplies and Services,504,"Clothing, Uniforms and Laundry",5025,Revenue,CLOTHING UNI
02/08/2017,1478243,57.98,DURHAM BUSINESS WEAR LTD,331187,"Environment, Housing & Leisure",Cultural & Related Services,104,Supplies and Services,504,"Clothing, Uniforms and Laundry",5025,Revenue,CLOTHING UNI
02/08/2017,1478243,57.98,DURHAM BUSINESS WEAR LTD,331187,"Environment, Housing & Leisure",Cultural & Related Services,104,Supplies and Services,504,"Clothing, Uniforms and Laundry",5025,Revenue,CLOTHING UNI
02/08/2017,1478243,57.98,DURHAM BUSINESS WEAR LTD,331187,"Environment, Housing & Leisure",Cultural & Related Services,104,Supplies and Services,504,"Clothing, Uniforms and Laundry",5025,Revenue,CLOTHING UNI
02/08/2017,1478243,67.66,DURHAM BUSINESS WEAR LTD,331187,"Environment, Housing & Leisure",Cultural & Related Services,104,Supplies and Services,504,"Clothing, Uniforms and Laundry",5025,Revenue,CLOTHING UNI
02/08/2017,1478243,67.66,DURHAM BUSINESS WEAR LTD,331187,"Environment, Housing & Leisure",Cultural & Related Services,104,Supplies and Services,504,"Clothing, Uniforms and Laundry",5025,Revenue,CLOTHING UNI
02/08/2017,1478246,341.24,Redacted Personal Data,306816,"Health, Education, Care and Safeguarding",Children's & Education Services,103,Third Party Payments,505,Voluntary Associations,5040,Revenue,NON INDIVIDUAL
02/08/2017,1478250,471.00,Redacted Personal Data,317517,"Environment, Housing & Leisure",Cultural & Related Services,104,Third Party Payments,505,Private Contractors,5042,Revenue,18.CONFERENCING
02/08/2017,1478251,720.00,BARNARDO'S,029324,"Health, Education, Care and Safeguarding",Children's & Education Services,103,Third Party Payments,505,Private Contractors,5042,Revenue,22.SUPPORT SERVICES
02/08/2017,1478255,700.00,ALBANY OFFICE EQUIPMENT (WHOLESALE) LTD,306382,Commissioning & Investment,Central Services,102,Supplies and Services,504,"Printing, Stationery and General Office Expenses",5026,Revenue,10.OFFICE
02/08/2017,1478259,627.10,Redacted Personal Data,359514,"Health, Education, Care and Safeguarding",Children's & Education Services,103,Third Party Payments,505,Other Establishments,5041,Revenue,NON INDIVIDUAL
02/08/2017,1478260,268.28,Redacted Personal Data,383764,"Health, Education, Care and Safeguarding",Children's & Education Services,103,Third Party Payments,505,Voluntary Associations,5040,Revenue,00.NON INFLUENCIBLE
02/08/2017,1478260,295.68,Redacted Personal Data,383764,"Health, Education, Care and Safeguarding",Children's & Education Services,103,Third Party Payments,505,Other Establishments,5041,Revenue,00.NON INFLUENCIBLE
02/08/2017,1478260,731.56,Redacted Personal Data,383764,"Health, Education, Care and Safeguarding",Children's & Education Services,103,Third Party Payments,505,Other Establishments,5041,Revenue,00.NON INFLUENCIBLE
02/08/2017,1478263,1857.50,YMCA NORTH TYNESIDE,356069,"Health, Education, Care and Safeguarding",Children's & Education Services,103,Premises-Related Expenditure,502,Rents,5007,Revenue,22.SUPPORT SERVICES
02/08/2017,1478266,224.00,LOW FELL REMOVALS,302158,Commissioning & Investment,Central Services,102,Supplies and Services,504,"Printing, Stationery and General Office Expenses",5026,Revenue,18.REMOVALS
02/08/2017,1478268,25.00,CONTINENTAL SPORTS LTD,320020,"Environment, Housing & Leisure",Cultural & Related Services,104,Supplies and Services,504,Equipment,5023,Revenue,SPORTS EQUIP
02/08/2017,1478268,1320.00,CONTINENTAL SPORTS LTD,320020,"Environment, Housing & Leisure",Cultural & Related Services,104,Supplies and Services,504,Equipment,5023,Revenue,SPORTS EQUIP
02/08/2017,1478269,37841.23,PERCY HEDLEY FOUNDATION,252934,"Health, Education, Care and Safeguarding",Public Health,112,Third Party Payments,505,Private Contractors,5042,Revenue,22.DAY CARE SERVICES
02/08/2017,1478270,442.08,CIVICA UK LTD,373166,Housing Revenue Account,Housing Revenue Account,N/A,Supplies and Services,504,Communications & Computing,5028,Revenue,15.SOFTWARE
02/08/2017,1478271,371.03,Redacted Personal Data,380621,"Health, Education, Care and Safeguarding",Children's & Education Services,103,Third Party Payments,505,Other Establishments,5041,Revenue,00.NON INFLUENCIBLE
02/08/2017,1478273,3520.00,HOWARD HOUSE CARE LIMITED,358471,"Health, Education, Care and Safeguarding",Children's & Education Services,103,Third Party Payments,505,Private Contractors,5042,Revenue,22.RESIDENTIAL
02/08/2017,1478273,6092.00,HOWARD HOUSE CARE LIMITED,358471,"Health, Education, Care and Safeguarding",Children's & Education Services,103,Third Party Payments,505,Private Contractors,5042,Revenue,22.RESIDENTIAL
02/08/2017,1478274,4380.30,FOSTER CARE ASSOCIATES LIMITED,343163,"Health, Education, Care and Safeguarding",Children's & Education Services,103,Third Party Payments,505,Voluntary Associations,5040,Revenue,FOSTER CARE
02/08/2017,1478277,297.06,Redacted Personal Data,385565,"Health, Education, Care and Safeguarding",Children's & Education Services,103,Third Party Payments,505,Voluntary Associations,5040,Revenue,00.NON INFLUENCIBLE
02/08/2017,1478281,534.20,Redacted Personal Data,378091,"Health, Education, Care and Safeguarding",Children's & Education Services,103,Third Party Payments,505,Other Establishments,5041,Revenue,00.WELFARE
02/08/2017,1478282,293.60,Redacted Personal Data,378033,"Health, Education, Care and Safeguarding",Children's & Education Services,103,Third Party Payments,505,Voluntary Associations,5040,Revenue,00.WELFARE
02/08/2017,1478283,277.22,Redacted Personal Data,373806,"Health, Education, Care and Safeguarding",Children's & Education Services,103,Third Party Payments,505,Voluntary Associations,5040,Revenue,00.NON INFLUENCIBLE
02/08/2017,1478283,413.06,Redacted Personal Data,373806,"Health, Education, Care and Safeguarding",Children's & Education Services,103,Third Party Payments,505,Voluntary Associations,5040,Revenue,00.NON INFLUENCIBLE
02/08/2017,1478284,790.00,G HARRISONS T/A GMA MOTORS,343303,"Environment, Housing & Leisure",Unallocated,N/A,Transport,503,Direct Transport Costs,5016,Revenue,28.VEHICLE PARTS
02/08/2017,1478286,2100.00,MEADOW WELL CONNECTED,355522,"Health, Education, Care and Safeguarding",Children's & Education Services,103,Third Party Payments,505,Private Contractors,5042,Revenue,22.SUPPORT SERVICES
02/08/2017,1478287,950.00,NORTH EAST SUPPORTED TENANCIES,376304,"Health, Education, Care and Safeguarding",Children's & Education Services,103,Third Party Payments,505,Other Establishments,5041,Revenue,22.SUPPORT SERVICES
02/08/2017,1478287,950.00,NORTH EAST SUPPORTED TENANCIES,376304,"Health, Education, Care and Safeguarding",Children's & Education Services,103,Third Party Payments,505,Other Establishments,5041,Revenue,22.SUPPORT SERVICES
02/08/2017,1478287,950.00,NORTH EAST SUPPORTED TENANCIES,376304,"Health, Education, Care and Safeguarding",Children's & Education Services,103,Third Party Payments,505,Other Establishments,5041,Revenue,22.SUPPORT SERVICES
02/08/2017,1478287,950.00,NORTH EAST SUPPORTED TENANCIES,376304,"Health, Education, Care and Safeguarding",Children's & Education Services,103,Third Party Payments,505,Other Establishments,5041,Revenue,22.SUPPORT SERVICES
02/08/2017,1478287,950.00,NORTH EAST SUPPORTED TENANCIES,376304,"Health, Education, Care and Safeguarding",Children's & Education Services,103,Third Party Payments,505,Other Establishments,5041,Revenue,22.SUPPORT SERVICES
02/08/2017,1478287,950.00,NORTH EAST SUPPORTED TENANCIES,376304,"Health, Education, Care and Safeguarding",Children's & Education Services,103,Third Party Payments,505,Other Establishments,5041,Revenue,22.SUPPORT SERVICES
02/08/2017,1478287,950.00,NORTH EAST SUPPORTED TENANCIES,376304,"Health, Education, Care and Safeguarding",Children's & Education Services,103,Third Party Payments,505,Other Establishments,5041,Revenue,22.SUPPORT SERVICES
02/08/2017,1478287,950.00,NORTH EAST SUPPORTED TENANCIES,376304,"Health, Education, Care and Safeguarding",Children's & Education Services,103,Third Party Payments,505,Other Establishments,5041,Revenue,22.SUPPORT SERVICES
02/08/2017,1478289,535.08,Redacted Personal Data,359882,"Health, Education, Care and Safeguarding",Children's & Education Services,103,Third Party Payments,505,Other Establishments,5041,Revenue,NON INDIVIDUAL
02/08/2017,1478291,1012.00,FIRST CLASS SUPPLY & TRAINING LTD,356089,"Health, Education, Care and Safeguarding",Children's & Education Services,103,Third Party Payments,505,Private Contractors,5042,Revenue,18.CONFERENCING
02/08/2017,1478292,335.83,Redacted Personal Data,382351,"Health, Education, Care and Safeguarding",Children's & Education Services,103,Third Party Payments,505,Other Establishments,5041,Revenue,00.NON INFLUENCIBLE
03/08/2017,1478294,720.00,HOUSING BENEFIT,299992,Finance,Housing Services,108,Transfer Payments,506,Housing Benefits,5048,Revenue,00.NON INFLUENCIBLE
03/08/2017,1478296,1442.17,HOUSING BENEFIT,299992,Finance,Housing Services,108,Transfer Payments,506,Housing Benefits,5048,Revenue,00.NON INFLUENCIBLE
03/08/2017,1478297,1460.16,HOUSING BENEFIT,299992,Finance,Housing Services,108,Transfer Payments,506,Housing Benefits,5048,Revenue,00.NON INFLUENCIBLE
03/08/2017,1478298,539.86,HOUSING BENEFIT,299992,Finance,Housing Services,108,Transfer Payments,506,Housing Benefits,5048,Revenue,00.NON INFLUENCIBLE
03/08/2017,1478301,732.48,HOUSING BENEFIT,299992,Finance,Housing Services,108,Transfer Payments,506,Housing Benefits,5048,Revenue,00.NON INFLUENCIBLE
03/08/2017,1478303,1396.17,HOUSING BENEFIT,299992,Finance,Housing Services,108,Transfer Payments,506,Housing Benefits,5048,Revenue,00.NON INFLUENCIBLE
03/08/2017,1478308,359.60,HOUSING BENEFIT,299992,Finance,Housing Services,108,Transfer Payments,506,Housing Benefits,5048,Revenue,00.NON INFLUENCIBLE
03/08/2017,1478311,1419.16,HOUSING BENEFIT,299992,Finance,Housing Services,108,Transfer Payments,506,Housing Benefits,5048,Revenue,00.NON INFLUENCIBLE
03/08/2017,1478312,2467.60,HOUSING BENEFIT,299992,Finance,Housing Services,108,Transfer Payments,506,Housing Benefits,5048,Revenue,00.NON INFLUENCIBLE
03/08/2017,1478313,3068.17,HOUSING BENEFIT,299992,Finance,Housing Services,108,Transfer Payments,506,Housing Benefits,5048,Revenue,00.NON INFLUENCIBLE
03/08/2017,1478314,937.89,HOUSING BENEFIT,299992,Finance,Housing Services,108,Transfer Payments,506,Housing Benefits,5048,Revenue,00.NON INFLUENCIBLE
03/08/2017,1478315,2370.98,HOUSING BENEFIT,299992,Finance,Housing Services,108,Transfer Payments,506,Housing Benefits,5048,Revenue,00.NON INFLUENCIBLE
03/08/2017,1478316,368.68,HOUSING BENEFIT,299992,Finance,Housing Services,108,Transfer Payments,506,Housing Benefits,5048,Revenue,00.NON INFLUENCIBLE
03/08/2017,1478317,894.45,HOUSING BENEFIT,299992,Finance,Housing Services,108,Transfer Payments,506,Housing Benefits,5048,Revenue,00.NON INFLUENCIBLE
03/08/2017,1478318,360.00,HOUSING BENEFIT,299992,Finance,Housing Services,108,Transfer Payments,506,Housing Benefits,5048,Revenue,00.NON INFLUENCIBLE
03/08/2017,1478319,363.60,HOUSING BENEFIT,299992,Finance,Housing Services,108,Transfer Payments,506,Housing Benefits,5048,Revenue,00.NON INFLUENCIBLE
03/08/2017,1478321,342.86,HOUSING BENEFIT,299992,Finance,Housing Services,108,Transfer Payments,506,Housing Benefits,5048,Revenue,00.NON INFLUENCIBLE
03/08/2017,1478322,323.08,HOUSING BENEFIT,299992,Finance,Housing Services,108,Transfer Payments,506,Housing Benefits,5048,Revenue,00.NON INFLUENCIBLE
03/08/2017,1478327,374.52,HOUSING BENEFIT,299992,Finance,Housing Services,108,Transfer Payments,506,Housing Benefits,5048,Revenue,00.NON INFLUENCIBLE
03/08/2017,1478331,363.60,HOUSING BENEFIT,299992,Finance,Housing Services,108,Transfer Payments,506,Housing Benefits,5048,Revenue,00.NON INFLUENCIBLE
03/08/2017,1478336,663.45,HOUSING BENEFIT,299992,Finance,Housing Services,108,Transfer Payments,506,Housing Benefits,5048,Revenue,00.NON INFLUENCIBLE
03/08/2017,1478337,410.31,HOUSING BENEFIT,299992,Finance,Housing Services,108,Transfer Payments,506,Housing Benefits,5048,Revenue,00.NON INFLUENCIBLE
03/08/2017,1478344,310.68,HOUSING BENEFIT,299992,Finance,Housing Services,108,Transfer Payments,506,Housing Benefits,5048,Revenue,00.NON INFLUENCIBLE
03/08/2017,1478347,344.39,HOUSING BENEFIT,299992,Finance,Housing Services,108,Transfer Payments,506,Housing Benefits,5048,Revenue,00.NON INFLUENCIBLE
03/08/2017,1478348,363.60,HOUSING BENEFIT,299992,Finance,Housing Services,108,Transfer Payments,506,Housing Benefits,5048,Revenue,00.NON INFLUENCIBLE
03/08/2017,1478356,414.24,HOUSING BENEFIT,299992,Finance,Housing Services,108,Transfer Payments,506,Housing Benefits,5048,Revenue,00.NON INFLUENCIBLE
03/08/2017,1478357,1552.63,HOUSING BENEFIT,299992,Finance,Housing Services,108,Transfer Payments,506,Housing Benefits,5048,Revenue,00.NON INFLUENCIBLE
03/08/2017,1478360,591.77,HOUSING BENEFIT,299992,Finance,Housing Services,108,Transfer Payments,506,Housing Benefits,5048,Revenue,00.NON INFLUENCIBLE
03/08/2017,1478362,1000.00,HOUSING BENEFIT,299992,Finance,Housing Services,108,Transfer Payments,506,Housing Benefits,5048,Revenue,00.NON INFLUENCIBLE
03/08/2017,1478364,88.74,Redacted Personal Data,393838,Housing Revenue Account,Housing Services,108,Supplies and Services,504,Equipment,5023,Revenue,10.HOUSEHOLD
03/08/2017,1478364,213.24,Redacted Personal Data,393838,Housing Revenue Account,Housing Services,108,Supplies and Services,504,Equipment,5023,Revenue,10.HOUSEHOLD
03/08/2017,1478364,213.24,Redacted Personal Data,393838,Housing Revenue Account,Housing Services,108,Supplies and Services,504,Equipment,5023,Revenue,10.HOUSEHOLD
03/08/2017,1478364,213.24,Redacted Personal Data,393838,Housing Revenue Account,Housing Services,108,Supplies and Services,504,Equipment,5023,Revenue,10.HOUSEHOLD
03/08/2017,1478364,213.24,Redacted Personal Data,393838,Housing Revenue Account,Housing Services,108,Supplies and Services,504,Equipment,5023,Revenue,10.HOUSEHOLD
03/08/2017,1478364,213.24,Redacted Personal Data,393838,Housing Revenue Account,Housing Services,108,Supplies and Services,504,Equipment,5023,Revenue,10.HOUSEHOLD
03/08/2017,1478364,213.24,Redacted Personal Data,393838,Housing Revenue Account,Housing Services,108,Supplies and Services,504,Equipment,5023,Revenue,10.HOUSEHOLD
03/08/2017,1478364,213.24,Redacted Personal Data,393838,Housing Revenue Account,Housing Services,108,Supplies and Services,504,Equipment,5023,Revenue,10.HOUSEHOLD
03/08/2017,1478364,213.24,Redacted Personal Data,393838,Housing Revenue Account,Housing Services,108,Supplies and Services,504,Equipment,5023,Revenue,10.HOUSEHOLD
03/08/2017,1478364,213.24,Redacted Personal Data,393838,Housing Revenue Account,Housing Services,108,Supplies and Services,504,Equipment,5023,Revenue,10.HOUSEHOLD
03/08/2017,1478364,213.24,Redacted Personal Data,393838,Housing Revenue Account,Housing Services,108,Supplies and Services,504,Equipment,5023,Revenue,10.HOUSEHOLD
03/08/2017,1478364,213.24,Redacted Personal Data,393838,Housing Revenue Account,Housing Services,108,Supplies and Services,504,Equipment,5023,Revenue,10.HOUSEHOLD
03/08/2017,1478364,213.24,Redacted Personal Data,393838,Housing Revenue Account,Housing Services,108,Supplies and Services,504,Equipment,5023,Revenue,10.HOUSEHOLD
03/08/2017,1478364,213.24,Redacted Personal Data,393838,Housing Revenue Account,Housing Services,108,Supplies and Services,504,Equipment,5023,Revenue,10.HOUSEHOLD
03/08/2017,1478364,213.24,Redacted Personal Data,393838,Housing Revenue Account,Housing Services,108,Supplies and Services,504,Equipment,5023,Revenue,10.HOUSEHOLD
03/08/2017,1478364,213.24,Redacted Personal Data,393838,Housing Revenue Account,Housing Services,108,Supplies and Services,504,Equipment,5023,Revenue,10.HOUSEHOLD
03/08/2017,1478364,213.24,Redacted Personal Data,393838,Housing Revenue Account,Housing Services,108,Supplies and Services,504,Equipment,5023,Revenue,10.HOUSEHOLD
03/08/2017,1478364,213.24,Redacted Personal Data,393838,Housing Revenue Account,Housing Services,108,Supplies and Services,504,Equipment,5023,Revenue,10.HOUSEHOLD
03/08/2017,1478364,215.59,Redacted Personal Data,393838,Housing Revenue Account,Housing Services,108,Supplies and Services,504,Equipment,5023,Revenue,10.HOUSEHOLD
03/08/2017,1478364,215.59,Redacted Personal Data,393838,Housing Revenue Account,Housing Services,108,Supplies and Services,504,Equipment,5023,Revenue,10.HOUSEHOLD
03/08/2017,1478364,215.59,Redacted Personal Data,393838,Housing Revenue Account,Housing Services,108,Supplies and Services,504,Equipment,5023,Revenue,10.HOUSEHOLD
03/08/2017,1478364,215.59,Redacted Personal Data,393838,Housing Revenue Account,Housing Services,108,Supplies and Services,504,Equipment,5023,Revenue,10.HOUSEHOLD
03/08/2017,1478364,215.59,Redacted Personal Data,393838,Housing Revenue Account,Housing Services,108,Supplies and Services,504,Equipment,5023,Revenue,10.HOUSEHOLD
03/08/2017,1478364,215.59,Redacted Personal Data,393838,Housing Revenue Account,Housing Services,108,Supplies and Services,504,Equipment,5023,Revenue,10.HOUSEHOLD
03/08/2017,1478364,215.59,Redacted Personal Data,393838,Housing Revenue Account,Housing Services,108,Supplies and Services,504,Equipment,5023,Revenue,10.HOUSEHOLD
03/08/2017,1478364,215.59,Redacted Personal Data,393838,Housing Revenue Account,Housing Services,108,Supplies and Services,504,Equipment,5023,Revenue,10.HOUSEHOLD
03/08/2017,1478364,215.59,Redacted Personal Data,393838,Housing Revenue Account,Housing Services,108,Supplies and Services,504,Equipment,5023,Revenue,10.HOUSEHOLD
03/08/2017,1478364,215.59,Redacted Personal Data,393838,Housing Revenue Account,Housing Services,108,Supplies and Services,504,Equipment,5023,Revenue,10.HOUSEHOLD
03/08/2017,1478364,215.59,Redacted Personal Data,393838,Housing Revenue Account,Housing Services,108,Supplies and Services,504,Equipment,5023,Revenue,10.HOUSEHOLD
03/08/2017,1478364,215.59,Redacted Personal Data,393838,Housing Revenue Account,Housing Services,108,Supplies and Services,504,Equipment,5023,Revenue,10.HOUSEHOLD
03/08/2017,1478364,240.03,Redacted Personal Data,393838,Housing Revenue Account,Housing Services,108,Supplies and Services,504,Equipment,5023,Revenue,10.HOUSEHOLD
03/08/2017,1478364,240.03,Redacted Personal Data,393838,Housing Revenue Account,Housing Services,108,Supplies and Services,504,Equipment,5023,Revenue,10.HOUSEHOLD
03/08/2017,1478364,240.03,Redacted Personal Data,393838,Housing Revenue Account,Housing Services,108,Supplies and Services,504,Equipment,5023,Revenue,10.HOUSEHOLD
03/08/2017,1478364,240.03,Redacted Personal Data,393838,Housing Revenue Account,Housing Services,108,Supplies and Services,504,Equipment,5023,Revenue,10.HOUSEHOLD
03/08/2017,1478364,240.03,Redacted Personal Data,393838,Housing Revenue Account,Housing Services,108,Supplies and Services,504,Equipment,5023,Revenue,10.HOUSEHOLD
03/08/2017,1478364,240.03,Redacted Personal Data,393838,Housing Revenue Account,Housing Services,108,Supplies and Services,504,Equipment,5023,Revenue,10.HOUSEHOLD
03/08/2017,1478364,240.03,Redacted Personal Data,393838,Housing Revenue Account,Housing Services,108,Supplies and Services,504,Equipment,5023,Revenue,10.HOUSEHOLD
03/08/2017,1478364,240.03,Redacted Personal Data,393838,Housing Revenue Account,Housing Services,108,Supplies and Services,504,Equipment,5023,Revenue,10.HOUSEHOLD
03/08/2017,1478364,240.03,Redacted Personal Data,393838,Housing Revenue Account,Housing Services,108,Supplies and Services,504,Equipment,5023,Revenue,10.HOUSEHOLD
03/08/2017,1478364,240.03,Redacted Personal Data,393838,Housing Revenue Account,Housing Services,108,Supplies and Services,504,Equipment,5023,Revenue,10.HOUSEHOLD
03/08/2017,1478364,240.03,Redacted Personal Data,393838,Housing Revenue Account,Housing Services,108,Supplies and Services,504,Equipment,5023,Revenue,10.HOUSEHOLD
03/08/2017,1478364,240.03,Redacted Personal Data,393838,Housing Revenue Account,Housing Services,108,Supplies and Services,504,Equipment,5023,Revenue,10.HOUSEHOLD
03/08/2017,1478364,240.03,Redacted Personal Data,393838,Housing Revenue Account,Housing Services,108,Supplies and Services,504,Equipment,5023,Revenue,10.HOUSEHOLD
03/08/2017,1478364,240.03,Redacted Personal Data,393838,Housing Revenue Account,Housing Services,108,Supplies and Services,504,Equipment,5023,Revenue,10.HOUSEHOLD
03/08/2017,1478364,241.92,Redacted Personal Data,393838,Housing Revenue Account,Housing Services,108,Supplies and Services,504,Equipment,5023,Revenue,10.HOUSEHOLD
03/08/2017,1478364,241.92,Redacted Personal Data,393838,Housing Revenue Account,Housing Services,108,Supplies and Services,504,Equipment,5023,Revenue,10.HOUSEHOLD
03/08/2017,1478364,242.37,Redacted Personal Data,393838,Housing Revenue Account,Housing Services,108,Supplies and Services,504,Equipment,5023,Revenue,10.HOUSEHOLD
03/08/2017,1478364,242.37,Redacted Personal Data,393838,Housing Revenue Account,Housing Services,108,Supplies and Services,504,Equipment,5023,Revenue,10.HOUSEHOLD
03/08/2017,1478364,242.37,Redacted Personal Data,393838,Housing Revenue Account,Housing Services,108,Supplies and Services,504,Equipment,5023,Revenue,10.HOUSEHOLD
03/08/2017,1478364,257.35,Redacted Personal Data,393838,Housing Revenue Account,Housing Services,108,Supplies and Services,504,Equipment,5023,Revenue,10.HOUSEHOLD
03/08/2017,1478364,257.35,Redacted Personal Data,393838,Housing Revenue Account,Housing Services,108,Supplies and Services,504,Equipment,5023,Revenue,10.HOUSEHOLD
03/08/2017,1478364,323.16,Redacted Personal Data,393838,Housing Revenue Account,Housing Services,108,Supplies and Services,504,Equipment,5023,Revenue,10.HOUSEHOLD
03/08/2017,1478364,444.12,Redacted Personal Data,393838,Housing Revenue Account,Housing Services,108,Supplies and Services,504,Equipment,5023,Revenue,10.HOUSEHOLD
03/08/2017,1478364,444.12,Redacted Personal Data,393838,Housing Revenue Account,Housing Services,108,Supplies and Services,504,Equipment,5023,Revenue,10.HOUSEHOLD
03/08/2017,1478364,514.70,Redacted Personal Data,393838,Housing Revenue Account,Housing Services,108,Supplies and Services,504,Equipment,5023,Revenue,10.HOUSEHOLD
03/08/2017,1478367,9.95,INNOVATIONS 4 LEISURE LIMITED T/A P81,389517,"Environment, Housing & Leisure",Cultural & Related Services,104,Supplies and Services,504,"Clothing, Uniforms and Laundry",5025,Revenue,CLOTHING UNI
03/08/2017,1478367,16.50,INNOVATIONS 4 LEISURE LIMITED T/A P81,389517,"Environment, Housing & Leisure",Cultural & Related Services,104,Supplies and Services,504,"Clothing, Uniforms and Laundry",5025,Revenue,CLOTHING UNI
03/08/2017,1478367,33.00,INNOVATIONS 4 LEISURE LIMITED T/A P81,389517,"Environment, Housing & Leisure",Cultural & Related Services,104,Supplies and Services,504,"Clothing, Uniforms and Laundry",5025,Revenue,CLOTHING UNI
03/08/2017,1478367,33.00,INNOVATIONS 4 LEISURE LIMITED T/A P81,389517,"Environment, Housing & Leisure",Cultural & Related Services,104,Supplies and Services,504,"Clothing, Uniforms and Laundry",5025,Revenue,CLOTHING UNI
03/08/2017,1478367,33.00,INNOVATIONS 4 LEISURE LIMITED T/A P81,389517,"Environment, Housing & Leisure",Cultural & Related Services,104,Supplies and Services,504,"Clothing, Uniforms and Laundry",5025,Revenue,CLOTHING UNI
03/08/2017,1478367,39.80,INNOVATIONS 4 LEISURE LIMITED T/A P81,389517,"Environment, Housing & Leisure",Cultural & Related Services,104,Supplies and Services,504,"Clothing, Uniforms and Laundry",5025,Revenue,CLOTHING UNI
03/08/2017,1478367,39.80,INNOVATIONS 4 LEISURE LIMITED T/A P81,389517,"Environment, Housing & Leisure",Cultural & Related Services,104,Supplies and Services,504,"Clothing, Uniforms and Laundry",5025,Revenue,CLOTHING UNI
03/08/2017,1478367,49.75,INNOVATIONS 4 LEISURE LIMITED T/A P81,389517,"Environment, Housing & Leisure",Cultural & Related Services,104,Supplies and Services,504,"Clothing, Uniforms and Laundry",5025,Revenue,CLOTHING UNI
03/08/2017,1478367,63.80,INNOVATIONS 4 LEISURE LIMITED T/A P81,389517,"Environment, Housing & Leisure",Cultural & Related Services,104,Supplies and Services,504,"Clothing, Uniforms and Laundry",5025,Revenue,CLOTHING UNI
03/08/2017,1478373,47.50,THOMAS OWEN AND SONS LTD,015083,"Environment, Housing & Leisure",Cultural & Related Services,104,Supplies and Services,504,"Clothing, Uniforms and Laundry",5025,Revenue,05.CLEANING MATERIALS
03/08/2017,1478373,82.40,THOMAS OWEN AND SONS LTD,015083,"Environment, Housing & Leisure",Cultural & Related Services,104,Premises-Related Expenditure,502,Cleaning and Domestic Supplies,5012,Revenue,05.CLEANING MATERIALS
03/08/2017,1478373,98.30,THOMAS OWEN AND SONS LTD,015083,"Environment, Housing & Leisure",Cultural & Related Services,104,Premises-Related Expenditure,502,Cleaning and Domestic Supplies,5012,Revenue,05.CLEANING MATERIALS
03/08/2017,1478373,102.50,THOMAS OWEN AND SONS LTD,015083,"Environment, Housing & Leisure",Cultural & Related Services,104,Premises-Related Expenditure,502,Cleaning and Domestic Supplies,5012,Revenue,05.CLEANING MATERIALS
03/08/2017,1478373,142.50,THOMAS OWEN AND SONS LTD,015083,"Environment, Housing & Leisure",Cultural & Related Services,104,Supplies and Services,504,"Clothing, Uniforms and Laundry",5025,Revenue,05.CLEANING MATERIALS
03/08/2017,1478373,142.50,THOMAS OWEN AND SONS LTD,015083,"Environment, Housing & Leisure",Cultural & Related Services,104,Supplies and Services,504,"Clothing, Uniforms and Laundry",5025,Revenue,05.CLEANING MATERIALS
03/08/2017,1478373,232.57,THOMAS OWEN AND SONS LTD,015083,Commissioning & Investment,Unallocated,N/A,Premises-Related Expenditure,502,Cleaning and Domestic Supplies,5012,Revenue,05.CLEANING MATERIALS
03/08/2017,1478373,329.40,THOMAS OWEN AND SONS LTD,015083,Commissioning & Investment,Unallocated,N/A,Premises-Related Expenditure,502,Cleaning and Domestic Supplies,5012,Revenue,05.CLEANING MATERIALS
03/08/2017,1478376,435.00,NORTH EAST RADIO COMMS LTD,014130,"Environment, Housing & Leisure",Cultural & Related Services,104,Third Party Payments,505,Private Contractors,5042,Revenue,TELECOM RENTALS
03/08/2017,1478380,18501.76,THE RIVERSIDE GROUP,384225,"Health, Education, Care and Safeguarding",Adult Social Care,101,Capital,Capital,Capital,Capital,Revenue,REPAIR ADAPT
03/08/2017,1478380,21402.52,THE RIVERSIDE GROUP,384225,"Health, Education, Care and Safeguarding",Adult Social Care,101,Capital,Capital,Capital,Capital,Revenue,REPAIR ADAPT
03/08/2017,1478380,22515.32,THE RIVERSIDE GROUP,384225,"Health, Education, Care and Safeguarding",Adult Social Care,101,Capital,Capital,Capital,Capital,Revenue,REPAIR ADAPT
03/08/2017,1478382,303.58,Redacted Personal Data,373465,"Health, Education, Care and Safeguarding",Children's & Education Services,103,Third Party Payments,505,Private Contractors,5042,Revenue,00.DOCTORS/MEDICAL FEES
03/08/2017,1478384,-694.44,PEARSON EDUCATION LTD,327399,"Health, Education, Care and Safeguarding",Children's & Education Services,103,Supplies and Services,504,Equipment,5023,Revenue,18.BOOKS & PUBLICATIONS
03/08/2017,1478384,262.18,PEARSON EDUCATION LTD,327399,"Health, Education, Care and Safeguarding",Children's & Education Services,103,Supplies and Services,504,Equipment,5023,Revenue,18.BOOKS & PUBLICATIONS
03/08/2017,1478384,379.81,PEARSON EDUCATION LTD,327399,"Health, Education, Care and Safeguarding",Children's & Education Services,103,Supplies and Services,504,Equipment,5023,Revenue,18.BOOKS & PUBLICATIONS
03/08/2017,1478384,694.44,PEARSON EDUCATION LTD,327399,"Health, Education, Care and Safeguarding",Children's & Education Services,103,Supplies and Services,504,Equipment,5023,Revenue,18.BOOKS & PUBLICATIONS
03/08/2017,1478385,230.00,TYNEMOUTH DECORATORS,375577,"Environment, Housing & Leisure",Cultural & Related Services,104,Supplies and Services,504,Equipment,5023,Revenue,02.BUILDING SERVICES
03/08/2017,1478387,252.51,NLS SECURITY LTD,014177,"Environment, Housing & Leisure",Cultural & Related Services,104,Supplies and Services,504,Equipment,5023,Revenue,FIRE EQUIP
03/08/2017,1478390,25000.00,TYNE GATEWAY TRUST,387349,"Health, Education, Care and Safeguarding",Children's & Education Services,103,Third Party Payments,505,Private Contractors,5042,Revenue,22.SUPPORT SERVICES
03/08/2017,1478391,2883.24,CHRIS BOWKER LIMITED,393839,"Health, Education, Care and Safeguarding",Children's & Education Services,103,Premises-Related Expenditure,502,"Repairs, alterations and maintenance of buildings",5005,Revenue,02.BUILDING SERVICES
03/08/2017,1478392,261.05,DIRECT TYRE MANAGEMENT LIMITED,393737,"Environment, Housing & Leisure",Unallocated,N/A,Transport,503,Direct Transport Costs,5016,Revenue,28.VEHICLE PARTS
03/08/2017,1478392,261.05,DIRECT TYRE MANAGEMENT LIMITED,393737,"Environment, Housing & Leisure",Unallocated,N/A,Transport,503,Direct Transport Costs,5016,Revenue,28.VEHICLE PARTS
03/08/2017,1478398,209.00,LEXTOX,390670,"Health, Education, Care and Safeguarding",Children's & Education Services,103,Third Party Payments,505,Private Contractors,5042,Revenue,ALCOHOL REHAB
03/08/2017,1478399,5363.26,TEACHERS PENSIONS AGENCY,341172,Capital,General Fund,N/A,Capital,Capital,Capital,Capital,Capital,00.NON INFLUENCIBLE
03/08/2017,1478400,1267098.53,TEACHERS PENSIONS AGENCY,341172,Capital,General Fund,N/A,Capital,Capital,Capital,Capital,Capital,00.NON INFLUENCIBLE
03/08/2017,1478401,2160.00,THE SPLAT CENTRE,389982,"Health, Education, Care and Safeguarding",Children's & Education Services,103,Third Party Payments,505,Private Contractors,5042,Revenue,16.EVENTS & PROMOTIONS
03/08/2017,1478403,40.60,NOMIX ENVIRO,350804,"Environment, Housing & Leisure",Cultural & Related Services,104,Supplies and Services,504,Equipment,5023,Revenue,13.EQUIPMENT
03/08/2017,1478403,417.20,NOMIX ENVIRO,350804,"Environment, Housing & Leisure",Cultural & Related Services,104,Supplies and Services,504,Equipment,5023,Revenue,13.EQUIPMENT
03/08/2017,1478405,13581.00,MAZARS LLP,389028,Finance,Central Services,102,Third Party Payments,505,Private Contractors,5042,Revenue,FIN AUDIT
03/08/2017,1478407,300.98,CLICK TRAVEL LIMITED,388377,Deputy Chief Executive Central,Adult Social Care,101,Supplies and Services,504,Expenses,5030,Revenue,18.TRAVEL
03/08/2017,1478410,2.66,GROUNDSMAN TOOLS & SUPPLIES,375882,"Environment, Housing & Leisure",Cultural & Related Services,104,Supplies and Services,504,Equipment,5023,Revenue,01.TOOLS & EQUIPMENT
03/08/2017,1478410,12.96,GROUNDSMAN TOOLS & SUPPLIES,375882,"Environment, Housing & Leisure",Cultural & Related Services,104,Supplies and Services,504,Equipment,5023,Revenue,01.TOOLS & EQUIPMENT
03/08/2017,1478410,16.20,GROUNDSMAN TOOLS & SUPPLIES,375882,"Environment, Housing & Leisure",Cultural & Related Services,104,Supplies and Services,504,Equipment,5023,Revenue,01.TOOLS & EQUIPMENT
03/08/2017,1478410,54.00,GROUNDSMAN TOOLS & SUPPLIES,375882,"Environment, Housing & Leisure",Cultural & Related Services,104,Supplies and Services,504,Equipment,5023,Revenue,01.TOOLS & EQUIPMENT
03/08/2017,1478410,57.14,GROUNDSMAN TOOLS & SUPPLIES,375882,"Environment, Housing & Leisure",Cultural & Related Services,104,Supplies and Services,504,Equipment,5023,Revenue,01.TOOLS & EQUIPMENT
03/08/2017,1478410,73.38,GROUNDSMAN TOOLS & SUPPLIES,375882,"Environment, Housing & Leisure",Cultural & Related Services,104,Supplies and Services,504,Equipment,5023,Revenue,01.TOOLS & EQUIPMENT
03/08/2017,1478410,108.60,GROUNDSMAN TOOLS & SUPPLIES,375882,"Environment, Housing & Leisure",Cultural & Related Services,104,Supplies and Services,504,Equipment,5023,Revenue,01.TOOLS & EQUIPMENT
03/08/2017,1478411,322.07,CHUBB ELECTRONIC SECURITY SYSTEMS LTD,375594,"Environment, Housing & Leisure",Cultural & Related Services,104,Third Party Payments,505,Private Contractors,5042,Revenue,INTRUDER ALARM
03/08/2017,1478412,500.00,NORTHGATE INFORMATION SOLUTIONS,365790,Housing Revenue Account,Housing Revenue Account,N/A,Supplies and Services,504,Miscellaneous Expenses,5034,Revenue,15.HARDWARE
03/08/2017,1478412,1000.00,NORTHGATE INFORMATION SOLUTIONS,365790,Housing Revenue Account,Housing Revenue Account,N/A,Supplies and Services,504,Miscellaneous Expenses,5034,Revenue,15.HARDWARE
03/08/2017,1478413,504.00,DEMENTIA CARE PARTNERSHIP,346841,"Health, Education, Care and Safeguarding",Adult Social Care,101,Third Party Payments,505,Private Contractors,5042,Revenue,22.SUPPORT SERVICES
03/08/2017,1478413,966.00,DEMENTIA CARE PARTNERSHIP,346841,"Health, Education, Care and Safeguarding",Adult Social Care,101,Third Party Payments,505,Private Contractors,5042,Revenue,22.SUPPORT SERVICES
03/08/2017,1478414,2650.00,MR TIMOTHY SPAIN,352235,"Health, Education, Care and Safeguarding",Children's & Education Services,103,Third Party Payments,505,Private Contractors,5042,Revenue,16.LEGAL SERVICES
03/08/2017,1478415,3500.00,RIVERSIDE PRIMARY SCHOOL,338722,Central Items,Holding A/C,N/A,Control Accounts,N/A,Control Accounts,N/A,Revenue,00.NT SCHOOLS
03/08/2017,1478416,6793.16,PERCY MAIN PRIMARY SCHOOL,259104,Capital,Capital,Capital,Supplies and Services,504,Communications & Computing,5028,Capital,00.NT SCHOOLS
03/08/2017,1478422,625.00,PAMS ASSESSMENTS LTD,395296,"Health, Education, Care and Safeguarding",Children's & Education Services,103,Supplies and Services,504,Miscellaneous Expenses,5034,Revenue,15.SOFTWARE
03/08/2017,1478423,485.00,KENCOMP INTERNET LTD,395072,"Health, Education, Care and Safeguarding",Children's & Education Services,103,Supplies and Services,504,Miscellaneous Expenses,5034,Revenue,ICT ONLINE
03/08/2017,1478425,-351.12,AGE UK NORTH TYNESIDE,334565,"Health, Education, Care and Safeguarding",Adult Social Care,101,Capital,Capital,Capital,Capital,Revenue,22.DAY CARE SERVICES
03/08/2017,1478425,-351.12,AGE UK NORTH TYNESIDE,334565,"Health, Education, Care and Safeguarding",Adult Social Care,101,Capital,Capital,Capital,Capital,Revenue,22.DAY CARE SERVICES
03/08/2017,1478425,3726.38,AGE UK NORTH TYNESIDE,334565,"Health, Education, Care and Safeguarding",Adult Social Care,101,Third Party Payments,505,Private Contractors,5042,Revenue,22.DAY CARE SERVICES
03/08/2017,1478425,4912.74,AGE UK NORTH TYNESIDE,334565,"Health, Education, Care and Safeguarding",Adult Social Care,101,Third Party Payments,505,Private Contractors,5042,Revenue,22.DAY CARE SERVICES
03/08/2017,1478425,5454.65,AGE UK NORTH TYNESIDE,334565,"Health, Education, Care and Safeguarding",Adult Social Care,101,Capital,Capital,Capital,Capital,Revenue,22.DAY CARE SERVICES
03/08/2017,1478425,5682.12,AGE UK NORTH TYNESIDE,334565,"Health, Education, Care and Safeguarding",Adult Social Care,101,Capital,Capital,Capital,Capital,Revenue,22.DAY CARE SERVICES
03/08/2017,1478425,5730.53,AGE UK NORTH TYNESIDE,334565,"Health, Education, Care and Safeguarding",Adult Social Care,101,Capital,Capital,Capital,Capital,Revenue,22.DAY CARE SERVICES
03/08/2017,1478425,5842.76,AGE UK NORTH TYNESIDE,334565,"Health, Education, Care and Safeguarding",Adult Social Care,101,Capital,Capital,Capital,Capital,Revenue,22.DAY CARE SERVICES
